Workbook

Sheet RWH Instructions
A2: RAINWATER HARVESTING CALCULATOR INSTRUCTIONS
A3: NOTE: | B3: This Rainwater Harvesting (RWH) calculator is intended for the conceptual design of simple cisterns. Projects obligated to meet SDG performance
B4: requirements should use the appropriate BMP Sizing Calculators available on the SDG website. The RWH calculator simulates the performance of
B5: the design over 10 years of historical rainfall data to determine the average annual runoff captured by the cistern and the average annual non-
B6: potable demand met by the rainwater harvesting.
A8: PART 1 - Calculating Irrigation Demand
A9: 1 | B9: Enter the square footage of the area to be irrigated that is covered by turfgrass or crops. If no turf, skip to Step 3. [1 acre = 43,560 sq ft]
A10: 2 | B10: Enter the crop coefficient for your site. Cool season grasses= 0.8, warm season=0.6. Please see the linked CIMIS publication (in "Reference" TAB) if more information is needed.
A11: 3 | B11: Enter the square footage of the landscaped area to be irrigated. If no landscaped area, skip to Step 8. [1 acre = 43,560 sq ft]
A12: 4 | B12: Enter species factor based on type of plants used. Please see pages 62-99 of A Guide to Estimating Irrigation Water Needs of Landscape Plantings in California for more info.
A13: 5 | B13: Enter density factor based on plant coverage. Full coverage of one vegetation type is considered average. Please see p. 18 of Guide for more info.
A14: 6 | B14: Enter microclimate factor based on site's exposure to sun and wind. Open-field without extraordinary winds or heat inputs is considered average (e.g., a park). Please see p. 19 of Guide for more info.
A15: 7 | B15: The landscape coefficient is calculated here. It is a product of the species, density, and microclimate factors.
A16: 8 | B16: Enter irrigation efficiency. Generally ranges from 0.7 to 0.95, with subsurface drip being the most efficient and spray irrigation the least efficient. Current San Francisco regulations require that harvested rainwater be treated prior to use in spray irrigation.
A17: 9 | B17: Select whether the site is located in western or eastern San Francisco. Sites located in the foggier western half of the city will have lower evapotranspiration values.
B18: >NOTE: Other conditions not included in the Sizer may also effect irrigation water demand, such as soil salt concentration, soil evaporation rate, trees in turf, etc. If you feel these special conditions may apply to your site, please see Chapter 7 and 8 of the Guide to Estimating Irrigation Water Needs of Landscape Plantings in California.
A19: 10 | B19: The monthly irrigation demand is shown in the table. Reference evapotranspiration rates are from CIMIS.
A21: PART 2 - Calculating Indoor Non-Potable Demand
A22: 11 | B22: Enter the number of residential units at the site and the average people per unit. People per unit typically ranges from 2.0 for multi-family to 3.1 for single-family use.
A23: 12 | B23: For commercial and industrial sites, enter the number of full-time equivalents (FTEs) located on site. An 8-hr/day occupant has an FTE of 1.
B24: Part-time occupants have an FTE = # hrs per day/8 hrs.
A25: 13 | B25: For facilities such as schools, museums, and churches, enter the number of students or visitors (per day).
A26: 14 | B26: For retail buildings, enter the number of customers (per day).
A27: 15 | B27: The default values for toilet flushes per day are given here. These values are based on the SFPUC Urban Water Management Plan (UWMP) (SFPUC 2011)
A28: 16 | B28: Enter the gallons per toilet flush. Recommended value is 1.28 gallons per flush based on the California Green Building Standards Code 5.303.2
A29: 17 | B29: Enter the washing machine loads and gallons per load. The default gallons per load is 36.9.
A30: 18 | B30: Enter any additional non-potable demand in gallons per day. This includes industrial uses, heating/cooling, and all other permitted indoor uses.
A31: 19 | B31: The indoor non-potable demand is calculated here.
A32: Part III - Calculate Cistern Size to Meet Desired Percent Capture
A33: 20 | B33: Enter the runoff coefficient for the area draining to the cistern. A value of 0.85 is recommended for roofs.
A34: 21 | B34: Enter the square footage of the area draining to the cistern.
A35: 22 | B35: Enter a volume for the cistern. Adjust the volume until the desired percent capture is met (typically at least 80%) or when 100% of non-potable demand is met.
A36: 23 | B36: If the cistern cannot capture the required percentage of annual runoff (typically at least 80%), then additional BMPs will be needed to manage runoff from the drainage area.
A37: 24 | B37: Enter the depth of the cistern to find the surface area covered by the cistern.
A38: 25 | B38: The estimated monthly runoff captured and reused by the cistern is shown in the table.
A40: PART 3 - Entering Cistern Dimensions
A41: 20 | B41: Enter the impervious and pervious areas that drain to the cistern. The total drainage area to the cistern is then calculated.
A42: 21 | B42: Enter the runoff coefficient of the area draining to the cistern. A value of 0.85 is recommended for roofs. Please see page 93 of Stormwater Design Guidelines for other values.
A43: 22 | B43: Enter the shape and dimensions of the cistern. For cisterns with atypical geometries, such as spherical, oblong, or pyramidal cisterns designed to fit beneath ramps, normalize the volume of the cistern to fit within a circular or rectangular footprint.
A45: PART 4 - Calculating Cistern Performance
A46: 23 | B46: The surface area and volume of the cistern and detention space are calculated here.
A47: 24 | B47: The volume of runoff captured and the percent of non-potable demand are shown here. These volumes are calculated from the results of a 10-year daily simulation of RWH performance during rain events.
A48: 25 | B48: The average monthly totals over the course of the 10-year daily simulation period are shown in the figures. Note, the average monthly runoff captured and stored by the cistern may be different than the amount reused in that month. Therefore, the sum of monthly reuse plus overflow in the second figure does not necessarily equal the runoff supply depicted in the first figure.
A50: NOTE: | B50: The RWH Calculator does not consider treatment requirements for the various non-potable demands. The designer will need to coordinate with SF Department of Public Health, SF Department of Building Inspection and SF Public Utilities Commission for the specific treatment requirement per each proposed use. Additional review may be required based on the proposed use.

Sheet RWH Calculator
L1: HIDE ROWS
A2: RAINWATER HARVESTING (RWH) CALCULATOR | I2: LEGEND:
A3: The RWH Calculator simulates the performance of a cistern over 10 years based on the runoff to the cistern, cistern size, and the site's non-potable demand. | I3: User Input | T3: SF Downtown Gauge | AA3: Estimate of Available Cistern Volume
A4: The RWH's performance is used to calculate the average annual rainwater captured and non-potable demand met. | I4: Default Value | N4: ETo Values (DWR 2005 - CIMIS) | T4: 24 hour curves | V4: C=1 | X4: 48 hour curves | Y4: C =1 | AA4: 48 hour % Capture Curves
A5: The RWH calculator is intended for conceptual design, not for determining compliance with the SDG performance measures. | I5: Locked | N5: Zone 1 | O5: Zone 2 | P5: Zone 1 | Q5: Zone 2 | T5: Unit Storage | U5: Percent | V5: Percent | X5: Unit Storage | Y5: Percent | AA5: Annual | AB5: Equivalent
A6: Projects that need to comply with the SDG requirements should use either the CSS or MS4 BMP Sizing Calculators found at http://sfwater.org/sdg. | N6: (in/mo) | O6: (In/mo) | P6: (in/day) | Q6: (in/day) | T6: (inches) | U6: Capture | V6: Capture | X6: (inches) | Y6: Capture | AA6: Reuse % | AB6: Rainfall Depth (in)
M7: Jan | N7: 0.93 | O7: 1.24 | P7: =N7/31 -> 0.03 | Q7: =O7/31 -> 0.04
M8: Feb | N8: 1.4 | O8: 1.68 | P8: =N8/28 -> 0.05 | Q8: =O8/28 -> 0.06 | T8: 0 | U8: =V8/100 -> 0 | V8: 0 | X8: 0 | Y8: 0 | AA8: 0 | AB8: 0
M9: Mar | N9: 2.48 | O9: 3.1 | P9: =N9/31 -> 0.08 | Q9: =O9/31 -> 0.1 | T9: 0.03 | U9: 0.06 | V9: 6 | X9: 0.03 | Y9: 6 | AA9: 0.06 | AB9: 0.03
A10: PART 1 - Calculate Irrigation Demand | M10: Apr | N10: 3.3 | O10: 3.9 | P10: =N10/30 -> 0.11 | Q10: =O10/30 -> 0.13 | T10: 0.06 | U10: 0.13 | V10: 13 | X10: 0.06 | Y10: 13 | AA10: 0.1 | AB10: 0.05
M11: May | N11: 4.03 | O11: 4.65 | P11: =N11/31 -> 0.13 | Q11: =O11/31 -> 0.15 | T11: 0.12 | U11: 0.2823 | V11: 28.23 | X11: 0.12 | Y11: 21.54 | AA11: 0.13 | AB11: 0.06
A12: 1 | B12: Turf/Crop Area to be Irrigated | C12: 500 | D12: ft2 | M12: Jun | N12: 4.5 | O12: 5.1 | P12: =N12/30 -> 0.15 | Q12: =O12/30 -> 0.17 | T12: 0.24 | U12: 0.4922 | V12: 49.22 | X12: 0.24 | Y12: 38.76 | AA12: 0.15 | AB12: 0.08
A13: 2 | B13: Crop Coefficient - Kc | C13: 0.8 | D13: cool season grasses = 0.8, warm season grasses = 0.6. Please see CIMIS publication for more information. | M13: Jul | N13: 4.65 | O13: 4.96 | P13: =N13/31 -> 0.15 | Q13: =O13/31 -> 0.16 | T13: 0.36 | U13: 0.6458 | V13: 64.58 | X13: 0.36 | Y13: 52.69 | AA13: 0.2154 | AB13: 0.12
A14: 3 | B14: Landscape Area to be Irrigated | C14: 300 | D14: ft2 | M14: Aug | N14: 4.03 | O14: 4.65 | P14: =N14/31 -> 0.13 | Q14: =O14/31 -> 0.15 | T14: 0.48 | U14: 0.7571 | V14: 75.71 | X14: 0.48 | Y14: 63.74 | AA14: 0.28 | AB14: 0.16
A15: 4 | B15: Species Factor - ks | C15: 0.5 | D15: <0.1 for very low, 0.1-0.3 for low, 0.4-0.6 for medium, 0.7-0.9 for high. See p. 62-99 of Guide (DWR 2000). | M15: Sep | N15: 3.3 | O15: 3.9 | P15: =N15/30 -> 0.11 | Q15: =O15/30 -> 0.13 | T15: 0.6 | U15: 0.8345 | V15: 83.45 | X15: 0.6 | Y15: 72.51 | AA15: 0.3 | AB15: 0.17
A16: 5 | B16: Density Factor - kd | C16: 1.1 | D16: 0.5-0.9 for low, 1 for average, 1.1-1.3 for high. See p. 18 of Guide (DWR 2000). | M16: Oct | N16: 2.48 | O16: 2.79 | P16: =N16/31 -> 0.08 | Q16: =O16/31 -> 0.09 | T16: 0.72 | U16: 0.8878 | V16: 88.78 | X16: 0.72 | Y16: 79.28 | AA16: 0.335 | AB16: 0.2
A17: 6 | B17: Microclimate Factor - kmc | C17: 1 | D17: 0.5-0.9 for low, 1 for average, 1.1-1.4 for high. See p. 19 of Guide (DWR 2000). | M17: Nov | N17: 1.2 | O17: 1.8 | P17: =N17/30 -> 0.04 | Q17: =O17/30 -> 0.06 | T17: 0.84 | U17: 0.9251 | V17: 92.51 | X17: 0.84 | Y17: 84.49 | AA17: 0.3876 | AB17: 0.24
A18: 7 | B18: Landscape Coefficient - KL | C18: =C15*C16*C17 -> 0.55 | D18: KL = ks*kd*kmc | M18: Dec | N18: 0.62 | O18: 1.24 | P18: =N18/31 -> 0.02 | Q18: =O18/31 -> 0.04 | T18: 0.96 | U18: 0.9502 | V18: 95.02 | X18: 0.96 | Y18: 88.46 | AA18: 0.44 | AB18: 0.28
B19: Total Irrigation Area | C19: =SUM(C14,C12) -> 800 | D19: ft2 | M19: Total | N19: 32.9 | O19: 39 | T19: 1.08 | U19: 0.9663 | V19: 96.63 | X19: 1.08 | Y19: 91.49 | AA19: 0.46 | AB19: 0.3
B20: Average Coefficient | C20: =IF(C19>0,(C12*C13+C14*C18)/C19,0) -> 0.70625 | T20: 1.2 | U20: 0.9774 | V20: 97.74 | X20: 1.2 | Y20: 93.71 | AA20: 0.49 | AB20: 0.33
A21: 8 | B21: Irrigation Efficiency | C21: 0.9 | D21: Estimated efficiencies are 0.70 to 0.85 for spray, 0.9 for drip, 0.95 for subsurface drip. | T21: 1.32 | U21: 0.9846 | V21: 98.46 | X21: 1.32 | Y21: 95.35 | AA21: 0.5269 | AB21: 0.36
A22: 9 | B22: Site Location (ETo Zone) | C22: Eastern SF | D22: Select Western if located in the Richmond, Sunset, or Lake Merced areas of San Francisco | T22: 1.44 | U22: 0.9892 | V22: 98.92 | X22: 1.44 | Y22: 96.52 | AA22: 0.57 | AB22: 0.4
T23: 1.56 | U23: 0.9923 | V23: 99.23 | X23: 1.56 | Y23: 97.4 | AA23: 0.6374 | AB23: 0.48
A24: 10 | B24: Month | C24: Avg. Monthly | D24: Reference | E24: Actual | F24: Irrigation Demand | T24: 1.68 | U24: 0.9948 | V24: 99.48 | X24: 1.68 | Y24: 98.04 | AA24: 0.67 | AB24: 0.52
C25: Rainfall | D25: Evapotranspiration | E25: Evapotranspiration | I25: % of | T25: 1.8 | U25: 0.9963 | V25: 99.63 | X25: 1.8 | Y25: 98.49 | AA25: 0.7251 | AB25: 0.6
C26: in/month | D26: ETo | E26: ETL | F26: ft3/month | G26: gal/mo | H26: gpd | I26: annual | L26: (in/unit area) | M26: days/mo | T26: 1.92 | U26: 0.9972 | V26: 99.72 | X26: 1.92 | Y26: 98.82 | AA26: 0.75 | AB26: 0.64
B27: January | C27: ='RWH 10-yr Simulation'!X25/10 -> 3.656 | D27: ='RWH 10-yr Simulation'!AA25/10 -> 1.24 | E27: =D27*$C$20 -> 0.87575 | F27: ='RWH 10-yr Simulation'!AC25/10/7.48 -> 43.02962963 | G27: =F27*7.48 -> 321.8616296 | H27: =(G27)/M27 -> 10.38263321 | I27: =G27/$G$39 -> 0.02351452365 | L27: =IF(E27-C27>0, (E27-C27)/$C$21,0) -> 0 | M27: 31 | T27: 2.04 | U27: 0.9977 | V27: 99.77 | X27: 2.04 | Y27: 99.1 | AA27: 0.7928 | AB27: 0.72
B28: February | C28: ='RWH 10-yr Simulation'!X26/10 -> 4.379 | D28: ='RWH 10-yr Simulation'!AA26/10 -> 1.692 | E28: 1.194975 | F28: ='RWH 10-yr Simulation'!AC26/10/7.48 -> 54.775 | G28: =F28*7.48 -> 409.717 | H28: 14.63275 | I28: =G28/$G$39 -> 0.02993304949 | L28: 0 | M28: 28 | T28: 2.16 | U28: 0.998 | V28: 99.8 | X28: 2.16 | Y28: 99.34 | AA28: 0.82 | AB28: 0.78
B29: March | C29: ='RWH 10-yr Simulation'!X27/10 -> 2.568 | D29: ='RWH 10-yr Simulation'!AA27/10 -> 3.1 | E29: 2.189375 | F29: ='RWH 10-yr Simulation'!AC27/10/7.48 -> 122.5555556 | G29: 916.7155556 | H29: 29.57146953 | I29: =G29/$G$39 -> 0.06697328178 | L29: 0 | M29: 31 | T29: 2.28 | U29: 0.9982 | V29: 99.82 | X29: 2.28 | Y29: 99.52 | AA29: 0.8449 | AB29: 0.84
B30: April | C30: ='RWH 10-yr Simulation'!X28/10 -> 1.436 | D30: ='RWH 10-yr Simulation'!AA28/10 -> 3.9 | E30: 2.754375 | F30: ='RWH 10-yr Simulation'!AC28/10/7.48 -> 174.9384259 | G30: 1308.539426 | H30: 43.61798086 | I30: =G30/$G$39 -> 0.09559909741 | L30: 1.464861111 | M30: 30 | T30: 2.4 | U30: 0.9985 | V30: 99.85 | X30: 2.4 | Y30: 99.64 | AA30: 0.8846 | AB30: 0.96
B31: May | C31: ='RWH 10-yr Simulation'!X29/10 -> 0.49 | D31: ='RWH 10-yr Simulation'!AA29/10 -> 4.65 | E31: 3.2840625 | F31: ='RWH 10-yr Simulation'!AC29/10/7.48 -> 226.650463 | G31: 1695.345463 | H31: 54.68856332 | I31: 0.1238583208 | L31: 3.104513889 | M31: 31 | T31: 2.52 | U31: 0.9987 | V31: 99.87 | X31: 2.52 | Y31: 99.7 | AA31: 0.9149 | AB31: 1.08
B32: June | C32: ='RWH 10-yr Simulation'!X30/10 -> 0.119 | D32: ='RWH 10-yr Simulation'!AA30/10 -> 5.1 | E32: 3.601875 | F32: ='RWH 10-yr Simulation'!AC30/10/7.48 -> 262.3592593 | G32: 1962.447259 | H32: 65.41490864 | I32: 0.143372208 | L32: 3.869861111 | M32: 30 | T32: 2.64 | U32: 0.9989 | V32: 99.89 | X32: 2.64 | Y32: 99.74 | AA32: 0.9371 | AB32: 1.2
B33: July | C33: ='RWH 10-yr Simulation'!X31/10 -> 0.005 | D33: ='RWH 10-yr Simulation'!AA31/10 -> 4.96 | E33: 3.503 | F33: ='RWH 10-yr Simulation'!AC31/10/7.48 -> 259.1111111 | G33: 1938.151111 | H33: 62.52100358 | I33: 0.1415971832 | L33: 3.886666667 | M33: 31 | T33: 2.76 | U33: 0.9992 | V33: 99.92 | X33: 2.76 | Y33: 99.77 | AA33: 0.9535 | AB33: 1.32
B34: August | C34: ='RWH 10-yr Simulation'!X32/10 -> 0.013 | D34: ='RWH 10-yr Simulation'!AA32/10 -> 4.65 | E34: 3.2840625 | F34: ='RWH 10-yr Simulation'!AC32/10/7.48 -> 242.3009259 | G34: 1812.410926 | H34: 58.46486858 | I34: 0.1324108737 | L34: 3.634513889 | M34: 31 | T34: 2.88 | U34: 0.9994 | V34: 99.94 | X34: 2.88 | Y34: 99.8 | AA34: 0.9652 | AB34: 1.44
B35: September | C35: ='RWH 10-yr Simulation'!X33/10 -> 0.062 | D35: ='RWH 10-yr Simulation'!AA33/10 -> 3.9 | E35: 2.754375 | F35: ='RWH 10-yr Simulation'!AC33/10/7.48 -> 201.037963 | G35: 1503.763963 | H35: 50.12546543 | I35: 0.1098617854 | L35: 2.991527778 | M35: 30 | T35: 3 | U35: 0.9996 | V35: 99.96 | X35: 3 | Y35: 99.82 | AA35: 0.974 | AB35: 1.56
B36: October | C36: ='RWH 10-yr Simulation'!X34/10 -> 1.153 | D36: ='RWH 10-yr Simulation'!AA34/10 -> 2.79 | E36: 1.9704375 | F36: ='RWH 10-yr Simulation'!AC34/10/7.48 -> 132.6319444 | G36: 992.0869444 | H36: 32.00280466 | I36: 0.07247975457 | L36: 0.9082638889 | M36: 31 | T36: 3.12 | U36: 0.9998 | V36: 99.98 | X36: 3.12 | Y36: 99.84 | AA36: 0.9804 | AB36: 1.68
B37: November | C37: ='RWH 10-yr Simulation'!X35/10 -> 2.354 | D37: ='RWH 10-yr Simulation'!AA35/10 -> 1.8 | E37: 1.27125 | F37: ='RWH 10-yr Simulation'!AC35/10/7.48 -> 74.04907407 | G37: 553.8870741 | H37: 18.46290247 | I37: 0.04046580737 | L37: 0 | M37: 30 | T37: 3.24 | U37: 0.9999 | V37: 99.99 | X37: 3.24 | Y37: 99.86 | AA37: 0.9849 | AB37: 1.8
B38: December | C38: ='RWH 10-yr Simulation'!X36/10 -> 7.038 | D38: ='RWH 10-yr Simulation'!AA36/10 -> 1.24 | E38: 0.87575 | F38: ='RWH 10-yr Simulation'!AC36/10/7.48 -> 36.47777778 | G38: 272.8537778 | H38: 8.801734767 | I38: 0.0199341146 | L38: 0 | M38: 31 | T38: 3.36 | U38: 1 | V38: 100 | X38: 3.36 | Y38: 99.88 | AA38: 0.9882 | AB38: 1.92
B39: Totals | C39: =SUM(C27:C38) -> 23.273 | D39: =SUM(D27:D38) -> 39.022 | E39: =SUM(E27:E38) -> 27.5592875 | F39: =SUM(F27:F38) -> 1829.91713 | G39: =SUM(G27:G38) -> 13687.78013 | L39: =SUM(L27:L38) -> 19.86020833 | M39: =SUM(M27:M38) -> 365 | T39: 3.48 | U39: 1 | V39: 100 | X39: 3.48 | Y39: 99.91 | AA39: 0.991 | AB39: 2.04
X40: 3.6 | Y40: 99.93 | AA40: 0.9934 | AB40: 2.16
A41: PART 2 - Calculate Indoor Non-Potable Demand | X41: 3.72 | Y41: 99.95 | AA41: 0.9952 | AB41: 2.28
X42: 3.84 | Y42: 99.97 | AA42: 0.9964 | AB42: 2.4
A43: 11 | B43: No. of Residential Units | X43: 3.96 | Y43: 99.98 | AA43: 0.997 | AB43: 2.52
B44: Persons per Unit | C44: 2.01 | D44: Recommend 2.0 for multi-family, 3.1 for single family. See 2010 SFPUC Appendix D | X44: 4.08 | Y44: 99.99 | AA44: 0.9974 | AB44: 2.64
A45: 12 | B45: Number of Full Time Equivalents | D45: Use for commercial and industrial facilities. An 8-hr a day occupant has an FTE of 1. | X45: 4.2 | Y45: 100 | AA45: 0.9977 | AB45: 2.76
A46: 13 | B46: Number of Students/Visitors | D46: Use for schools, museums, libraries, etc. | AA46: 0.998 | AB46: 2.88
A47: 14 | B47: Number of Retail Customers | D47: Use for retail stores | AA47: 0.9982 | AB47: 3
A48: 15 | B48: Freq. of Residential Toilet Use | C48: 4.75 | D48: flush/person/day | E48: See SFPUC Urban Water Management Plan (UWMP) | AA48: 0.9984 | AB48: 3.12
B49: Freq. of FTE Toilet Use | C49: 1.74 | D49: flush/person/day | E49: See SFPUC UWMP | AA49: 0.9986 | AB49: 3.24
B50: Freq. of Student/Visitor Toilet Use | C50: 0.5 | D50: flush/person/day | E50: See SFPUC UWMP | AA50: 0.9988 | AB50: 3.36
B51: Freq. of Customer Toilet Use | C51: 0.5 | D51: flush/person/day | E51: See SFPUC UWMP | AA51: 0.9991 | AB51: 3.48
A52: 16 | B52: Volume per Flush | C52: 1.28 | D52: gal/flush | E52: See California Green Building Standards Code 5.303.2. | AA52: 0.9993 | AB52: 3.6
A53: 17 | B53: Washing Machine Use | D53: cycles/person/day | AA53: 0.9995 | AB53: 3.72
B54: Volume per Load | C54: 36.9 | D54: gal/cycle | E54: See SFPUC UWMP | AA54: 0.9997 | AB54: 3.84
A55: 18 | B55: Other Non-Potable Demand | D55: gal/day | E55: Additional non-potable demand (e.g. cooling water, industrial) per supporting documentation | AA55: 0.9998 | AB55: 3.96
A56: 19 | B56: Daily Reuse Demand | C56: =C52*(C43*C44*C48+C45*C49+C46*C50+C47*C51)+C55+C53*C54*C43*C44 -> 0 | D56: gal/day | AA56: 0.9999 | AB56: 4.08
B57: Monthly Reuse Demand | C57: =(365/12)*C56 -> 0 | D57: gal/month | AA57: 1 | AB57: 4.2
B58: Annual Reuse Demand | C58: =C56*365/1000000 -> 0 | D58: MG/yr
A60: PART 3 Enter Cistern Design Information and the Conventional Areas that drain to the Cistern
A62: 20 | B62: Impervious Drainage Area | C62: 1200 | D62: ft2 (Enter roof area, paved area, etc. that drain to cistern.)
B63: Pervious Drainage Area | D63: ft2 (Enter allowed pervious areas that drain to cistern. This is not recommended.)
B64: Total Area Draining to Cistern | C64: =SUM(C62:C63) -> 1200 | D64: ft2
A65: 21 | B65: Avg. Runoff Coefficient | C65: 0.85 | D65: Recommend 0.85 for roofs.
A66: 22 | B66: Shape of Cistern Footprint | C66: Circular | D66: Select Circular or Rectangular
B67: =IF(C$66="Circular","Cistern Diameter", "Cistern Length") -> Cistern Diameter | C67: 6 | D67: ft | E67: =IF(C74=0," ",IF(C74<(0.25/12)*C62, "The proposed cistern size is insufficient to store the recommended minimum runoff volume of 0.25 inches of rainfall per square foot of impervious drainage area. Please increase the cistern size or provide justification for the design.", "")) -> 
B68: =IF(C$66="Circular","N/A", "Cistern Width") -> N/A | D68: ft
B69: Cistern Depth | C69: 5 | D69: ft
A71: PART 4 - Calculate Cistern Performance in 10-year Simulation Based on Inputs
A73: 23 | B73: Cistern Surface Area | C73: =IF(C66="Rectangular",C67*C68,PI()*C67^2/4) -> 28.27433388 | D73: square ft | E73: Adjust the cistern size until the desired performance is achieved (e.g., 50% of non-potable water demand met by captured rainwater). Annual cistern performance is summarized in Line 24 while the 10-year daily precipitation data and the daily cistern performance over a typical year are shown in the graphs below. The "Available Cistern Volume prior to Design Storm Event" is the effective volume available prior to a rain event that can be used to meet SDG requirements.
B74: Cistern Volume | C74: =C69*C73 -> 141.3716694 | D74: ft3
B75: Cistern Volume | C75: =C74*7.48 -> 1057.460087 | D75: gallons
B76: Average Volume in Cistern prior to each Rainy-Season Storm Event | C76: ='RWH Performance Evaluation'!D17 -> 822.1672428 | D76: gallons
B77: Available Cistern Volume prior to Design Storm Event | C77: =ROUND(C75-C76,0) -> 235 | D77: gallons
A78: 24 | B78: Average Annual Runoff Captured and Reused | C78: ='RWH Performance Evaluation'!D4/10 -> 4275.023229 | D78: gallons | E78: Average annual volume of runoff captured in the cistern and reused onsite (potable water reduction)
B79: Ave. Annual Non-Potable Demand Met by Rainwater Harvesting | C79: ='RWH Performance Evaluation'!D9 -> 0.3048272035 | E79: Average annual percentage of non-potable water demand supplied by captured rainwater
A80: Hide Row | B80: Rainfall Event Captured | C80: =IF(C65*C64>0,C74/C65/C64*12,0) -> 1.663196111 | D80: inches
A81: Hide Row | B81: Storm Percentile | C81: =VLOOKUP(C80,$T$8:$U$39,2) -> 0.9923
A83: RWH Performance Graphs
C149: Rainwater Harvester Performance from Step 4
C150: Avg. Annual Runoff Captured & Reused | F150: =ROUND(C78,0)&" gallons" -> 4275 gallons
C151: Percent of Annual Runoff Captured & Reused | F151: ='RWH Performance Evaluation'!D5 -> 0.2889120034
C152: Percent of Non-Potable Demand Met by Rainwater | F152: =C79 -> 0.3048272035
C153: Avg. Volume Available in Cistern prior to Storm Event | F153: =ROUND(C77,0)&" gallons" -> 235 gallons
A157: References
A158: California Department of Water Resources (DWR). 2005. CIMIS Reference Evapotranspiration Zones. http://wwwcimis.water.ca.gov/cimis/pdf/CimisRefEvapZones.pdf
A159: San Francisco Public Utilities Commission (SFPUC). 2004. Water Use Estimates. Source files: "householdcons.xls", "nonresconsump.xls".
A160: University of California Cooperative Extension and California Department of Water Resources (DWR). 2000. A Guide to Estimating Landscape Planting Needs in California. http://www.owue.water.ca.gov/docs/wucols00.pdf. August 2000.
A161: United States Green Building Council. 2007. LEED New Construction v2.2 Reference Manual. Third Edition October 2007.
A163: Part I calculates the monthly irrigation demand, Part II calculates the indoor non-potable demand, and Part III sizes the cistern.

Sheet References
A2: PROJECT TEAM
A3: San Francisco Public Utilities Commission | G3: Ken Kortkamp, Stormwater Lead
G4: John Scarpulla, Nonpotable Lead
A5: Lotus Water | G5: Scott Durbin
G6: Nathan Stormzand
A8: REFERENCE MATERIALS
A9: General Information: | B9: San Francisco Public Utilities Commission (SFPUC) Stormwater Design Guidelines
B10: http://sfwater.org/sdg
A11: CSS BMP Calculation Approach: | B11: SFPUC. CSS BMP Sizing Calculator: Calculation Approach Memo.
B12: http://www.sfwater.org/Modules/ShowDocument.aspx?documentID=4730
A14: Stormwater Guidance Materials Available on the SFPUC Website
A15: Stormwater Design Guidelines Handbook: | B15: SFPUC. " Stormwater Design Guidelines". January 2010
B16: http://www.sfwater.org/Modules/ShowDocument.aspx?documentID=2779
A17: Stormwater Control Plan Information: | B17: See "Stormwater Control Plan" section on the linked webpage for additional SCP guidance:
B19: http://sfwater.org/sdg
A20: Modified Compliance: | B20: Modified Compliance Application. See "Modified Compliance" section of the SDG website for more information.
B22: http://sfwater.org/modules/showdocument.aspx?documentid=5860
A23: Design Storms: | B23: 1-year and 2-year 24-hour Design Storms
B24: http://sfwater.org/modules/showdocument.aspx?documentid=2776
A25: Urban Water Management Plan: | B25: SFPUC. 2010 Urban Water Management Plan for the City and County of San Francisco. June 2011.
B27: http://sfwater.org/modules/showdocument.aspx?documentid=1055
A28: Urban Water Management Plan Appendices: | B28: SFPUC. 2010 Urban Water Management Plan for the City and County of San Francisco - Appendices. June 2011.
B30: http://www.sfwater.org/modules/showdocument.aspx?documentid=1054
A31: Non-Potable Water Program: | B31: San Francisco's Non-potable Water Program Guidebook
B32: http://sfwater.org/modules/showdocument.aspx?documentid=4962
A33: Other Reference Materials
A34: Soil Groups and Time of Concentration Calculations: | B34: United States Department of Agriculture (USDA). Natural Resource Conservation Service (NRCS). Conservation Engineering Division. Technical Release 55 (TR-55). "Urban Hydrology for Small Watersheds". June 1986.
B37: http://www.nrcs.usda.gov/Internet/FSE_DOCUMENTS/stelprdb1044171.pdf
A38: Evapotranspiration Rates: | B38: California Department of Water Resources (DWR). California Irrigation Management Information System (CIMIS). "Reference Evapotranspiration Map". 1999.
B40: http://www.cimis.water.ca.gov/App_Themes/images/etozonemap.jpg
A41: Irrigation Water Needs: | B41: DWR. CIMIS. Leaflet 21427. "Using Reference Evapotranspiration (Eto) and Crop Coefficients to Estimate Crop Evapotranspiration (ETc) for Agronomic Crops, Grasses, and Vegetable Crops". 1987.
B43: http://www.cimis.water.ca.gov/Content/PDF/21427-KcAgronomicGrassandVeg.pdf
A44: Water Use Efficiency: | B44: DWR. University of California Cooperative Extension. "A Guide to Estimating Irrigation Water Needs of Landscape Plantings in California - The Landscape Coefficient Method and WUCOLS III". August 2000.
B47: http://www.water.ca.gov/wateruseefficiency/docs/wucols00.pdf

Sheet RWH 10-yr Simulation (hidden)
A2: ET Zone | B2: ='RWH Calculator'!C22 -> Eastern SF | G2: Cistern Vol (ft3) | H2: ='RWH Calculator'!C75 -> 1057.460087
A3: Tot Runoff Area (sf) | B3: ='RWH Calculator'!C64 -> 1200 | G3: Storm Percentile | H3: ='RWH Calculator'!C81 -> 0.9923 | S3: ETo Values (DWR 2005 - CIMIS) | Z3: Design Storms
A4: Avg. Runoff C | B4: ='RWH Calculator'!C65 -> 0.85 | S4: Zone 1 | T4: Zone 2 | U4: Zone 1 | V4: Zone 2 | Z4: 1-yr, 24-hr Design Storm - 2.65 in | AA4: 2001-01-01 | AB4: 2.65
S5: (in/mo) | T5: (In/mo) | U5: (in/day) | V5: (in/day) | AA5: 2010-12-31 | AB5: 2.65
A6: Ave. Irr C | B6: ='RWH Calculator'!C20 -> 0.70625 | R6: 1 | S6: 0.93 | T6: 1.24 | U6: =S6/31 -> 0.03 | V6: =T6/31 -> 0.04 | Z6: 2-yr, 24-hr Design Storm - 2.85 in | AA6: 2001-01-01 | AB6: 2.85
A7: Irrigation Eff | B7: ='RWH Calculator'!C21 -> 0.9 | R7: 2 | S7: 1.4 | T7: 1.68 | U7: =S7/28 -> 0.05 | V7: =T7/28 -> 0.06 | AA7: 2010-12-31 | AB7: 2.85
A8: Irrigation Area (sf) | B8: ='RWH Calculator'!C19 -> 800 | R8: 3 | S8: 2.48 | T8: 3.1 | U8: =S8/31 -> 0.08 | V8: =T8/31 -> 0.1
F9: Evapotranspiration | H9: Non-Potable Demand | K9: Rainwater Harvester Performance | R9: 4 | S9: 3.3 | T9: 3.9 | U9: =S9/30 -> 0.11 | V9: =T9/30 -> 0.13
A10: Date | B10: Simulated Precipitation (in/day) | C10: Runoff (gal/day) | D10: Runoff Collected (gal/day) | E10: M | F10: Reference ET (in/day) | G10: Actual ET (in/day) | H10: Irrigation Demand (gal/day) | I10: Indoor (gal/day) | J10: Total (gal/day) | K10: Water in Cistern (gal) | L10: Water Captured (gal/day) | M10: Water Used (gal/day) | N10: Overflow (gal/day) | O10: Net Water (gal/day) | P10: Cumulative Use (gal) | R10: 5 | S10: 4.03 | T10: 4.65 | U10: =S10/31 -> 0.13 | V10: =T10/31 -> 0.15
A11: 2001-01-01 | B11: 0 | C11: =$B$3*$B$4*(B11/12)*7.48 -> 0 | D11: =C11 -> 0 | E11: =MONTH(A11) -> 1 | F11: =IF($B$2="Western SF", VLOOKUP(E11,$R$6:$U$17, 4),VLOOKUP(E11, $R$6:$V$17,5)) -> 0.04 | G11: =F11*$B$6 -> 0.02825 | H11: =(IF(G11-B11>0,(G11-B11)/$B$7,0)/12*7.48)*$B$8 -> 15.65259259 | I11: ='RWH Calculator'!$C$56 -> 0 | J11: =H11+I11 -> 15.65259259 | K11: =IF(O11<0, 0, IF(O11>$H$2, $H$2, O11)) -> 0 | L11: =IF(J11>D11,D11, K11-0+J11) -> 0 | M11: =IF(D11+0>J11,J11, D11+0) -> 0 | N11: =IF(C11>J11, C11-J11-0,0) -> 0 | O11: =0+D11-J11 -> -15.65259259 | P11: =M11 -> 0 | R11: 6 | S11: 4.5 | T11: 5.1 | U11: =S11/30 -> 0.15 | V11: =T11/30 -> 0.17 | Z11: Water in Cistern
A12: 2001-01-02 | B12: 0 | C12: =$B$3*$B$4*(B12/12)*7.48 -> 0 | D12: =C12 -> 0 | E12: =MONTH(A12) -> 1 | F12: 0.04 | G12: =F12*$B$6 -> 0.02825 | H12: =(IF(G12-B12>0,(G12-B12)/$B$7,0)/12*7.48)*$B$8 -> 15.65259259 | I12: ='RWH Calculator'!$C$56 -> 0 | J12: =H12+I12 -> 15.65259259 | K12: =IF(O12<0, 0, IF(O12>$H$2, $H$2, O12)) -> 0 | L12: =IF(J12>D12,D12, K12-K11+J12) -> 0 | M12: =IF(D12+K11>J12,J12, D12+K11) -> 0 | N12: =IF(C12>J12, C12-J12-(K12-K11),0) -> 0 | O12: =K11+D12-J12 -> -15.65259259 | P12: =M12+P11 -> 0 | R12: 7 | S12: 4.65 | T12: 4.96 | U12: =S12/31 -> 0.15 | V12: =T12/31 -> 0.16 | Z12: Avg Water in Cistern before Storm (gal) | AA12: 2009-10-01 | AB12: ='RWH Calculator'!C76 -> 822.1672428
A13: 2001-01-03 | B13: 0 | C13: =$B$3*$B$4*(B13/12)*7.48 -> 0 | D13: =C13 -> 0 | E13: 1 | F13: 0.04 | G13: 0.02825 | H13: =(IF(G13-B13>0,(G13-B13)/$B$7,0)/12*7.48)*$B$8 -> 15.65259259 | I13: ='RWH Calculator'!$C$56 -> 0 | J13: 15.65259259 | K13: =IF(O13<0, 0, IF(O13>$H$2, $H$2, O13)) -> 0 | L13: =IF(J13>D13,D13, K13-K12+J13) -> 0 | M13: =IF(D13+K12>J13,J13, D13+K12) -> 0 | N13: =IF(C13>J13, C13-J13-(K13-K12),0) -> 0 | O13: =K12+D13-J13 -> -15.65259259 | P13: =M13+P12 -> 0 | R13: 8 | S13: 4.03 | T13: 4.65 | U13: =S13/31 -> 0.13 | V13: =T13/31 -> 0.15 | AA13: 2010-09-30 | AB13: ='RWH Calculator'!C76 -> 822.1672428
A14: 2001-01-04 | B14: 0 | C14: 0 | D14: 0 | E14: 1 | F14: 0.04 | G14: 0.02825 | H14: 15.65259259 | I14: ='RWH Calculator'!$C$56 -> 0 | J14: 15.65259259 | K14: 0 | L14: 0 | M14: 0 | N14: 0 | O14: -15.65259259 | P14: 0 | R14: 9 | S14: 3.3 | T14: 3.9 | U14: =S14/30 -> 0.11 | V14: =T14/30 -> 0.13 | Z14: Cistern Size (gal) | AA14: 2009-10-01 | AB14: ='RWH Calculator'!C75 -> 1057.460087
A15: 2001-01-05 | B15: 0 | C15: 0 | D15: 0 | E15: 1 | F15: 0.04 | G15: 0.02825 | H15: 15.65259259 | I15: ='RWH Calculator'!$C$56 -> 0 | J15: 15.65259259 | K15: 0 | L15: 0 | M15: 0 | N15: 0 | O15: -15.65259259 | P15: 0 | R15: 10 | S15: 2.48 | T15: 2.79 | U15: =S15/31 -> 0.08 | V15: =T15/31 -> 0.09 | AA15: 2010-09-30 | AB15: ='RWH Calculator'!C75 -> 1057.460087
A16: 2001-01-06 | B16: 0 | C16: 0 | D16: 0 | E16: 1 | F16: 0.04 | G16: 0.02825 | H16: 15.65259259 | I16: ='RWH Calculator'!$C$56 -> 0 | J16: 15.65259259 | K16: 0 | L16: 0 | M16: 0 | N16: 0 | O16: -15.65259259 | P16: 0 | R16: 11 | S16: 1.2 | T16: 1.8 | U16: =S16/30 -> 0.04 | V16: =T16/30 -> 0.06
A17: 2001-01-07 | B17: 0 | C17: 0 | D17: 0 | E17: 1 | F17: 0.04 | G17: 0.02825 | H17: 15.65259259 | I17: ='RWH Calculator'!$C$56 -> 0 | J17: 15.65259259 | K17: 0 | L17: 0 | M17: 0 | N17: 0 | O17: -15.65259259 | P17: 0 | R17: 12 | S17: 0.62 | T17: 1.24 | U17: =S17/31 -> 0.02 | V17: =T17/31 -> 0.04
A18: 2001-01-08 | B18: 0.56 | C18: 356.048 | D18: 356.048 | E18: 1 | F18: 0.04 | G18: 0.02825 | H18: 0 | I18: ='RWH Calculator'!$C$56 -> 0 | J18: 0 | K18: 356.048 | L18: 356.048 | M18: 0 | N18: 0 | O18: 356.048 | P18: 0 | R18: Total | S18: 32.9 | T18: 39
A19: 2001-01-09 | B19: 0.09 | C19: 57.222 | D19: 57.222 | E19: 1 | F19: 0.04 | G19: 0.02825 | H19: 0 | I19: ='RWH Calculator'!$C$56 -> 0 | J19: 0 | K19: 413.27 | L19: 57.222 | M19: 0 | N19: 2.131628207e-14 | O19: 413.27 | P19: 0
A20: 2001-01-10 | B20: 0.75 | C20: 476.85 | D20: 476.85 | E20: 1 | F20: 0.04 | G20: 0.02825 | H20: 0 | I20: ='RWH Calculator'!$C$56 -> 0 | J20: 0 | K20: 890.12 | L20: 476.85 | M20: 0 | N20: -5.684341886e-14 | O20: 890.12 | P20: 0
A21: 2001-01-11 | B21: 0.84 | C21: 534.072 | D21: 534.072 | E21: 1 | F21: 0.04 | G21: 0.02825 | H21: 0 | I21: ='RWH Calculator'!$C$56 -> 0 | J21: 0 | K21: 1057.460087 | L21: 167.3400872 | M21: 0 | N21: 366.7319128 | O21: 1424.192 | P21: 0
A22: 2001-01-12 | B22: 0.01 | C22: 6.358 | D22: 6.358 | E22: 1 | F22: 0.04 | G22: 0.02825 | H22: 10.11185185 | I22: ='RWH Calculator'!$C$56 -> 0 | J22: 10.11185185 | K22: 1053.706235 | L22: 6.358 | M22: 10.11185185 | N22: 0 | O22: 1053.706235 | P22: 10.11185185 | W22: TOTALS FOR 10-YEAR SIMULATION, BY MONTH | AK22: MONTHLY AVERAGES - FOR BAR GRAPHS
A23: 2001-01-13 | B23: 0 | C23: 0 | D23: 0 | E23: 1 | F23: 0.04 | G23: 0.02825 | H23: 15.65259259 | I23: ='RWH Calculator'!$C$56 -> 0 | J23: 15.65259259 | K23: 1038.053643 | L23: 0 | M23: 15.65259259 | N23: 0 | O23: 1038.053643 | P23: 25.76444444 | W23: Month | X23: Precipitation | Y23: Runoff | AA23: Evapotranspiration | AC23: Demand | AF23: Performance | AK23: Precipitation | AL23: Runoff | AN23: Evapotranspiration | AP23: Demand | AS23: Performance
A24: 2001-01-14 | B24: 0 | C24: 0 | D24: 0 | E24: 1 | F24: 0.04 | G24: 0.02825 | H24: 15.65259259 | I24: ='RWH Calculator'!$C$56 -> 0 | J24: 15.65259259 | K24: 1022.40105 | L24: 0 | M24: 15.65259259 | N24: 0 | O24: 1022.40105 | P24: 41.41703704 | Y24: Runoff (gal) | Z24: Runoff Collected (gal) | AA24: Reference ET (in) | AB24: Actual ET (in) | AC24: Irrigation (gal) | AD24: Indoor (gal) | AE24: Total (gal) | AF24: Water Captured (gal) | AG24: Water Used (gal) | AH24: Water in Cistern (gal) | AI24: Overflow (gal) | AL24: Runoff (gal) | AM24: Runoff Collected (gal) | AN24: Reference ET (in) | AO24: Actual ET (in) | AP24: Irrigation (gal) | AQ24: Indoor (gal) | AR24: Total (gal) | AS24: Water Captured (gal) | AT24: Water Used (gal) | AU24: Overflow (gal) | AV24: Capture + Overflow
A25: 2001-01-15 | B25: 0 | C25: 0 | D25: 0 | E25: 1 | F25: 0.04 | G25: 0.02825 | H25: 15.65259259 | I25: ='RWH Calculator'!$C$56 -> 0 | J25: 15.65259259 | K25: 1006.748458 | L25: 0 | M25: 15.65259259 | N25: 0 | O25: 1006.748458 | P25: 57.06962963 | W25: Jan | X25: =SUM(IF(MONTH($A$11:$A$3662)=1, B$11:B$3662, 0)) -> 36.56 | Y25: =SUM(IF(MONTH($A$11:$A$3662)=1, C$11:C$3662, 0)) -> 23244.848 | Z25: =SUM(IF(MONTH($A$11:$A$3662)=1, D$11:D$3662, 0)) -> 23244.848 | AA25: =SUM(IF(MONTH($A$11:$A$3662)=1, F$11:F$3662, 0)) -> 12.4 | AB25: =SUM(IF(MONTH($A$11:$A$3662)=1, G$11:G$3662, 0)) -> 8.7575 | AC25: =SUM(IF(MONTH($A$11:$A$3662)=1, H$11:H$3662, 0)) -> 3218.616296 | AD25: =SUM(IF(MONTH($A$11:$A$3662)=1, I$11:I$3662, 0)) -> 0 | AE25: =SUM(IF(MONTH($A$11:$A$3662)=1, J$11:J$3662, 0)) -> 3218.616296 | AF25: =SUM(IF(MONTH($A$11:$A$3662)=1, L$11:L$3662, 0)) -> 3892.878754 | AG25: =SUM(IF(MONTH($A$11:$A$3662)=1, M$11:M$3662, 0)) -> 3109.048148 | AH25: =SUM(IF(MONTH($A$11:$A$3662)=1, K$11:K$3662, 0)) -> 301185.0458 | AI25: =SUM(IF(MONTH($A$11:$A$3662)=1, N$11:N$3662, 0)) -> 19351.96925 | AK25: =X25/10 -> 3.656 | AL25: =Y25/10 -> 2324.4848 | AM25: =Z25/10 -> 2324.4848 | AN25: =AA25/10 -> 1.24 | AO25: =AB25/10 -> 0.87575 | AP25: =AC25/10 -> 321.8616296 | AQ25: =AD25/10 -> 0 | AR25: =AE25/10 -> 321.8616296 | AS25: =AF25/10 -> 389.2878754 | AT25: =AG25/10 -> 310.9048148 | AU25: =AI25/10 -> 1935.196925 | AV25: =AS25+AU25 -> 2324.4848
A26: 2001-01-16 | B26: 0 | C26: 0 | D26: 0 | E26: 1 | F26: 0.04 | G26: 0.02825 | H26: 15.65259259 | I26: ='RWH Calculator'!$C$56 -> 0 | J26: 15.65259259 | K26: 991.095865 | L26: 0 | M26: 15.65259259 | N26: 0 | O26: 991.095865 | P26: 72.72222222 | W26: Feb | X26: =SUM(IF(MONTH($A$11:$A$3662)=2, B$11:B$3662, 0)) -> 43.79 | Y26: =SUM(IF(MONTH($A$11:$A$3662)=2, C$11:C$3662, 0)) -> 27841.682 | Z26: =SUM(IF(MONTH($A$11:$A$3662)=2, D$11:D$3662, 0)) -> 27841.682 | AA26: =SUM(IF(MONTH($A$11:$A$3662)=2, F$11:F$3662, 0)) -> 16.92 | AB26: =SUM(IF(MONTH($A$11:$A$3662)=2, G$11:G$3662, 0)) -> 11.94975 | AC26: =SUM(IF(MONTH($A$11:$A$3662)=2, H$11:H$3662, 0)) -> 4097.17 | AD26: =SUM(IF(MONTH($A$11:$A$3662)=2, I$11:I$3662, 0)) -> 0 | AE26: =SUM(IF(MONTH($A$11:$A$3662)=2, J$11:J$3662, 0)) -> 4097.17 | AF26: =SUM(IF(MONTH($A$11:$A$3662)=2, L$11:L$3662, 0)) -> 4112.213111 | AG26: =SUM(IF(MONTH($A$11:$A$3662)=2, M$11:M$3662, 0)) -> 4097.17 | AH26: =SUM(IF(MONTH($A$11:$A$3662)=2, K$11:K$3662, 0)) -> 276117.0222 | AI26: =SUM(IF(MONTH($A$11:$A$3662)=2, N$11:N$3662, 0)) -> 23729.46889 | AK26: 4.379 | AL26: 2784.1682 | AM26: 2784.1682 | AN26: 1.692 | AO26: 1.194975 | AP26: 409.717 | AQ26: 0 | AR26: 409.717 | AS26: 411.2213111 | AT26: 409.717 | AU26: 2372.946889 | AV26: =AS26+AU26 -> 2784.1682
A27: 2001-01-17 | B27: 0 | C27: 0 | D27: 0 | E27: 1 | F27: 0.04 | G27: 0.02825 | H27: 15.65259259 | I27: ='RWH Calculator'!$C$56 -> 0 | J27: 15.65259259 | K27: 975.4432724 | L27: 0 | M27: 15.65259259 | N27: 0 | O27: 975.4432724 | P27: 88.37481481 | W27: Mar | X27: =SUM(IF(MONTH($A$11:$A$3662)=3, B$11:B$3662, 0)) -> 25.68 | Y27: =SUM(IF(MONTH($A$11:$A$3662)=3, C$11:C$3662, 0)) -> 16327.344 | Z27: =SUM(IF(MONTH($A$11:$A$3662)=3, D$11:D$3662, 0)) -> 16327.344 | AA27: =SUM(IF(MONTH($A$11:$A$3662)=3, F$11:F$3662, 0)) -> 31 | AB27: =SUM(IF(MONTH($A$11:$A$3662)=3, G$11:G$3662, 0)) -> 21.89375 | AC27: =SUM(IF(MONTH($A$11:$A$3662)=3, H$11:H$3662, 0)) -> 9167.155556 | AD27: =SUM(IF(MONTH($A$11:$A$3662)=3, I$11:I$3662, 0)) -> 0 | AE27: =SUM(IF(MONTH($A$11:$A$3662)=3, J$11:J$3662, 0)) -> 9167.155556 | AF27: =SUM(IF(MONTH($A$11:$A$3662)=3, L$11:L$3662, 0)) -> 4766.311407 | AG27: =SUM(IF(MONTH($A$11:$A$3662)=3, M$11:M$3662, 0)) -> 9167.155556 | AH27: =SUM(IF(MONTH($A$11:$A$3662)=3, K$11:K$3662, 0)) -> 234736.5075 | AI27: =SUM(IF(MONTH($A$11:$A$3662)=3, N$11:N$3662, 0)) -> 11561.03259 | AK27: 2.568 | AL27: 1632.7344 | AM27: 1632.7344 | AN27: 3.1 | AO27: 2.189375 | AP27: 916.7155556 | AQ27: 0 | AR27: 916.7155556 | AS27: 476.6311407 | AT27: 916.7155556 | AU27: 1156.103259 | AV27: 1632.7344
A28: 2001-01-18 | B28: 0 | C28: 0 | D28: 0 | E28: 1 | F28: 0.04 | G28: 0.02825 | H28: 15.65259259 | I28: ='RWH Calculator'!$C$56 -> 0 | J28: 15.65259259 | K28: 959.7906798 | L28: 0 | M28: 15.65259259 | N28: 0 | O28: 959.7906798 | P28: 104.0274074 | W28: Apr | X28: =SUM(IF(MONTH($A$11:$A$3662)=4, B$11:B$3662, 0)) -> 14.36 | Y28: =SUM(IF(MONTH($A$11:$A$3662)=4, C$11:C$3662, 0)) -> 9130.088 | Z28: =SUM(IF(MONTH($A$11:$A$3662)=4, D$11:D$3662, 0)) -> 9130.088 | AA28: =SUM(IF(MONTH($A$11:$A$3662)=4, F$11:F$3662, 0)) -> 39 | AB28: =SUM(IF(MONTH($A$11:$A$3662)=4, G$11:G$3662, 0)) -> 27.54375 | AC28: =SUM(IF(MONTH($A$11:$A$3662)=4, H$11:H$3662, 0)) -> 13085.39426 | AD28: =SUM(IF(MONTH($A$11:$A$3662)=4, I$11:I$3662, 0)) -> 0 | AE28: =SUM(IF(MONTH($A$11:$A$3662)=4, J$11:J$3662, 0)) -> 13085.39426 | AF28: =SUM(IF(MONTH($A$11:$A$3662)=4, L$11:L$3662, 0)) -> 4594.700815 | AG28: =SUM(IF(MONTH($A$11:$A$3662)=4, M$11:M$3662, 0)) -> 8215.580573 | AH28: =SUM(IF(MONTH($A$11:$A$3662)=4, K$11:K$3662, 0)) -> 100530.8969 | AI28: =SUM(IF(MONTH($A$11:$A$3662)=4, N$11:N$3662, 0)) -> 4535.387185 | AK28: 1.436 | AL28: 913.0088 | AM28: 913.0088 | AN28: 3.9 | AO28: 2.754375 | AP28: 1308.539426 | AQ28: 0 | AR28: 1308.539426 | AS28: 459.4700815 | AT28: 821.5580573 | AU28: 453.5387185 | AV28: 913.0088
A29: 2001-01-19 | B29: 0 | C29: 0 | D29: 0 | E29: 1 | F29: 0.04 | G29: 0.02825 | H29: 15.65259259 | I29: ='RWH Calculator'!$C$56 -> 0 | J29: 15.65259259 | K29: 944.1380872 | L29: 0 | M29: 15.65259259 | N29: 0 | O29: 944.1380872 | P29: 119.68 | W29: May | X29: =SUM(IF(MONTH($A$11:$A$3662)=5, B$11:B$3662, 0)) -> 4.9 | Y29: =SUM(IF(MONTH($A$11:$A$3662)=5, C$11:C$3662, 0)) -> 3115.42 | Z29: =SUM(IF(MONTH($A$11:$A$3662)=5, D$11:D$3662, 0)) -> 3115.42 | AA29: =SUM(IF(MONTH($A$11:$A$3662)=5, F$11:F$3662, 0)) -> 46.5 | AB29: =SUM(IF(MONTH($A$11:$A$3662)=5, G$11:G$3662, 0)) -> 32.840625 | AC29: =SUM(IF(MONTH($A$11:$A$3662)=5, H$11:H$3662, 0)) -> 16953.45463 | AD29: =SUM(IF(MONTH($A$11:$A$3662)=5, I$11:I$3662, 0)) -> 0 | AE29: =SUM(IF(MONTH($A$11:$A$3662)=5, J$11:J$3662, 0)) -> 16953.45463 | AF29: =SUM(IF(MONTH($A$11:$A$3662)=5, L$11:L$3662, 0)) -> 3115.42 | AG29: =SUM(IF(MONTH($A$11:$A$3662)=5, M$11:M$3662, 0)) -> 5162.406558 | AH29: =SUM(IF(MONTH($A$11:$A$3662)=5, K$11:K$3662, 0)) -> 24869.52167 | AI29: =SUM(IF(MONTH($A$11:$A$3662)=5, N$11:N$3662, 0)) -> -1.811883976e-13 | AK29: 0.49 | AL29: 311.542 | AM29: 311.542 | AN29: 4.65 | AO29: 3.2840625 | AP29: 1695.345463 | AQ29: 0 | AR29: 1695.345463 | AS29: 311.542 | AT29: 516.2406558 | AU29: -1.811883976e-14 | AV29: 311.542
A30: 2001-01-20 | B30: 0 | C30: 0 | D30: 0 | E30: 1 | F30: 0.04 | G30: 0.02825 | H30: 15.65259259 | I30: ='RWH Calculator'!$C$56 -> 0 | J30: 15.65259259 | K30: 928.4854946 | L30: 0 | M30: 15.65259259 | N30: 0 | O30: 928.4854946 | P30: 135.3325926 | W30: Jun | X30: =SUM(IF(MONTH($A$11:$A$3662)=6, B$11:B$3662, 0)) -> 1.19 | Y30: =SUM(IF(MONTH($A$11:$A$3662)=6, C$11:C$3662, 0)) -> 756.602 | Z30: =SUM(IF(MONTH($A$11:$A$3662)=6, D$11:D$3662, 0)) -> 756.602 | AA30: =SUM(IF(MONTH($A$11:$A$3662)=6, F$11:F$3662, 0)) -> 51 | AB30: =SUM(IF(MONTH($A$11:$A$3662)=6, G$11:G$3662, 0)) -> 36.01875 | AC30: =SUM(IF(MONTH($A$11:$A$3662)=6, H$11:H$3662, 0)) -> 19624.47259 | AD30: =SUM(IF(MONTH($A$11:$A$3662)=6, I$11:I$3662, 0)) -> 0 | AE30: =SUM(IF(MONTH($A$11:$A$3662)=6, J$11:J$3662, 0)) -> 19624.47259 | AF30: =SUM(IF(MONTH($A$11:$A$3662)=6, L$11:L$3662, 0)) -> 756.602 | AG30: =SUM(IF(MONTH($A$11:$A$3662)=6, M$11:M$3662, 0)) -> 792.9146296 | AH30: =SUM(IF(MONTH($A$11:$A$3662)=6, K$11:K$3662, 0)) -> 2855.330704 | AI30: =SUM(IF(MONTH($A$11:$A$3662)=6, N$11:N$3662, 0)) -> 2.842170943e-14 | AK30: 0.119 | AL30: 75.6602 | AM30: 75.6602 | AN30: 5.1 | AO30: 3.601875 | AP30: 1962.447259 | AQ30: 0 | AR30: 1962.447259 | AS30: 75.6602 | AT30: 79.29146296 | AU30: 2.842170943e-15 | AV30: 75.6602
A31: 2001-01-21 | B31: 0 | C31: 0 | D31: 0 | E31: 1 | F31: 0.04 | G31: 0.02825 | H31: 15.65259259 | I31: ='RWH Calculator'!$C$56 -> 0 | J31: 15.65259259 | K31: 912.832902 | L31: 0 | M31: 15.65259259 | N31: 0 | O31: 912.832902 | P31: 150.9851852 | W31: Jul | X31: =SUM(IF(MONTH($A$11:$A$3662)=7, B$11:B$3662, 0)) -> 0.05 | Y31: =SUM(IF(MONTH($A$11:$A$3662)=7, C$11:C$3662, 0)) -> 31.79 | Z31: =SUM(IF(MONTH($A$11:$A$3662)=7, D$11:D$3662, 0)) -> 31.79 | AA31: =SUM(IF(MONTH($A$11:$A$3662)=7, F$11:F$3662, 0)) -> 49.6 | AB31: =SUM(IF(MONTH($A$11:$A$3662)=7, G$11:G$3662, 0)) -> 35.03 | AC31: =SUM(IF(MONTH($A$11:$A$3662)=7, H$11:H$3662, 0)) -> 19381.51111 | AD31: =SUM(IF(MONTH($A$11:$A$3662)=7, I$11:I$3662, 0)) -> 0 | AE31: =SUM(IF(MONTH($A$11:$A$3662)=7, J$11:J$3662, 0)) -> 19381.51111 | AF31: =SUM(IF(MONTH($A$11:$A$3662)=7, L$11:L$3662, 0)) -> 31.79 | AG31: =SUM(IF(MONTH($A$11:$A$3662)=7, M$11:M$3662, 0)) -> 31.79 | AH31: =SUM(IF(MONTH($A$11:$A$3662)=7, K$11:K$3662, 0)) -> 0 | AI31: =SUM(IF(MONTH($A$11:$A$3662)=7, N$11:N$3662, 0)) -> 0 | AK31: 0.005 | AL31: 3.179 | AM31: 3.179 | AN31: 4.96 | AO31: 3.503 | AP31: 1938.151111 | AQ31: 0 | AR31: 1938.151111 | AS31: 3.179 | AT31: 3.179 | AU31: 0 | AV31: 3.179
A32: 2001-01-22 | B32: 0 | C32: 0 | D32: 0 | E32: 1 | F32: 0.04 | G32: 0.02825 | H32: 15.65259259 | I32: ='RWH Calculator'!$C$56 -> 0 | J32: 15.65259259 | K32: 897.1803094 | L32: 0 | M32: 15.65259259 | N32: 0 | O32: 897.1803094 | P32: 166.6377778 | W32: Aug | X32: =SUM(IF(MONTH($A$11:$A$3662)=8, B$11:B$3662, 0)) -> 0.13 | Y32: =SUM(IF(MONTH($A$11:$A$3662)=8, C$11:C$3662, 0)) -> 82.654 | Z32: =SUM(IF(MONTH($A$11:$A$3662)=8, D$11:D$3662, 0)) -> 82.654 | AA32: =SUM(IF(MONTH($A$11:$A$3662)=8, F$11:F$3662, 0)) -> 46.5 | AB32: =SUM(IF(MONTH($A$11:$A$3662)=8, G$11:G$3662, 0)) -> 32.840625 | AC32: =SUM(IF(MONTH($A$11:$A$3662)=8, H$11:H$3662, 0)) -> 18124.10926 | AD32: =SUM(IF(MONTH($A$11:$A$3662)=8, I$11:I$3662, 0)) -> 0 | AE32: =SUM(IF(MONTH($A$11:$A$3662)=8, J$11:J$3662, 0)) -> 18124.10926 | AF32: =SUM(IF(MONTH($A$11:$A$3662)=8, L$11:L$3662, 0)) -> 82.654 | AG32: =SUM(IF(MONTH($A$11:$A$3662)=8, M$11:M$3662, 0)) -> 82.654 | AH32: =SUM(IF(MONTH($A$11:$A$3662)=8, K$11:K$3662, 0)) -> 0 | AI32: =SUM(IF(MONTH($A$11:$A$3662)=8, N$11:N$3662, 0)) -> 0 | AK32: 0.013 | AL32: 8.2654 | AM32: 8.2654 | AN32: 4.65 | AO32: 3.2840625 | AP32: 1812.410926 | AQ32: 0 | AR32: 1812.410926 | AS32: 8.2654 | AT32: 8.2654 | AU32: 0 | AV32: 8.2654
A33: 2001-01-23 | B33: 0.45 | C33: 286.11 | D33: 286.11 | E33: 1 | F33: 0.04 | G33: 0.02825 | H33: 0 | I33: ='RWH Calculator'!$C$56 -> 0 | J33: 0 | K33: 1057.460087 | L33: 160.2797778 | M33: 0 | N33: 125.8302222 | O33: 1183.290309 | P33: 166.6377778 | W33: Sep | X33: =SUM(IF(MONTH($A$11:$A$3662)=9, B$11:B$3662, 0)) -> 0.62 | Y33: =SUM(IF(MONTH($A$11:$A$3662)=9, C$11:C$3662, 0)) -> 394.196 | Z33: =SUM(IF(MONTH($A$11:$A$3662)=9, D$11:D$3662, 0)) -> 394.196 | AA33: =SUM(IF(MONTH($A$11:$A$3662)=9, F$11:F$3662, 0)) -> 39 | AB33: =SUM(IF(MONTH($A$11:$A$3662)=9, G$11:G$3662, 0)) -> 27.54375 | AC33: =SUM(IF(MONTH($A$11:$A$3662)=9, H$11:H$3662, 0)) -> 15037.63963 | AD33: =SUM(IF(MONTH($A$11:$A$3662)=9, I$11:I$3662, 0)) -> 0 | AE33: =SUM(IF(MONTH($A$11:$A$3662)=9, J$11:J$3662, 0)) -> 15037.63963 | AF33: =SUM(IF(MONTH($A$11:$A$3662)=9, L$11:L$3662, 0)) -> 394.196 | AG33: =SUM(IF(MONTH($A$11:$A$3662)=9, M$11:M$3662, 0)) -> 394.196 | AH33: =SUM(IF(MONTH($A$11:$A$3662)=9, K$11:K$3662, 0)) -> 543.0964815 | AI33: =SUM(IF(MONTH($A$11:$A$3662)=9, N$11:N$3662, 0)) -> 0 | AK33: 0.062 | AL33: 39.4196 | AM33: 39.4196 | AN33: 3.9 | AO33: 2.754375 | AP33: 1503.763963 | AQ33: 0 | AR33: 1503.763963 | AS33: 39.4196 | AT33: 39.4196 | AU33: 0 | AV33: 39.4196
A34: 2001-01-24 | B34: 0.18 | C34: 114.444 | D34: 114.444 | E34: 1 | F34: 0.04 | G34: 0.02825 | H34: 0 | I34: ='RWH Calculator'!$C$56 -> 0 | J34: 0 | K34: 1057.460087 | L34: 0 | M34: 0 | N34: 114.444 | O34: 1171.904087 | P34: 166.6377778 | W34: Oct | X34: =SUM(IF(MONTH($A$11:$A$3662)=10, B$11:B$3662, 0)) -> 11.53 | Y34: =SUM(IF(MONTH($A$11:$A$3662)=10, C$11:C$3662, 0)) -> 7330.774 | Z34: =SUM(IF(MONTH($A$11:$A$3662)=10, D$11:D$3662, 0)) -> 7330.774 | AA34: =SUM(IF(MONTH($A$11:$A$3662)=10, F$11:F$3662, 0)) -> 27.9 | AB34: =SUM(IF(MONTH($A$11:$A$3662)=10, G$11:G$3662, 0)) -> 19.704375 | AC34: =SUM(IF(MONTH($A$11:$A$3662)=10, H$11:H$3662, 0)) -> 9920.869444 | AD34: =SUM(IF(MONTH($A$11:$A$3662)=10, I$11:I$3662, 0)) -> 0 | AE34: =SUM(IF(MONTH($A$11:$A$3662)=10, J$11:J$3662, 0)) -> 9920.869444 | AF34: =SUM(IF(MONTH($A$11:$A$3662)=10, L$11:L$3662, 0)) -> 6109.180632 | AG34: =SUM(IF(MONTH($A$11:$A$3662)=10, M$11:M$3662, 0)) -> 2579.685778 | AH34: =SUM(IF(MONTH($A$11:$A$3662)=10, K$11:K$3662, 0)) -> 57107.11366 | AI34: =SUM(IF(MONTH($A$11:$A$3662)=10, N$11:N$3662, 0)) -> 1221.593368 | AK34: 1.153 | AL34: 733.0774 | AM34: 733.0774 | AN34: 2.79 | AO34: 1.9704375 | AP34: 992.0869444 | AQ34: 0 | AR34: 992.0869444 | AS34: 610.9180632 | AT34: 257.9685778 | AU34: 122.1593368 | AV34: 733.0774
A35: 2001-01-25 | B35: 0.7 | C35: 445.06 | D35: 445.06 | E35: 1 | F35: 0.04 | G35: 0.02825 | H35: 0 | I35: ='RWH Calculator'!$C$56 -> 0 | J35: 0 | K35: 1057.460087 | L35: 0 | M35: 0 | N35: 445.06 | O35: 1502.520087 | P35: 166.6377778 | W35: Nov | X35: =SUM(IF(MONTH($A$11:$A$3662)=11, B$11:B$3662, 0)) -> 23.54 | Y35: =SUM(IF(MONTH($A$11:$A$3662)=11, C$11:C$3662, 0)) -> 14966.732 | Z35: =SUM(IF(MONTH($A$11:$A$3662)=11, D$11:D$3662, 0)) -> 14966.732 | AA35: =SUM(IF(MONTH($A$11:$A$3662)=11, F$11:F$3662, 0)) -> 18 | AB35: =SUM(IF(MONTH($A$11:$A$3662)=11, G$11:G$3662, 0)) -> 12.7125 | AC35: =SUM(IF(MONTH($A$11:$A$3662)=11, H$11:H$3662, 0)) -> 5538.870741 | AD35: =SUM(IF(MONTH($A$11:$A$3662)=11, I$11:I$3662, 0)) -> 0 | AE35: =SUM(IF(MONTH($A$11:$A$3662)=11, J$11:J$3662, 0)) -> 5538.870741 | AF35: =SUM(IF(MONTH($A$11:$A$3662)=11, L$11:L$3662, 0)) -> 9894.592584 | AG35: =SUM(IF(MONTH($A$11:$A$3662)=11, M$11:M$3662, 0)) -> 5362.93837 | AH35: =SUM(IF(MONTH($A$11:$A$3662)=11, K$11:K$3662, 0)) -> 204877.3926 | AI35: =SUM(IF(MONTH($A$11:$A$3662)=11, N$11:N$3662, 0)) -> 5072.139416 | AK35: 2.354 | AL35: 1496.6732 | AM35: 1496.6732 | AN35: 1.8 | AO35: 1.27125 | AP35: 553.8870741 | AQ35: 0 | AR35: 553.8870741 | AS35: 989.4592584 | AT35: 536.293837 | AU35: 507.2139416 | AV35: 1496.6732
A36: 2001-01-26 | B36: 0.04 | C36: 25.432 | D36: 25.432 | E36: 1 | F36: 0.04 | G36: 0.02825 | H36: 0 | I36: ='RWH Calculator'!$C$56 -> 0 | J36: 0 | K36: 1057.460087 | L36: 0 | M36: 0 | N36: 25.432 | O36: 1082.892087 | P36: 166.6377778 | W36: Dec | X36: =SUM(IF(MONTH($A$11:$A$3662)=12, B$11:B$3662, 0)) -> 70.38 | Y36: =SUM(IF(MONTH($A$11:$A$3662)=12, C$11:C$3662, 0)) -> 44747.604 | Z36: =SUM(IF(MONTH($A$11:$A$3662)=12, D$11:D$3662, 0)) -> 44747.604 | AA36: =SUM(IF(MONTH($A$11:$A$3662)=12, F$11:F$3662, 0)) -> 12.4 | AB36: =SUM(IF(MONTH($A$11:$A$3662)=12, G$11:G$3662, 0)) -> 8.7575 | AC36: =SUM(IF(MONTH($A$11:$A$3662)=12, H$11:H$3662, 0)) -> 2728.537778 | AD36: =SUM(IF(MONTH($A$11:$A$3662)=12, I$11:I$3662, 0)) -> 0 | AE36: =SUM(IF(MONTH($A$11:$A$3662)=12, J$11:J$3662, 0)) -> 2728.537778 | AF36: =SUM(IF(MONTH($A$11:$A$3662)=12, L$11:L$3662, 0)) -> 4999.692989 | AG36: =SUM(IF(MONTH($A$11:$A$3662)=12, M$11:M$3662, 0)) -> 2728.537778 | AH36: =SUM(IF(MONTH($A$11:$A$3662)=12, K$11:K$3662, 0)) -> 297920.4415 | AI36: =SUM(IF(MONTH($A$11:$A$3662)=12, N$11:N$3662, 0)) -> 39747.91101 | AK36: 7.038 | AL36: 4474.7604 | AM36: 4474.7604 | AN36: 1.24 | AO36: 0.87575 | AP36: 272.8537778 | AQ36: 0 | AR36: 272.8537778 | AS36: 499.9692989 | AT36: 272.8537778 | AU36: 3974.791101 | AV36: 4474.7604
A37: 2001-01-27 | B37: 0 | C37: 0 | D37: 0 | E37: 1 | F37: 0.04 | G37: 0.02825 | H37: 15.65259259 | I37: ='RWH Calculator'!$C$56 -> 0 | J37: 15.65259259 | K37: 1041.807495 | L37: 0 | M37: 15.65259259 | N37: 0 | O37: 1041.807495 | P37: 182.2903704 | W37: Total | X37: =SUM(X25:X36) -> 232.73 | Y37: 147969.734 | Z37: 147969.734 | AA37: 390.22 | AB37: 275.592875 | AC37: 136877.8013 | AD37: 0 | AE37: 136877.8013 | AF37: 42750.23229 | AG37: 41724.07739 | AH37: 1500742.369 | AI37: 105219.5017 | AK37: 23.273 | AL37: 14796.9734 | AM37: 14796.9734 | AN37: 39.022 | AO37: 27.5592875 | AP37: 13687.78013 | AQ37: 0 | AR37: 13687.78013 | AS37: 4275.023229 | AT37: 4172.407739 | AU37: 10521.95017 | AV37: 14796.9734
A38: 2001-01-28 | B38: 0 | C38: 0 | D38: 0 | E38: 1 | F38: 0.04 | G38: 0.02825 | H38: 15.65259259 | I38: ='RWH Calculator'!$C$56 -> 0 | J38: 15.65259259 | K38: 1026.154902 | L38: 0 | M38: 15.65259259 | N38: 0 | O38: 1026.154902 | P38: 197.942963
A39: 2001-01-29 | B39: 0.14 | C39: 89.012 | D39: 89.012 | E39: 1 | F39: 0.04 | G39: 0.02825 | H39: 0 | I39: ='RWH Calculator'!$C$56 -> 0 | J39: 0 | K39: 1057.460087 | L39: 31.30518519 | M39: 0 | N39: 57.70681481 | O39: 1115.166902 | P39: 197.942963
A40: 2001-01-30 | B40: 0 | C40: 0 | D40: 0 | E40: 1 | F40: 0.04 | G40: 0.02825 | H40: 15.65259259 | I40: ='RWH Calculator'!$C$56 -> 0 | J40: 15.65259259 | K40: 1041.807495 | L40: 0 | M40: 15.65259259 | N40: 0 | O40: 1041.807495 | P40: 213.5955556 | W40: TOTALS FOR 10-YEAR SIMULATION, BY YEAR
A41: 2001-01-31 | B41: 0 | C41: 0 | D41: 0 | E41: 1 | F41: 0.04 | G41: 0.02825 | H41: 15.65259259 | I41: ='RWH Calculator'!$C$56 -> 0 | J41: 15.65259259 | K41: 1026.154902 | L41: 0 | M41: 15.65259259 | N41: 0 | O41: 1026.154902 | P41: 229.2481481 | W41: Year | X41: Precipitation | Y41: Runoff | AA41: Evapotranspiration | AC41: Demand | AF41: Performance | AJ41: Avg. Annual Runoff Captured and Reused % | AK41: Avg. Annual Demand Met by RWH %
A42: 2001-02-01 | B42: 0 | C42: 0 | D42: 0 | E42: 2 | F42: 0.06 | G42: 0.042375 | H42: 23.47888889 | I42: ='RWH Calculator'!$C$56 -> 0 | J42: 23.47888889 | K42: 1002.676013 | L42: 0 | M42: 23.47888889 | N42: 0 | O42: 1002.676013 | P42: 252.727037 | Y42: Runoff (gal) | Z42: Runoff Collected (gal) | AA42: Reference ET (in) | AB42: Actual ET (in) | AC42: Irrigation (gal) | AD42: Indoor (gal) | AE42: Total (gal) | AF42: Water Captured (gal) | AG42: Water Used (gal) | AH42: Water in Cistern (gal) | AI42: Overflow (gal)
A43: 2001-02-02 | B43: 0 | C43: 0 | D43: 0 | E43: 2 | F43: 0.06 | G43: 0.042375 | H43: 23.47888889 | I43: ='RWH Calculator'!$C$56 -> 0 | J43: 23.47888889 | K43: 979.1971242 | L43: 0 | M43: 23.47888889 | N43: 0 | O43: 979.1971242 | P43: 276.2059259 | W43: 2001 | X43: =SUM(IF(YEAR($A$11:$A$3662)=$W$43, B$11:B$3662, 0)) -> 31.75 | Y43: =SUM(IF(YEAR($A$11:$A$3662)=$W$43, C$11:C$3662, 0)) -> 20186.65 | Z43: =SUM(IF(YEAR($A$11:$A$3662)=$W$43, D$11:D$3662, 0)) -> 20186.65 | AA43: =SUM(IF(YEAR($A$11:$A$3662)=$W$43, F$11:F$3662, 0)) -> 39.01 | AB43: =SUM(IF(YEAR($A$11:$A$3662)=$W$43, G$11:G$3662, 0)) -> 27.5508125 | AC43: =SUM(IF(YEAR($A$11:$A$3662)=$W$43, H$11:H$3662, 0)) -> 13505.76333 | AD43: =SUM(IF(YEAR($A$11:$A$3662)=$W$43, I$11:I$3662, 0)) -> 0 | AE43: =SUM(IF(YEAR($A$11:$A$3662)=$W$43, J$11:J$3662, 0)) -> 13505.76333 | AF43: =SUM(IF(YEAR($A$11:$A$3662)=$W$43, L$11:L$3662, 0)) -> 4889.70236 | AG43: =SUM(IF(YEAR($A$11:$A$3662)=$W$43, M$11:M$3662, 0)) -> 3832.242272 | AH43: =SUM(IF(YEAR($A$11:$A$3662)=$W$43, K$11:K$3662, 0)) -> 136395.1861 | AI43: =SUM(IF(YEAR($A$11:$A$3662)=$W$43, N$11:N$3662, 0)) -> 15296.94764 | AJ43: =AF43/Z43 -> 0.2422245573 | AK43: =AG43/AE43 -> 0.2837486618
A44: 2001-02-03 | B44: 0 | C44: 0 | D44: 0 | E44: 2 | F44: 0.06 | G44: 0.042375 | H44: 23.47888889 | I44: ='RWH Calculator'!$C$56 -> 0 | J44: 23.47888889 | K44: 955.7182353 | L44: 0 | M44: 23.47888889 | N44: 0 | O44: 955.7182353 | P44: 299.6848148 | W44: 2002 | X44: =SUM(IF(YEAR($A$11:$A$3662)=$W$44, B$11:B$3662, 0)) -> 22.46 | Y44: =SUM(IF(YEAR($A$11:$A$3662)=$W$44, C$11:C$3662, 0)) -> 14280.068 | Z44: =SUM(IF(YEAR($A$11:$A$3662)=$W$44, D$11:D$3662, 0)) -> 14280.068 | AA44: =SUM(IF(YEAR($A$11:$A$3662)=$W$44, F$11:F$3662, 0)) -> 39.01 | AB44: =SUM(IF(YEAR($A$11:$A$3662)=$W$44, G$11:G$3662, 0)) -> 27.5508125 | AC44: =SUM(IF(YEAR($A$11:$A$3662)=$W$44, H$11:H$3662, 0)) -> 13990.23185 | AD44: =SUM(IF(YEAR($A$11:$A$3662)=$W$44, I$11:I$3662, 0)) -> 0 | AE44: =SUM(IF(YEAR($A$11:$A$3662)=$W$44, J$11:J$3662, 0)) -> 13990.23185 | AF44: =SUM(IF(YEAR($A$11:$A$3662)=$W$44, L$11:L$3662, 0)) -> 4139.303198 | AG44: =SUM(IF(YEAR($A$11:$A$3662)=$W$44, M$11:M$3662, 0)) -> 4139.303198 | AH44: =SUM(IF(YEAR($A$11:$A$3662)=$W$44, K$11:K$3662, 0)) -> 145120.7037 | AI44: =SUM(IF(YEAR($A$11:$A$3662)=$W$44, N$11:N$3662, 0)) -> 10140.7648 | AJ44: =AF44/Z44 -> 0.2898657904 | AK44: =AG44/AE44 -> 0.2958709507
A45: 2001-02-04 | B45: 0 | C45: 0 | D45: 0 | E45: 2 | F45: 0.06 | G45: 0.042375 | H45: 23.47888889 | I45: ='RWH Calculator'!$C$56 -> 0 | J45: 23.47888889 | K45: 932.2393465 | L45: 0 | M45: 23.47888889 | N45: 0 | O45: 932.2393465 | P45: 323.1637037 | W45: 2003 | X45: =SUM(IF(YEAR($A$11:$A$3662)=$W$45, B$11:B$3662, 0)) -> 14.32 | Y45: =SUM(IF(YEAR($A$11:$A$3662)=$W$45, C$11:C$3662, 0)) -> 9104.656 | Z45: =SUM(IF(YEAR($A$11:$A$3662)=$W$45, D$11:D$3662, 0)) -> 9104.656 | AA45: =SUM(IF(YEAR($A$11:$A$3662)=$W$45, F$11:F$3662, 0)) -> 39.01 | AB45: =SUM(IF(YEAR($A$11:$A$3662)=$W$45, G$11:G$3662, 0)) -> 27.5508125 | AC45: =SUM(IF(YEAR($A$11:$A$3662)=$W$45, H$11:H$3662, 0)) -> 14390.03093 | AD45: =SUM(IF(YEAR($A$11:$A$3662)=$W$45, I$11:I$3662, 0)) -> 0 | AE45: =SUM(IF(YEAR($A$11:$A$3662)=$W$45, J$11:J$3662, 0)) -> 14390.03093 | AF45: =SUM(IF(YEAR($A$11:$A$3662)=$W$45, L$11:L$3662, 0)) -> 3099.139939 | AG45: =SUM(IF(YEAR($A$11:$A$3662)=$W$45, M$11:M$3662, 0)) -> 3114.792532 | AH45: =SUM(IF(YEAR($A$11:$A$3662)=$W$45, K$11:K$3662, 0)) -> 128659.708 | AI45: =SUM(IF(YEAR($A$11:$A$3662)=$W$45, N$11:N$3662, 0)) -> 6005.516061 | AJ45: 0.3403906681 | AK45: 0.2164548879
A46: 2001-02-05 | B46: 0 | C46: 0 | D46: 0 | E46: 2 | F46: 0.06 | G46: 0.042375 | H46: 23.47888889 | I46: ='RWH Calculator'!$C$56 -> 0 | J46: 23.47888889 | K46: 908.7604576 | L46: 0 | M46: 23.47888889 | N46: 0 | O46: 908.7604576 | P46: 346.6425926 | W46: 2004 | X46: =SUM(IF(YEAR($A$11:$A$3662)=$W$46, B$11:B$3662, 0)) -> 23.19 | Y46: =SUM(IF(YEAR($A$11:$A$3662)=$W$46, C$11:C$3662, 0)) -> 14744.202 | Z46: =SUM(IF(YEAR($A$11:$A$3662)=$W$46, D$11:D$3662, 0)) -> 14744.202 | AA46: =SUM(IF(YEAR($A$11:$A$3662)=$W$46, F$11:F$3662, 0)) -> 39.07 | AB46: =SUM(IF(YEAR($A$11:$A$3662)=$W$46, G$11:G$3662, 0)) -> 27.5931875 | AC46: =SUM(IF(YEAR($A$11:$A$3662)=$W$46, H$11:H$3662, 0)) -> 14040.82574 | AD46: =SUM(IF(YEAR($A$11:$A$3662)=$W$46, I$11:I$3662, 0)) -> 0 | AE46: =SUM(IF(YEAR($A$11:$A$3662)=$W$46, J$11:J$3662, 0)) -> 14040.82574 | AF46: =SUM(IF(YEAR($A$11:$A$3662)=$W$46, L$11:L$3662, 0)) -> 3754.055495 | AG46: =SUM(IF(YEAR($A$11:$A$3662)=$W$46, M$11:M$3662, 0)) -> 3738.402902 | AH46: =SUM(IF(YEAR($A$11:$A$3662)=$W$46, K$11:K$3662, 0)) -> 151262.4251 | AI46: =SUM(IF(YEAR($A$11:$A$3662)=$W$46, N$11:N$3662, 0)) -> 10990.14651 | AJ46: 0.2546123211 | AK46: 0.2662523537
A47: 2001-02-06 | B47: 0.04 | C47: 25.432 | D47: 25.432 | E47: 2 | F47: 0.06 | G47: 0.042375 | H47: 1.315925926 | I47: ='RWH Calculator'!$C$56 -> 0 | J47: 1.315925926 | K47: 932.8765316 | L47: 25.432 | M47: 1.315925926 | N47: 2.842170943e-14 | O47: 932.8765316 | P47: 347.9585185 | W47: 2005 | X47: =SUM(IF(YEAR($A$11:$A$3662)=$W$47, B$11:B$3662, 0)) -> 32.32 | Y47: =SUM(IF(YEAR($A$11:$A$3662)=$W$47, C$11:C$3662, 0)) -> 20549.056 | Z47: =SUM(IF(YEAR($A$11:$A$3662)=$W$47, D$11:D$3662, 0)) -> 20549.056 | AA47: =SUM(IF(YEAR($A$11:$A$3662)=$W$47, F$11:F$3662, 0)) -> 39.01 | AB47: =SUM(IF(YEAR($A$11:$A$3662)=$W$47, G$11:G$3662, 0)) -> 27.5508125 | AC47: =SUM(IF(YEAR($A$11:$A$3662)=$W$47, H$11:H$3662, 0)) -> 13073.27389 | AD47: =SUM(IF(YEAR($A$11:$A$3662)=$W$47, I$11:I$3662, 0)) -> 0 | AE47: =SUM(IF(YEAR($A$11:$A$3662)=$W$47, J$11:J$3662, 0)) -> 13073.27389 | AF47: =SUM(IF(YEAR($A$11:$A$3662)=$W$47, L$11:L$3662, 0)) -> 5521.669532 | AG47: =SUM(IF(YEAR($A$11:$A$3662)=$W$47, M$11:M$3662, 0)) -> 5521.669532 | AH47: =SUM(IF(YEAR($A$11:$A$3662)=$W$47, K$11:K$3662, 0)) -> 156296.1966 | AI47: =SUM(IF(YEAR($A$11:$A$3662)=$W$47, N$11:N$3662, 0)) -> 15027.38647 | AJ47: 0.2687067246 | AK47: 0.4223631799
A48: 2001-02-07 | B48: 0 | C48: 0 | D48: 0 | E48: 2 | F48: 0.06 | G48: 0.042375 | H48: 23.47888889 | I48: ='RWH Calculator'!$C$56 -> 0 | J48: 23.47888889 | K48: 909.3976428 | L48: 0 | M48: 23.47888889 | N48: 0 | O48: 909.3976428 | P48: 371.4374074 | W48: 2006 | X48: =SUM(IF(YEAR($A$11:$A$3662)=$W$48, B$11:B$3662, 0)) -> 29.49 | Y48: =SUM(IF(YEAR($A$11:$A$3662)=$W$48, C$11:C$3662, 0)) -> 18749.742 | Z48: =SUM(IF(YEAR($A$11:$A$3662)=$W$48, D$11:D$3662, 0)) -> 18749.742 | AA48: =SUM(IF(YEAR($A$11:$A$3662)=$W$48, F$11:F$3662, 0)) -> 39.01 | AB48: =SUM(IF(YEAR($A$11:$A$3662)=$W$48, G$11:G$3662, 0)) -> 27.5508125 | AC48: =SUM(IF(YEAR($A$11:$A$3662)=$W$48, H$11:H$3662, 0)) -> 12796.09833 | AD48: =SUM(IF(YEAR($A$11:$A$3662)=$W$48, I$11:I$3662, 0)) -> 0 | AE48: =SUM(IF(YEAR($A$11:$A$3662)=$W$48, J$11:J$3662, 0)) -> 12796.09833 | AF48: =SUM(IF(YEAR($A$11:$A$3662)=$W$48, L$11:L$3662, 0)) -> 3789.980272 | AG48: =SUM(IF(YEAR($A$11:$A$3662)=$W$48, M$11:M$3662, 0)) -> 3852.590643 | AH48: =SUM(IF(YEAR($A$11:$A$3662)=$W$48, K$11:K$3662, 0)) -> 174790.4481 | AI48: =SUM(IF(YEAR($A$11:$A$3662)=$W$48, N$11:N$3662, 0)) -> 14959.76173 | AJ48: 0.2021350626 | AK48: 0.3010754171
A49: 2001-02-08 | B49: 0 | C49: 0 | D49: 0 | E49: 2 | F49: 0.06 | G49: 0.042375 | H49: 23.47888889 | I49: ='RWH Calculator'!$C$56 -> 0 | J49: 23.47888889 | K49: 885.9187539 | L49: 0 | M49: 23.47888889 | N49: 0 | O49: 885.9187539 | P49: 394.9162963 | W49: 2007 | X49: =SUM(IF(YEAR($A$11:$A$3662)=$W$49, B$11:B$3662, 0)) -> 14.13 | Y49: =SUM(IF(YEAR($A$11:$A$3662)=$W$49, C$11:C$3662, 0)) -> 8983.854 | Z49: =SUM(IF(YEAR($A$11:$A$3662)=$W$49, D$11:D$3662, 0)) -> 8983.854 | AA49: =SUM(IF(YEAR($A$11:$A$3662)=$W$49, F$11:F$3662, 0)) -> 39.01 | AB49: =SUM(IF(YEAR($A$11:$A$3662)=$W$49, G$11:G$3662, 0)) -> 27.5508125 | AC49: =SUM(IF(YEAR($A$11:$A$3662)=$W$49, H$11:H$3662, 0)) -> 13954.66722 | AD49: =SUM(IF(YEAR($A$11:$A$3662)=$W$49, I$11:I$3662, 0)) -> 0 | AE49: =SUM(IF(YEAR($A$11:$A$3662)=$W$49, J$11:J$3662, 0)) -> 13954.66722 | AF49: =SUM(IF(YEAR($A$11:$A$3662)=$W$49, L$11:L$3662, 0)) -> 5058.276606 | AG49: =SUM(IF(YEAR($A$11:$A$3662)=$W$49, M$11:M$3662, 0)) -> 5015.07268 | AH49: =SUM(IF(YEAR($A$11:$A$3662)=$W$49, K$11:K$3662, 0)) -> 149351.5983 | AI49: =SUM(IF(YEAR($A$11:$A$3662)=$W$49, N$11:N$3662, 0)) -> 3925.577394 | AJ49: 0.5630408292 | AK49: 0.3593831798
A50: 2001-02-09 | B50: 1.13 | C50: 718.454 | D50: 718.454 | E50: 2 | F50: 0.06 | G50: 0.042375 | H50: 0 | I50: ='RWH Calculator'!$C$56 -> 0 | J50: 0 | K50: 1057.460087 | L50: 171.5413333 | M50: 0 | N50: 546.9126667 | O50: 1604.372754 | P50: 394.9162963 | W50: 2008 | X50: =SUM(IF(YEAR($A$11:$A$3662)=$W$50, B$11:B$3662, 0)) -> 16.72 | Y50: =SUM(IF(YEAR($A$11:$A$3662)=$W$50, C$11:C$3662, 0)) -> 10630.576 | Z50: =SUM(IF(YEAR($A$11:$A$3662)=$W$50, D$11:D$3662, 0)) -> 10630.576 | AA50: =SUM(IF(YEAR($A$11:$A$3662)=$W$50, F$11:F$3662, 0)) -> 39.07 | AB50: =SUM(IF(YEAR($A$11:$A$3662)=$W$50, G$11:G$3662, 0)) -> 27.5931875 | AC50: =SUM(IF(YEAR($A$11:$A$3662)=$W$50, H$11:H$3662, 0)) -> 14238.73407 | AD50: =SUM(IF(YEAR($A$11:$A$3662)=$W$50, I$11:I$3662, 0)) -> 0 | AE50: =SUM(IF(YEAR($A$11:$A$3662)=$W$50, J$11:J$3662, 0)) -> 14238.73407 | AF50: =SUM(IF(YEAR($A$11:$A$3662)=$W$50, L$11:L$3662, 0)) -> 2913.241161 | AG50: =SUM(IF(YEAR($A$11:$A$3662)=$W$50, M$11:M$3662, 0)) -> 2987.750272 | AH50: =SUM(IF(YEAR($A$11:$A$3662)=$W$50, K$11:K$3662, 0)) -> 125159.732 | AI50: =SUM(IF(YEAR($A$11:$A$3662)=$W$50, N$11:N$3662, 0)) -> 7717.334839 | AJ50: 0.2740435853 | AK50: 0.2098325776
A51: 2001-02-10 | B51: 0.96 | C51: 610.368 | D51: 610.368 | E51: 2 | F51: 0.06 | G51: 0.042375 | H51: 0 | I51: ='RWH Calculator'!$C$56 -> 0 | J51: 0 | K51: 1057.460087 | L51: 0 | M51: 0 | N51: 610.368 | O51: 1667.828087 | P51: 394.9162963 | W51: 2009 | X51: =SUM(IF(YEAR($A$11:$A$3662)=$W$51, B$11:B$3662, 0)) -> 19.23 | Y51: =SUM(IF(YEAR($A$11:$A$3662)=$W$51, C$11:C$3662, 0)) -> 12226.434 | Z51: =SUM(IF(YEAR($A$11:$A$3662)=$W$51, D$11:D$3662, 0)) -> 12226.434 | AA51: =SUM(IF(YEAR($A$11:$A$3662)=$W$51, F$11:F$3662, 0)) -> 39.01 | AB51: =SUM(IF(YEAR($A$11:$A$3662)=$W$51, G$11:G$3662, 0)) -> 27.5508125 | AC51: =SUM(IF(YEAR($A$11:$A$3662)=$W$51, H$11:H$3662, 0)) -> 13855.90352 | AD51: =SUM(IF(YEAR($A$11:$A$3662)=$W$51, I$11:I$3662, 0)) -> 0 | AE51: =SUM(IF(YEAR($A$11:$A$3662)=$W$51, J$11:J$3662, 0)) -> 13855.90352 | AF51: =SUM(IF(YEAR($A$11:$A$3662)=$W$51, L$11:L$3662, 0)) -> 4478.902124 | AG51: =SUM(IF(YEAR($A$11:$A$3662)=$W$51, M$11:M$3662, 0)) -> 4404.393013 | AH51: =SUM(IF(YEAR($A$11:$A$3662)=$W$51, K$11:K$3662, 0)) -> 142842.7158 | AI51: =SUM(IF(YEAR($A$11:$A$3662)=$W$51, N$11:N$3662, 0)) -> 7747.531876 | AJ51: 0.3663293912 | AK51: 0.3178712241
A52: 2001-02-11 | B52: 0.76 | C52: 483.208 | D52: 483.208 | E52: 2 | F52: 0.06 | G52: 0.042375 | H52: 0 | I52: ='RWH Calculator'!$C$56 -> 0 | J52: 0 | K52: 1057.460087 | L52: 0 | M52: 0 | N52: 483.208 | O52: 1540.668087 | P52: 394.9162963 | W52: 2010 | X52: =SUM(IF(YEAR($A$11:$A$3662)=$W$52, B$11:B$3662, 0)) -> 29.12 | Y52: =SUM(IF(YEAR($A$11:$A$3662)=$W$52, C$11:C$3662, 0)) -> 18514.496 | Z52: =SUM(IF(YEAR($A$11:$A$3662)=$W$52, D$11:D$3662, 0)) -> 18514.496 | AA52: =SUM(IF(YEAR($A$11:$A$3662)=$W$52, F$11:F$3662, 0)) -> 39.01 | AB52: =SUM(IF(YEAR($A$11:$A$3662)=$W$52, G$11:G$3662, 0)) -> 27.5508125 | AC52: =SUM(IF(YEAR($A$11:$A$3662)=$W$52, H$11:H$3662, 0)) -> 13032.27241 | AD52: =SUM(IF(YEAR($A$11:$A$3662)=$W$52, I$11:I$3662, 0)) -> 0 | AE52: =SUM(IF(YEAR($A$11:$A$3662)=$W$52, J$11:J$3662, 0)) -> 13032.27241 | AF52: =SUM(IF(YEAR($A$11:$A$3662)=$W$52, L$11:L$3662, 0)) -> 5105.961606 | AG52: =SUM(IF(YEAR($A$11:$A$3662)=$W$52, M$11:M$3662, 0)) -> 5117.860346 | AH52: =SUM(IF(YEAR($A$11:$A$3662)=$W$52, K$11:K$3662, 0)) -> 190863.6554 | AI52: =SUM(IF(YEAR($A$11:$A$3662)=$W$52, N$11:N$3662, 0)) -> 13408.53439 | AJ52: 0.2757818309 | AK52: 0.3927066736
A53: 2001-02-12 | B53: 0.63 | C53: 400.554 | D53: 400.554 | E53: 2 | F53: 0.06 | G53: 0.042375 | H53: 0 | I53: ='RWH Calculator'!$C$56 -> 0 | J53: 0 | K53: 1057.460087 | L53: 0 | M53: 0 | N53: 400.554 | O53: 1458.014087 | P53: 394.9162963 | W53: Total | X53: =SUM(X43:X52) -> 232.73 | Y53: 147969.734 | Z53: 147969.734 | AA53: 390.22 | AB53: 275.592875 | AC53: 136877.8013 | AD53: 0 | AE53: 136877.8013 | AF53: 42750.23229 | AG53: 41724.07739 | AH53: 1500742.369 | AI53: 105219.5017 | AJ53: 0.2889120034 | AK53: 0.3048272035
A54: 2001-02-13 | B54: 0 | C54: 0 | D54: 0 | E54: 2 | F54: 0.06 | G54: 0.042375 | H54: 23.47888889 | I54: ='RWH Calculator'!$C$56 -> 0 | J54: 23.47888889 | K54: 1033.981198 | L54: 0 | M54: 23.47888889 | N54: 0 | O54: 1033.981198 | P54: 418.3951852
A55: 2001-02-14 | B55: 0 | C55: 0 | D55: 0 | E55: 2 | F55: 0.06 | G55: 0.042375 | H55: 23.47888889 | I55: ='RWH Calculator'!$C$56 -> 0 | J55: 23.47888889 | K55: 1010.502309 | L55: 0 | M55: 23.47888889 | N55: 0 | O55: 1010.502309 | P55: 441.8740741
A56: 2001-02-15 | B56: 0 | C56: 0 | D56: 0 | E56: 2 | F56: 0.06 | G56: 0.042375 | H56: 23.47888889 | I56: ='RWH Calculator'!$C$56 -> 0 | J56: 23.47888889 | K56: 987.0234205 | L56: 0 | M56: 23.47888889 | N56: 0 | O56: 987.0234205 | P56: 465.352963
A57: 2001-02-16 | B57: 0 | C57: 0 | D57: 0 | E57: 2 | F57: 0.06 | G57: 0.042375 | H57: 23.47888889 | I57: ='RWH Calculator'!$C$56 -> 0 | J57: 23.47888889 | K57: 963.5445316 | L57: 0 | M57: 23.47888889 | N57: 0 | O57: 963.5445316 | P57: 488.8318519
A58: 2001-02-17 | B58: 0.65 | C58: 413.27 | D58: 413.27 | E58: 2 | F58: 0.06 | G58: 0.042375 | H58: 0 | I58: ='RWH Calculator'!$C$56 -> 0 | J58: 0 | K58: 1057.460087 | L58: 93.91555556 | M58: 0 | N58: 319.3544444 | O58: 1376.814532 | P58: 488.8318519
A59: 2001-02-18 | B59: 0.15 | C59: 95.37 | D59: 95.37 | E59: 2 | F59: 0.06 | G59: 0.042375 | H59: 0 | I59: ='RWH Calculator'!$C$56 -> 0 | J59: 0 | K59: 1057.460087 | L59: 0 | M59: 0 | N59: 95.37 | O59: 1152.830087 | P59: 488.8318519
A60: 2001-02-19 | B60: 0.65 | C60: 413.27 | D60: 413.27 | E60: 2 | F60: 0.06 | G60: 0.042375 | H60: 0 | I60: ='RWH Calculator'!$C$56 -> 0 | J60: 0 | K60: 1057.460087 | L60: 0 | M60: 0 | N60: 413.27 | O60: 1470.730087 | P60: 488.8318519
A61: 2001-02-20 | B61: 0.41 | C61: 260.678 | D61: 260.678 | E61: 2 | F61: 0.06 | G61: 0.042375 | H61: 0 | I61: ='RWH Calculator'!$C$56 -> 0 | J61: 0 | K61: 1057.460087 | L61: 0 | M61: 0 | N61: 260.678 | O61: 1318.138087 | P61: 488.8318519
A62: 2001-02-21 | B62: 0.18 | C62: 114.444 | D62: 114.444 | E62: 2 | F62: 0.06 | G62: 0.042375 | H62: 0 | I62: ='RWH Calculator'!$C$56 -> 0 | J62: 0 | K62: 1057.460087 | L62: 0 | M62: 0 | N62: 114.444 | O62: 1171.904087 | P62: 488.8318519
A63: 2001-02-22 | B63: 0.79 | C63: 502.282 | D63: 502.282 | E63: 2 | F63: 0.06 | G63: 0.042375 | H63: 0 | I63: ='RWH Calculator'!$C$56 -> 0 | J63: 0 | K63: 1057.460087 | L63: 0 | M63: 0 | N63: 502.282 | O63: 1559.742087 | P63: 488.8318519
A64: 2001-02-23 | B64: 0.1 | C64: 63.58 | D64: 63.58 | E64: 2 | F64: 0.06 | G64: 0.042375 | H64: 0 | I64: ='RWH Calculator'!$C$56 -> 0 | J64: 0 | K64: 1057.460087 | L64: 0 | M64: 0 | N64: 63.58 | O64: 1121.040087 | P64: 488.8318519
A65: 2001-02-24 | B65: 0.93 | C65: 591.294 | D65: 591.294 | E65: 2 | F65: 0.06 | G65: 0.042375 | H65: 0 | I65: ='RWH Calculator'!$C$56 -> 0 | J65: 0 | K65: 1057.460087 | L65: 0 | M65: 0 | N65: 591.294 | O65: 1648.754087 | P65: 488.8318519
A66: 2001-02-25 | B66: 0.35 | C66: 222.53 | D66: 222.53 | E66: 2 | F66: 0.06 | G66: 0.042375 | H66: 0 | I66: ='RWH Calculator'!$C$56 -> 0 | J66: 0 | K66: 1057.460087 | L66: 0 | M66: 0 | N66: 222.53 | O66: 1279.990087 | P66: 488.8318519
A67: 2001-02-26 | B67: 0 | C67: 0 | D67: 0 | E67: 2 | F67: 0.06 | G67: 0.042375 | H67: 23.47888889 | I67: ='RWH Calculator'!$C$56 -> 0 | J67: 23.47888889 | K67: 1033.981198 | L67: 0 | M67: 23.47888889 | N67: 0 | O67: 1033.981198 | P67: 512.3107407
A68: 2001-02-27 | B68: 0 | C68: 0 | D68: 0 | E68: 2 | F68: 0.06 | G68: 0.042375 | H68: 23.47888889 | I68: ='RWH Calculator'!$C$56 -> 0 | J68: 23.47888889 | K68: 1010.502309 | L68: 0 | M68: 23.47888889 | N68: 0 | O68: 1010.502309 | P68: 535.7896296
A69: 2001-02-28 | B69: 0 | C69: 0 | D69: 0 | E69: 2 | F69: 0.06 | G69: 0.042375 | H69: 23.47888889 | I69: ='RWH Calculator'!$C$56 -> 0 | J69: 23.47888889 | K69: 987.0234205 | L69: 0 | M69: 23.47888889 | N69: 0 | O69: 987.0234205 | P69: 559.2685185
A70: 2001-03-01 | B70: 0.06 | C70: 38.148 | D70: 38.148 | E70: 3 | F70: 0.1 | G70: 0.070625 | H70: 5.887037037 | I70: ='RWH Calculator'!$C$56 -> 0 | J70: 5.887037037 | K70: 1019.284383 | L70: 38.148 | M70: 5.887037037 | N70: 1.421085472e-13 | O70: 1019.284383 | P70: 565.1555556
A71: 2001-03-02 | B71: 0.2 | C71: 127.16 | D71: 127.16 | E71: 3 | F71: 0.1 | G71: 0.070625 | H71: 0 | I71: ='RWH Calculator'!$C$56 -> 0 | J71: 0 | K71: 1057.460087 | L71: 38.1757037 | M71: 0 | N71: 88.9842963 | O71: 1146.444383 | P71: 565.1555556
A72: 2001-03-03 | B72: 0.23 | C72: 146.234 | D72: 146.234 | E72: 3 | F72: 0.1 | G72: 0.070625 | H72: 0 | I72: ='RWH Calculator'!$C$56 -> 0 | J72: 0 | K72: 1057.460087 | L72: 0 | M72: 0 | N72: 146.234 | O72: 1203.694087 | P72: 565.1555556
A73: 2001-03-04 | B73: 0.85 | C73: 540.43 | D73: 540.43 | E73: 3 | F73: 0.1 | G73: 0.070625 | H73: 0 | I73: ='RWH Calculator'!$C$56 -> 0 | J73: 0 | K73: 1057.460087 | L73: 0 | M73: 0 | N73: 540.43 | O73: 1597.890087 | P73: 565.1555556
A74: 2001-03-05 | B74: 0.12 | C74: 76.296 | D74: 76.296 | E74: 3 | F74: 0.1 | G74: 0.070625 | H74: 0 | I74: ='RWH Calculator'!$C$56 -> 0 | J74: 0 | K74: 1057.460087 | L74: 0 | M74: 0 | N74: 76.296 | O74: 1133.756087 | P74: 565.1555556
A75: 2001-03-06 | B75: 0.01 | C75: 6.358 | D75: 6.358 | E75: 3 | F75: =IF($B$2="Western SF", VLOOKUP(E75,$R$6:$U$17, 4),VLOOKUP(E75, $R$6:$V$17,5)) -> 0.1 | G75: 0.070625 | H75: 33.59074074 | I75: ='RWH Calculator'!$C$56 -> 0 | J75: 33.59074074 | K75: 1030.227346 | L75: 6.358 | M75: 33.59074074 | N75: 0 | O75: 1030.227346 | P75: 598.7462963
A76: 2001-03-07 | B76: 0 | C76: 0 | D76: 0 | E76: =MONTH(A76) -> 3 | F76: 0.1 | G76: =F76*$B$6 -> 0.070625 | H76: 39.13148148 | I76: ='RWH Calculator'!$C$56 -> 0 | J76: =H76+I76 -> 39.13148148 | K76: 991.095865 | L76: 0 | M76: 39.13148148 | N76: 0 | O76: 991.095865 | P76: 637.8777778
A77: 2001-03-08 | B77: 0 | C77: =$B$3*$B$4*(B77/12)*7.48 -> 0 | D77: =C77 -> 0 | E77: 3 | F77: 0.1 | G77: 0.070625 | H77: =(IF(G77-B77>0,(G77-B77)/$B$7,0)/12*7.48)*$B$8 -> 39.13148148 | I77: ='RWH Calculator'!$C$56 -> 0 | J77: 39.13148148 | K77: =IF(O77<0, 0, IF(O77>$H$2, $H$2, O77)) -> 951.9643835 | L77: =IF(J77>D77,D77, K77-K76+J77) -> 0 | M77: =IF(D77+K76>J77,J77, D77+K76) -> 39.13148148 | N77: =IF(C77>J77, C77-J77-(K77-K76),0) -> 0 | O77: =K76+D77-J77 -> 951.9643835 | P77: =M77+P76 -> 677.0092593
A78: 2001-03-09 | B78: 0 | C78: 0 | D78: 0 | E78: 3 | F78: 0.1 | G78: 0.070625 | H78: 39.13148148 | I78: ='RWH Calculator'!$C$56 -> 0 | J78: 39.13148148 | K78: 912.832902 | L78: 0 | M78: 39.13148148 | N78: 0 | O78: 912.832902 | P78: 716.1407407
A79: 2001-03-10 | B79: 0 | C79: 0 | D79: 0 | E79: 3 | F79: 0.1 | G79: 0.070625 | H79: 39.13148148 | I79: ='RWH Calculator'!$C$56 -> 0 | J79: 39.13148148 | K79: 873.7014205 | L79: 0 | M79: 39.13148148 | N79: 0 | O79: 873.7014205 | P79: 755.2722222
A80: 2001-03-11 | B80: 0 | C80: 0 | D80: 0 | E80: 3 | F80: 0.1 | G80: 0.070625 | H80: 39.13148148 | I80: ='RWH Calculator'!$C$56 -> 0 | J80: 39.13148148 | K80: 834.5699391 | L80: 0 | M80: 39.13148148 | N80: 0 | O80: 834.5699391 | P80: 794.4037037
A81: 2001-03-12 | B81: 0 | C81: 0 | D81: 0 | E81: 3 | F81: 0.1 | G81: 0.070625 | H81: 39.13148148 | I81: ='RWH Calculator'!$C$56 -> 0 | J81: 39.13148148 | K81: 795.4384576 | L81: 0 | M81: 39.13148148 | N81: 0 | O81: 795.4384576 | P81: 833.5351852
A82: 2001-03-13 | B82: 0 | C82: 0 | D82: 0 | E82: 3 | F82: 0.1 | G82: 0.070625 | H82: 39.13148148 | I82: ='RWH Calculator'!$C$56 -> 0 | J82: 39.13148148 | K82: 756.3069761 | L82: 0 | M82: 39.13148148 | N82: 0 | O82: 756.3069761 | P82: 872.6666667
A83: 2001-03-14 | B83: 0 | C83: 0 | D83: 0 | E83: 3 | F83: 0.1 | G83: 0.070625 | H83: 39.13148148 | I83: ='RWH Calculator'!$C$56 -> 0 | J83: 39.13148148 | K83: 717.1754946 | L83: 0 | M83: 39.13148148 | N83: 0 | O83: 717.1754946 | P83: 911.7981481
A84: 2001-03-15 | B84: 0 | C84: 0 | D84: 0 | E84: 3 | F84: 0.1 | G84: 0.070625 | H84: 39.13148148 | I84: ='RWH Calculator'!$C$56 -> 0 | J84: 39.13148148 | K84: 678.0440131 | L84: 0 | M84: 39.13148148 | N84: 0 | O84: 678.0440131 | P84: 950.9296296
A85: 2001-03-16 | B85: 0 | C85: 0 | D85: 0 | E85: 3 | F85: 0.1 | G85: 0.070625 | H85: 39.13148148 | I85: ='RWH Calculator'!$C$56 -> 0 | J85: 39.13148148 | K85: 638.9125316 | L85: 0 | M85: 39.13148148 | N85: 0 | O85: 638.9125316 | P85: 990.0611111
A86: 2001-03-17 | B86: 0 | C86: 0 | D86: 0 | E86: 3 | F86: 0.1 | G86: 0.070625 | H86: 39.13148148 | I86: ='RWH Calculator'!$C$56 -> 0 | J86: 39.13148148 | K86: 599.7810502 | L86: 0 | M86: 39.13148148 | N86: 0 | O86: 599.7810502 | P86: 1029.192593
A87: 2001-03-18 | B87: 0 | C87: 0 | D87: 0 | E87: 3 | F87: 0.1 | G87: 0.070625 | H87: 39.13148148 | I87: ='RWH Calculator'!$C$56 -> 0 | J87: 39.13148148 | K87: 560.6495687 | L87: 0 | M87: 39.13148148 | N87: 0 | O87: 560.6495687 | P87: 1068.324074
A88: 2001-03-19 | B88: 0 | C88: 0 | D88: 0 | E88: 3 | F88: 0.1 | G88: 0.070625 | H88: 39.13148148 | I88: ='RWH Calculator'!$C$56 -> 0 | J88: 39.13148148 | K88: 521.5180872 | L88: 0 | M88: 39.13148148 | N88: 0 | O88: 521.5180872 | P88: 1107.455556
A89: 2001-03-20 | B89: 0 | C89: 0 | D89: 0 | E89: 3 | F89: 0.1 | G89: 0.070625 | H89: 39.13148148 | I89: ='RWH Calculator'!$C$56 -> 0 | J89: 39.13148148 | K89: 482.3866057 | L89: 0 | M89: 39.13148148 | N89: 0 | O89: 482.3866057 | P89: 1146.587037
A90: 2001-03-21 | B90: 0 | C90: 0 | D90: 0 | E90: 3 | F90: 0.1 | G90: 0.070625 | H90: 39.13148148 | I90: ='RWH Calculator'!$C$56 -> 0 | J90: 39.13148148 | K90: 443.2551242 | L90: 0 | M90: 39.13148148 | N90: 0 | O90: 443.2551242 | P90: 1185.718519
A91: 2001-03-22 | B91: 0 | C91: 0 | D91: 0 | E91: 3 | F91: 0.1 | G91: 0.070625 | H91: 39.13148148 | I91: ='RWH Calculator'!$C$56 -> 0 | J91: 39.13148148 | K91: 404.1236428 | L91: 0 | M91: 39.13148148 | N91: 0 | O91: 404.1236428 | P91: 1224.85
A92: 2001-03-23 | B92: 0 | C92: 0 | D92: 0 | E92: 3 | F92: 0.1 | G92: 0.070625 | H92: 39.13148148 | I92: ='RWH Calculator'!$C$56 -> 0 | J92: 39.13148148 | K92: 364.9921613 | L92: 0 | M92: 39.13148148 | N92: 0 | O92: 364.9921613 | P92: 1263.981481
A93: 2001-03-24 | B93: 0.06 | C93: 38.148 | D93: 38.148 | E93: 3 | F93: 0.1 | G93: 0.070625 | H93: 5.887037037 | I93: ='RWH Calculator'!$C$56 -> 0 | J93: 5.887037037 | K93: 397.2531242 | L93: 38.148 | M93: 5.887037037 | N93: -2.842170943e-14 | O93: 397.2531242 | P93: 1269.868519
A94: 2001-03-25 | B94: 0.05 | C94: 31.79 | D94: 31.79 | E94: 3 | F94: 0.1 | G94: 0.070625 | H94: 11.42777778 | I94: ='RWH Calculator'!$C$56 -> 0 | J94: 11.42777778 | K94: 417.6153465 | L94: 31.79 | M94: 11.42777778 | N94: 7.105427358e-15 | O94: 417.6153465 | P94: 1281.296296
A95: 2001-03-26 | B95: 0 | C95: 0 | D95: 0 | E95: 3 | F95: 0.1 | G95: 0.070625 | H95: 39.13148148 | I95: ='RWH Calculator'!$C$56 -> 0 | J95: 39.13148148 | K95: 378.483865 | L95: 0 | M95: 39.13148148 | N95: 0 | O95: 378.483865 | P95: 1320.427778
A96: 2001-03-27 | B96: 0 | C96: 0 | D96: 0 | E96: 3 | F96: 0.1 | G96: 0.070625 | H96: 39.13148148 | I96: ='RWH Calculator'!$C$56 -> 0 | J96: 39.13148148 | K96: 339.3523835 | L96: 0 | M96: 39.13148148 | N96: 0 | O96: 339.3523835 | P96: 1359.559259
A97: 2001-03-28 | B97: 0 | C97: 0 | D97: 0 | E97: 3 | F97: 0.1 | G97: 0.070625 | H97: 39.13148148 | I97: ='RWH Calculator'!$C$56 -> 0 | J97: 39.13148148 | K97: 300.220902 | L97: 0 | M97: 39.13148148 | N97: 0 | O97: 300.220902 | P97: 1398.690741
A98: 2001-03-29 | B98: 0 | C98: 0 | D98: 0 | E98: 3 | F98: 0.1 | G98: 0.070625 | H98: 39.13148148 | I98: ='RWH Calculator'!$C$56 -> 0 | J98: 39.13148148 | K98: 261.0894205 | L98: 0 | M98: 39.13148148 | N98: 0 | O98: 261.0894205 | P98: 1437.822222
A99: 2001-03-30 | B99: 0 | C99: 0 | D99: 0 | E99: 3 | F99: 0.1 | G99: 0.070625 | H99: 39.13148148 | I99: ='RWH Calculator'!$C$56 -> 0 | J99: 39.13148148 | K99: 221.9579391 | L99: 0 | M99: 39.13148148 | N99: 0 | O99: 221.9579391 | P99: 1476.953704
A100: 2001-03-31 | B100: 0 | C100: 0 | D100: 0 | E100: 3 | F100: 0.1 | G100: 0.070625 | H100: 39.13148148 | I100: ='RWH Calculator'!$C$56 -> 0 | J100: 39.13148148 | K100: 182.8264576 | L100: 0 | M100: 39.13148148 | N100: 0 | O100: 182.8264576 | P100: 1516.085185
A101: 2001-04-01 | B101: 0 | C101: 0 | D101: 0 | E101: 4 | F101: 0.13 | G101: 0.0918125 | H101: 50.87092593 | I101: ='RWH Calculator'!$C$56 -> 0 | J101: 50.87092593 | K101: 131.9555316 | L101: 0 | M101: 50.87092593 | N101: 0 | O101: 131.9555316 | P101: 1566.956111
A102: 2001-04-02 | B102: 0 | C102: 0 | D102: 0 | E102: 4 | F102: 0.13 | G102: 0.0918125 | H102: 50.87092593 | I102: ='RWH Calculator'!$C$56 -> 0 | J102: 50.87092593 | K102: 81.08460572 | L102: 0 | M102: 50.87092593 | N102: 0 | O102: 81.08460572 | P102: 1617.827037
A103: 2001-04-03 | B103: 0 | C103: 0 | D103: 0 | E103: 4 | F103: 0.13 | G103: 0.0918125 | H103: 50.87092593 | I103: ='RWH Calculator'!$C$56 -> 0 | J103: 50.87092593 | K103: 30.21367979 | L103: 0 | M103: 50.87092593 | N103: 0 | O103: 30.21367979 | P103: 1668.697963
A104: 2001-04-04 | B104: 0 | C104: 0 | D104: 0 | E104: 4 | F104: 0.13 | G104: 0.0918125 | H104: 50.87092593 | I104: ='RWH Calculator'!$C$56 -> 0 | J104: 50.87092593 | K104: 0 | L104: 0 | M104: 30.21367979 | N104: 0 | O104: -20.65724614 | P104: 1698.911643
A105: 2001-04-05 | B105: 0 | C105: 0 | D105: 0 | E105: 4 | F105: 0.13 | G105: 0.0918125 | H105: 50.87092593 | I105: ='RWH Calculator'!$C$56 -> 0 | J105: 50.87092593 | K105: 0 | L105: 0 | M105: 0 | N105: 0 | O105: -50.87092593 | P105: 1698.911643
A106: 2001-04-06 | B106: 0.25 | C106: 158.95 | D106: 158.95 | E106: 4 | F106: 0.13 | G106: 0.0918125 | H106: 0 | I106: ='RWH Calculator'!$C$56 -> 0 | J106: 0 | K106: 158.95 | L106: 158.95 | M106: 0 | N106: 0 | O106: 158.95 | P106: 1698.911643
A107: 2001-04-07 | B107: 0.26 | C107: 165.308 | D107: 165.308 | E107: 4 | F107: 0.13 | G107: 0.0918125 | H107: 0 | I107: ='RWH Calculator'!$C$56 -> 0 | J107: 0 | K107: 324.258 | L107: 165.308 | M107: 0 | N107: 0 | O107: 324.258 | P107: 1698.911643
A108: 2001-04-08 | B108: 0 | C108: 0 | D108: 0 | E108: 4 | F108: 0.13 | G108: 0.0918125 | H108: 50.87092593 | I108: ='RWH Calculator'!$C$56 -> 0 | J108: 50.87092593 | K108: 273.3870741 | L108: 0 | M108: 50.87092593 | N108: 0 | O108: 273.3870741 | P108: 1749.782569
A109: 2001-04-09 | B109: 0.28 | C109: 178.024 | D109: 178.024 | E109: 4 | F109: 0.13 | G109: 0.0918125 | H109: 0 | I109: ='RWH Calculator'!$C$56 -> 0 | J109: 0 | K109: 451.4110741 | L109: 178.024 | M109: 0 | N109: 2.842170943e-14 | O109: 451.4110741 | P109: 1749.782569
A110: 2001-04-10 | B110: 0 | C110: 0 | D110: 0 | E110: 4 | F110: 0.13 | G110: 0.0918125 | H110: 50.87092593 | I110: ='RWH Calculator'!$C$56 -> 0 | J110: 50.87092593 | K110: 400.5401481 | L110: 0 | M110: 50.87092593 | N110: 0 | O110: 400.5401481 | P110: 1800.653495
A111: 2001-04-11 | B111: 0.08 | C111: 50.864 | D111: 50.864 | E111: 4 | F111: 0.13 | G111: 0.0918125 | H111: 6.545 | I111: ='RWH Calculator'!$C$56 -> 0 | J111: 6.545 | K111: 444.8591481 | L111: 50.864 | M111: 6.545 | N111: 2.842170943e-14 | O111: 444.8591481 | P111: 1807.198495
A112: 2001-04-12 | B112: 0 | C112: 0 | D112: 0 | E112: 4 | F112: 0.13 | G112: 0.0918125 | H112: 50.87092593 | I112: ='RWH Calculator'!$C$56 -> 0 | J112: 50.87092593 | K112: 393.9882222 | L112: 0 | M112: 50.87092593 | N112: 0 | O112: 393.9882222 | P112: 1858.069421
A113: 2001-04-13 | B113: 0 | C113: 0 | D113: 0 | E113: 4 | F113: 0.13 | G113: 0.0918125 | H113: 50.87092593 | I113: ='RWH Calculator'!$C$56 -> 0 | J113: 50.87092593 | K113: 343.1172963 | L113: 0 | M113: 50.87092593 | N113: 0 | O113: 343.1172963 | P113: 1908.940346
A114: 2001-04-14 | B114: 0 | C114: 0 | D114: 0 | E114: 4 | F114: 0.13 | G114: 0.0918125 | H114: 50.87092593 | I114: ='RWH Calculator'!$C$56 -> 0 | J114: 50.87092593 | K114: 292.2463704 | L114: 0 | M114: 50.87092593 | N114: 0 | O114: 292.2463704 | P114: 1959.811272
A115: 2001-04-15 | B115: 0 | C115: 0 | D115: 0 | E115: 4 | F115: 0.13 | G115: 0.0918125 | H115: 50.87092593 | I115: ='RWH Calculator'!$C$56 -> 0 | J115: 50.87092593 | K115: 241.3754444 | L115: 0 | M115: 50.87092593 | N115: 0 | O115: 241.3754444 | P115: 2010.682198
A116: 2001-04-16 | B116: 0 | C116: 0 | D116: 0 | E116: 4 | F116: 0.13 | G116: 0.0918125 | H116: 50.87092593 | I116: ='RWH Calculator'!$C$56 -> 0 | J116: 50.87092593 | K116: 190.5045185 | L116: 0 | M116: 50.87092593 | N116: 0 | O116: 190.5045185 | P116: 2061.553124
A117: 2001-04-17 | B117: 0 | C117: 0 | D117: 0 | E117: 4 | F117: 0.13 | G117: 0.0918125 | H117: 50.87092593 | I117: ='RWH Calculator'!$C$56 -> 0 | J117: 50.87092593 | K117: 139.6335926 | L117: 0 | M117: 50.87092593 | N117: 0 | O117: 139.6335926 | P117: 2112.42405
A118: 2001-04-18 | B118: 0.06 | C118: 38.148 | D118: 38.148 | E118: 4 | F118: 0.13 | G118: 0.0918125 | H118: 17.62648148 | I118: ='RWH Calculator'!$C$56 -> 0 | J118: 17.62648148 | K118: 160.1551111 | L118: 38.148 | M118: 17.62648148 | N118: -3.552713679e-15 | O118: 160.1551111 | P118: 2130.050532
A119: 2001-04-19 | B119: 0.01 | C119: 6.358 | D119: 6.358 | E119: 4 | F119: 0.13 | G119: 0.0918125 | H119: 45.33018519 | I119: ='RWH Calculator'!$C$56 -> 0 | J119: 45.33018519 | K119: 121.1829259 | L119: 6.358 | M119: 45.33018519 | N119: 0 | O119: 121.1829259 | P119: 2175.380717
A120: 2001-04-20 | B120: 0.92 | C120: 584.936 | D120: 584.936 | E120: 4 | F120: 0.13 | G120: 0.0918125 | H120: 0 | I120: ='RWH Calculator'!$C$56 -> 0 | J120: 0 | K120: 706.1189259 | L120: 584.936 | M120: 0 | N120: 0 | O120: 706.1189259 | P120: 2175.380717
A121: 2001-04-21 | B121: 0 | C121: 0 | D121: 0 | E121: 4 | F121: 0.13 | G121: 0.0918125 | H121: 50.87092593 | I121: ='RWH Calculator'!$C$56 -> 0 | J121: 50.87092593 | K121: 655.248 | L121: 0 | M121: 50.87092593 | N121: 0 | O121: 655.248 | P121: 2226.251643
A122: 2001-04-22 | B122: 0 | C122: 0 | D122: 0 | E122: 4 | F122: 0.13 | G122: 0.0918125 | H122: 50.87092593 | I122: ='RWH Calculator'!$C$56 -> 0 | J122: 50.87092593 | K122: 604.3770741 | L122: 0 | M122: 50.87092593 | N122: 0 | O122: 604.3770741 | P122: 2277.122569
A123: 2001-04-23 | B123: 0 | C123: 0 | D123: 0 | E123: 4 | F123: 0.13 | G123: 0.0918125 | H123: 50.87092593 | I123: ='RWH Calculator'!$C$56 -> 0 | J123: 50.87092593 | K123: 553.5061481 | L123: 0 | M123: 50.87092593 | N123: 0 | O123: 553.5061481 | P123: 2327.993495
A124: 2001-04-24 | B124: 0 | C124: 0 | D124: 0 | E124: 4 | F124: 0.13 | G124: 0.0918125 | H124: 50.87092593 | I124: ='RWH Calculator'!$C$56 -> 0 | J124: 50.87092593 | K124: 502.6352222 | L124: 0 | M124: 50.87092593 | N124: 0 | O124: 502.6352222 | P124: 2378.864421
A125: 2001-04-25 | B125: 0 | C125: 0 | D125: 0 | E125: 4 | F125: 0.13 | G125: 0.0918125 | H125: 50.87092593 | I125: ='RWH Calculator'!$C$56 -> 0 | J125: 50.87092593 | K125: 451.7642963 | L125: 0 | M125: 50.87092593 | N125: 0 | O125: 451.7642963 | P125: 2429.735346
A126: 2001-04-26 | B126: 0 | C126: 0 | D126: 0 | E126: 4 | F126: 0.13 | G126: 0.0918125 | H126: 50.87092593 | I126: ='RWH Calculator'!$C$56 -> 0 | J126: 50.87092593 | K126: 400.8933704 | L126: 0 | M126: 50.87092593 | N126: 0 | O126: 400.8933704 | P126: 2480.606272
A127: 2001-04-27 | B127: 0.01 | C127: 6.358 | D127: 6.358 | E127: 4 | F127: 0.13 | G127: 0.0918125 | H127: 45.33018519 | I127: ='RWH Calculator'!$C$56 -> 0 | J127: 45.33018519 | K127: 361.9211852 | L127: 6.358 | M127: 45.33018519 | N127: 0 | O127: 361.9211852 | P127: 2525.936458
A128: 2001-04-28 | B128: 0.02 | C128: 12.716 | D128: 12.716 | E128: 4 | F128: 0.13 | G128: 0.0918125 | H128: 39.78944444 | I128: ='RWH Calculator'!$C$56 -> 0 | J128: 39.78944444 | K128: 334.8477407 | L128: 12.716 | M128: 39.78944444 | N128: 0 | O128: 334.8477407 | P128: 2565.725902
A129: 2001-04-29 | B129: 0 | C129: 0 | D129: 0 | E129: 4 | F129: 0.13 | G129: 0.0918125 | H129: 50.87092593 | I129: ='RWH Calculator'!$C$56 -> 0 | J129: 50.87092593 | K129: 283.9768148 | L129: 0 | M129: 50.87092593 | N129: 0 | O129: 283.9768148 | P129: 2616.596828
A130: 2001-04-30 | B130: 0 | C130: 0 | D130: 0 | E130: 4 | F130: 0.13 | G130: 0.0918125 | H130: 50.87092593 | I130: ='RWH Calculator'!$C$56 -> 0 | J130: 50.87092593 | K130: 233.1058889 | L130: 0 | M130: 50.87092593 | N130: 0 | O130: 233.1058889 | P130: 2667.467754
A131: 2001-05-01 | B131: 0 | C131: 0 | D131: 0 | E131: 5 | F131: 0.15 | G131: 0.1059375 | H131: 58.69722222 | I131: ='RWH Calculator'!$C$56 -> 0 | J131: 58.69722222 | K131: 174.4086667 | L131: 0 | M131: 58.69722222 | N131: 0 | O131: 174.4086667 | P131: 2726.164976
A132: 2001-05-02 | B132: 0 | C132: 0 | D132: 0 | E132: 5 | F132: 0.15 | G132: 0.1059375 | H132: 58.69722222 | I132: ='RWH Calculator'!$C$56 -> 0 | J132: 58.69722222 | K132: 115.7114444 | L132: 0 | M132: 58.69722222 | N132: 0 | O132: 115.7114444 | P132: 2784.862198
A133: 2001-05-03 | B133: 0 | C133: 0 | D133: 0 | E133: 5 | F133: 0.15 | G133: 0.1059375 | H133: 58.69722222 | I133: ='RWH Calculator'!$C$56 -> 0 | J133: 58.69722222 | K133: 57.01422222 | L133: 0 | M133: 58.69722222 | N133: 0 | O133: 57.01422222 | P133: 2843.559421
A134: 2001-05-04 | B134: 0 | C134: 0 | D134: 0 | E134: 5 | F134: 0.15 | G134: 0.1059375 | H134: 58.69722222 | I134: ='RWH Calculator'!$C$56 -> 0 | J134: 58.69722222 | K134: 0 | L134: 0 | M134: 57.01422222 | N134: 0 | O134: -1.683 | P134: 2900.573643
A135: 2001-05-05 | B135: 0 | C135: 0 | D135: 0 | E135: 5 | F135: 0.15 | G135: 0.1059375 | H135: 58.69722222 | I135: ='RWH Calculator'!$C$56 -> 0 | J135: 58.69722222 | K135: 0 | L135: 0 | M135: 0 | N135: 0 | O135: -58.69722222 | P135: 2900.573643
A136: 2001-05-06 | B136: 0 | C136: 0 | D136: 0 | E136: 5 | F136: 0.15 | G136: 0.1059375 | H136: 58.69722222 | I136: ='RWH Calculator'!$C$56 -> 0 | J136: 58.69722222 | K136: 0 | L136: 0 | M136: 0 | N136: 0 | O136: -58.69722222 | P136: 2900.573643
A137: 2001-05-07 | B137: 0 | C137: 0 | D137: 0 | E137: 5 | F137: 0.15 | G137: 0.1059375 | H137: 58.69722222 | I137: ='RWH Calculator'!$C$56 -> 0 | J137: 58.69722222 | K137: 0 | L137: 0 | M137: 0 | N137: 0 | O137: -58.69722222 | P137: 2900.573643
A138: 2001-05-08 | B138: 0 | C138: 0 | D138: 0 | E138: 5 | F138: 0.15 | G138: 0.1059375 | H138: 58.69722222 | I138: ='RWH Calculator'!$C$56 -> 0 | J138: 58.69722222 | K138: 0 | L138: 0 | M138: 0 | N138: 0 | O138: -58.69722222 | P138: 2900.573643
A139: 2001-05-09 | B139: 0 | C139: 0 | D139: 0 | E139: 5 | F139: =IF($B$2="Western SF", VLOOKUP(E139,$R$6:$U$17, 4),VLOOKUP(E139, $R$6:$V$17,5)) -> 0.15 | G139: 0.1059375 | H139: 58.69722222 | I139: ='RWH Calculator'!$C$56 -> 0 | J139: 58.69722222 | K139: 0 | L139: 0 | M139: 0 | N139: 0 | O139: -58.69722222 | P139: 2900.573643
A140: 2001-05-10 | B140: 0 | C140: 0 | D140: 0 | E140: =MONTH(A140) -> 5 | F140: 0.15 | G140: =F140*$B$6 -> 0.1059375 | H140: 58.69722222 | I140: ='RWH Calculator'!$C$56 -> 0 | J140: =H140+I140 -> 58.69722222 | K140: 0 | L140: 0 | M140: 0 | N140: 0 | O140: -58.69722222 | P140: 2900.573643
A141: 2001-05-11 | B141: 0 | C141: =$B$3*$B$4*(B141/12)*7.48 -> 0 | D141: =C141 -> 0 | E141: 5 | F141: 0.15 | G141: 0.1059375 | H141: =(IF(G141-B141>0,(G141-B141)/$B$7,0)/12*7.48)*$B$8 -> 58.69722222 | I141: ='RWH Calculator'!$C$56 -> 0 | J141: 58.69722222 | K141: =IF(O141<0, 0, IF(O141>$H$2, $H$2, O141)) -> 0 | L141: =IF(J141>D141,D141, K141-K140+J141) -> 0 | M141: =IF(D141+K140>J141,J141, D141+K140) -> 0 | N141: =IF(C141>J141, C141-J141-(K141-K140),0) -> 0 | O141: =K140+D141-J141 -> -58.69722222 | P141: =M141+P140 -> 2900.573643
A142: 2001-05-12 | B142: 0 | C142: 0 | D142: 0 | E142: 5 | F142: 0.15 | G142: 0.1059375 | H142: 58.69722222 | I142: ='RWH Calculator'!$C$56 -> 0 | J142: 58.69722222 | K142: 0 | L142: 0 | M142: 0 | N142: 0 | O142: -58.69722222 | P142: 2900.573643
A143: 2001-05-13 | B143: 0 | C143: 0 | D143: 0 | E143: 5 | F143: 0.15 | G143: 0.1059375 | H143: 58.69722222 | I143: ='RWH Calculator'!$C$56 -> 0 | J143: 58.69722222 | K143: 0 | L143: 0 | M143: 0 | N143: 0 | O143: -58.69722222 | P143: 2900.573643
A144: 2001-05-14 | B144: 0 | C144: 0 | D144: 0 | E144: 5 | F144: 0.15 | G144: 0.1059375 | H144: 58.69722222 | I144: ='RWH Calculator'!$C$56 -> 0 | J144: 58.69722222 | K144: 0 | L144: 0 | M144: 0 | N144: 0 | O144: -58.69722222 | P144: 2900.573643
A145: 2001-05-15 | B145: 0 | C145: 0 | D145: 0 | E145: 5 | F145: 0.15 | G145: 0.1059375 | H145: 58.69722222 | I145: ='RWH Calculator'!$C$56 -> 0 | J145: 58.69722222 | K145: 0 | L145: 0 | M145: 0 | N145: 0 | O145: -58.69722222 | P145: 2900.573643
A146: 2001-05-16 | B146: 0 | C146: 0 | D146: 0 | E146: 5 | F146: 0.15 | G146: 0.1059375 | H146: 58.69722222 | I146: ='RWH Calculator'!$C$56 -> 0 | J146: 58.69722222 | K146: 0 | L146: 0 | M146: 0 | N146: 0 | O146: -58.69722222 | P146: 2900.573643
A147: 2001-05-17 | B147: 0 | C147: 0 | D147: 0 | E147: 5 | F147: 0.15 | G147: 0.1059375 | H147: 58.69722222 | I147: ='RWH Calculator'!$C$56 -> 0 | J147: 58.69722222 | K147: 0 | L147: 0 | M147: 0 | N147: 0 | O147: -58.69722222 | P147: 2900.573643
A148: 2001-05-18 | B148: 0 | C148: 0 | D148: 0 | E148: 5 | F148: 0.15 | G148: 0.1059375 | H148: 58.69722222 | I148: ='RWH Calculator'!$C$56 -> 0 | J148: 58.69722222 | K148: 0 | L148: 0 | M148: 0 | N148: 0 | O148: -58.69722222 | P148: 2900.573643
A149: 2001-05-19 | B149: 0 | C149: 0 | D149: 0 | E149: 5 | F149: 0.15 | G149: 0.1059375 | H149: 58.69722222 | I149: ='RWH Calculator'!$C$56 -> 0 | J149: 58.69722222 | K149: 0 | L149: 0 | M149: 0 | N149: 0 | O149: -58.69722222 | P149: 2900.573643
A150: 2001-05-20 | B150: 0 | C150: 0 | D150: 0 | E150: 5 | F150: 0.15 | G150: 0.1059375 | H150: 58.69722222 | I150: ='RWH Calculator'!$C$56 -> 0 | J150: 58.69722222 | K150: 0 | L150: 0 | M150: 0 | N150: 0 | O150: -58.69722222 | P150: 2900.573643
A151: 2001-05-21 | B151: 0 | C151: 0 | D151: 0 | E151: 5 | F151: 0.15 | G151: 0.1059375 | H151: 58.69722222 | I151: ='RWH Calculator'!$C$56 -> 0 | J151: 58.69722222 | K151: 0 | L151: 0 | M151: 0 | N151: 0 | O151: -58.69722222 | P151: 2900.573643
A152: 2001-05-22 | B152: 0 | C152: 0 | D152: 0 | E152: 5 | F152: 0.15 | G152: 0.1059375 | H152: 58.69722222 | I152: ='RWH Calculator'!$C$56 -> 0 | J152: 58.69722222 | K152: 0 | L152: 0 | M152: 0 | N152: 0 | O152: -58.69722222 | P152: 2900.573643
A153: 2001-05-23 | B153: 0 | C153: 0 | D153: 0 | E153: 5 | F153: 0.15 | G153: 0.1059375 | H153: 58.69722222 | I153: ='RWH Calculator'!$C$56 -> 0 | J153: 58.69722222 | K153: 0 | L153: 0 | M153: 0 | N153: 0 | O153: -58.69722222 | P153: 2900.573643
A154: 2001-05-24 | B154: 0 | C154: 0 | D154: 0 | E154: 5 | F154: 0.15 | G154: 0.1059375 | H154: 58.69722222 | I154: ='RWH Calculator'!$C$56 -> 0 | J154: 58.69722222 | K154: 0 | L154: 0 | M154: 0 | N154: 0 | O154: -58.69722222 | P154: 2900.573643
A155: 2001-05-25 | B155: 0 | C155: 0 | D155: 0 | E155: 5 | F155: 0.15 | G155: 0.1059375 | H155: 58.69722222 | I155: ='RWH Calculator'!$C$56 -> 0 | J155: 58.69722222 | K155: 0 | L155: 0 | M155: 0 | N155: 0 | O155: -58.69722222 | P155: 2900.573643
A156: 2001-05-26 | B156: 0 | C156: 0 | D156: 0 | E156: 5 | F156: 0.15 | G156: 0.1059375 | H156: 58.69722222 | I156: ='RWH Calculator'!$C$56 -> 0 | J156: 58.69722222 | K156: 0 | L156: 0 | M156: 0 | N156: 0 | O156: -58.69722222 | P156: 2900.573643
A157: 2001-05-27 | B157: 0 | C157: 0 | D157: 0 | E157: 5 | F157: 0.15 | G157: 0.1059375 | H157: 58.69722222 | I157: ='RWH Calculator'!$C$56 -> 0 | J157: 58.69722222 | K157: 0 | L157: 0 | M157: 0 | N157: 0 | O157: -58.69722222 | P157: 2900.573643
A158: 2001-05-28 | B158: 0 | C158: 0 | D158: 0 | E158: 5 | F158: 0.15 | G158: 0.1059375 | H158: 58.69722222 | I158: ='RWH Calculator'!$C$56 -> 0 | J158: 58.69722222 | K158: 0 | L158: 0 | M158: 0 | N158: 0 | O158: -58.69722222 | P158: 2900.573643
A159: 2001-05-29 | B159: 0 | C159: 0 | D159: 0 | E159: 5 | F159: 0.15 | G159: 0.1059375 | H159: 58.69722222 | I159: ='RWH Calculator'!$C$56 -> 0 | J159: 58.69722222 | K159: 0 | L159: 0 | M159: 0 | N159: 0 | O159: -58.69722222 | P159: 2900.573643
A160: 2001-05-30 | B160: 0 | C160: 0 | D160: 0 | E160: 5 | F160: 0.15 | G160: 0.1059375 | H160: 58.69722222 | I160: ='RWH Calculator'!$C$56 -> 0 | J160: 58.69722222 | K160: 0 | L160: 0 | M160: 0 | N160: 0 | O160: -58.69722222 | P160: 2900.573643
A161: 2001-05-31 | B161: 0 | C161: 0 | D161: 0 | E161: 5 | F161: 0.15 | G161: 0.1059375 | H161: 58.69722222 | I161: ='RWH Calculator'!$C$56 -> 0 | J161: 58.69722222 | K161: 0 | L161: 0 | M161: 0 | N161: 0 | O161: -58.69722222 | P161: 2900.573643
A162: 2001-06-01 | B162: 0 | C162: 0 | D162: 0 | E162: 6 | F162: 0.17 | G162: 0.1200625 | H162: 66.52351852 | I162: ='RWH Calculator'!$C$56 -> 0 | J162: 66.52351852 | K162: 0 | L162: 0 | M162: 0 | N162: 0 | O162: -66.52351852 | P162: 2900.573643
A163: 2001-06-02 | B163: 0 | C163: 0 | D163: 0 | E163: 6 | F163: 0.17 | G163: 0.1200625 | H163: 66.52351852 | I163: ='RWH Calculator'!$C$56 -> 0 | J163: 66.52351852 | K163: 0 | L163: 0 | M163: 0 | N163: 0 | O163: -66.52351852 | P163: 2900.573643
A164: 2001-06-03 | B164: 0 | C164: 0 | D164: 0 | E164: 6 | F164: 0.17 | G164: 0.1200625 | H164: 66.52351852 | I164: ='RWH Calculator'!$C$56 -> 0 | J164: 66.52351852 | K164: 0 | L164: 0 | M164: 0 | N164: 0 | O164: -66.52351852 | P164: 2900.573643
A165: 2001-06-04 | B165: 0 | C165: 0 | D165: 0 | E165: 6 | F165: 0.17 | G165: 0.1200625 | H165: 66.52351852 | I165: ='RWH Calculator'!$C$56 -> 0 | J165: 66.52351852 | K165: 0 | L165: 0 | M165: 0 | N165: 0 | O165: -66.52351852 | P165: 2900.573643
A166: 2001-06-05 | B166: 0 | C166: 0 | D166: 0 | E166: 6 | F166: 0.17 | G166: 0.1200625 | H166: 66.52351852 | I166: ='RWH Calculator'!$C$56 -> 0 | J166: 66.52351852 | K166: 0 | L166: 0 | M166: 0 | N166: 0 | O166: -66.52351852 | P166: 2900.573643
A167: 2001-06-06 | B167: 0 | C167: 0 | D167: 0 | E167: 6 | F167: 0.17 | G167: 0.1200625 | H167: 66.52351852 | I167: ='RWH Calculator'!$C$56 -> 0 | J167: 66.52351852 | K167: 0 | L167: 0 | M167: 0 | N167: 0 | O167: -66.52351852 | P167: 2900.573643
A168: 2001-06-07 | B168: 0 | C168: 0 | D168: 0 | E168: 6 | F168: 0.17 | G168: 0.1200625 | H168: 66.52351852 | I168: ='RWH Calculator'!$C$56 -> 0 | J168: 66.52351852 | K168: 0 | L168: 0 | M168: 0 | N168: 0 | O168: -66.52351852 | P168: 2900.573643
A169: 2001-06-08 | B169: 0 | C169: 0 | D169: 0 | E169: 6 | F169: 0.17 | G169: 0.1200625 | H169: 66.52351852 | I169: ='RWH Calculator'!$C$56 -> 0 | J169: 66.52351852 | K169: 0 | L169: 0 | M169: 0 | N169: 0 | O169: -66.52351852 | P169: 2900.573643
A170: 2001-06-09 | B170: 0 | C170: 0 | D170: 0 | E170: 6 | F170: 0.17 | G170: 0.1200625 | H170: 66.52351852 | I170: ='RWH Calculator'!$C$56 -> 0 | J170: 66.52351852 | K170: 0 | L170: 0 | M170: 0 | N170: 0 | O170: -66.52351852 | P170: 2900.573643
A171: 2001-06-10 | B171: 0 | C171: 0 | D171: 0 | E171: 6 | F171: 0.17 | G171: 0.1200625 | H171: 66.52351852 | I171: ='RWH Calculator'!$C$56 -> 0 | J171: 66.52351852 | K171: 0 | L171: 0 | M171: 0 | N171: 0 | O171: -66.52351852 | P171: 2900.573643
A172: 2001-06-11 | B172: 0 | C172: 0 | D172: 0 | E172: 6 | F172: 0.17 | G172: 0.1200625 | H172: 66.52351852 | I172: ='RWH Calculator'!$C$56 -> 0 | J172: 66.52351852 | K172: 0 | L172: 0 | M172: 0 | N172: 0 | O172: -66.52351852 | P172: 2900.573643
A173: 2001-06-12 | B173: 0 | C173: 0 | D173: 0 | E173: 6 | F173: 0.17 | G173: 0.1200625 | H173: 66.52351852 | I173: ='RWH Calculator'!$C$56 -> 0 | J173: 66.52351852 | K173: 0 | L173: 0 | M173: 0 | N173: 0 | O173: -66.52351852 | P173: 2900.573643
A174: 2001-06-13 | B174: 0 | C174: 0 | D174: 0 | E174: 6 | F174: 0.17 | G174: 0.1200625 | H174: 66.52351852 | I174: ='RWH Calculator'!$C$56 -> 0 | J174: 66.52351852 | K174: 0 | L174: 0 | M174: 0 | N174: 0 | O174: -66.52351852 | P174: 2900.573643
A175: 2001-06-14 | B175: 0 | C175: 0 | D175: 0 | E175: 6 | F175: 0.17 | G175: 0.1200625 | H175: 66.52351852 | I175: ='RWH Calculator'!$C$56 -> 0 | J175: 66.52351852 | K175: 0 | L175: 0 | M175: 0 | N175: 0 | O175: -66.52351852 | P175: 2900.573643
A176: 2001-06-15 | B176: 0 | C176: 0 | D176: 0 | E176: 6 | F176: 0.17 | G176: 0.1200625 | H176: 66.52351852 | I176: ='RWH Calculator'!$C$56 -> 0 | J176: 66.52351852 | K176: 0 | L176: 0 | M176: 0 | N176: 0 | O176: -66.52351852 | P176: 2900.573643
A177: 2001-06-16 | B177: 0 | C177: 0 | D177: 0 | E177: 6 | F177: 0.17 | G177: 0.1200625 | H177: 66.52351852 | I177: ='RWH Calculator'!$C$56 -> 0 | J177: 66.52351852 | K177: 0 | L177: 0 | M177: 0 | N177: 0 | O177: -66.52351852 | P177: 2900.573643
A178: 2001-06-17 | B178: 0 | C178: 0 | D178: 0 | E178: 6 | F178: 0.17 | G178: 0.1200625 | H178: 66.52351852 | I178: ='RWH Calculator'!$C$56 -> 0 | J178: 66.52351852 | K178: 0 | L178: 0 | M178: 0 | N178: 0 | O178: -66.52351852 | P178: 2900.573643
A179: 2001-06-18 | B179: 0 | C179: 0 | D179: 0 | E179: 6 | F179: 0.17 | G179: 0.1200625 | H179: 66.52351852 | I179: ='RWH Calculator'!$C$56 -> 0 | J179: 66.52351852 | K179: 0 | L179: 0 | M179: 0 | N179: 0 | O179: -66.52351852 | P179: 2900.573643
A180: 2001-06-19 | B180: 0 | C180: 0 | D180: 0 | E180: 6 | F180: 0.17 | G180: 0.1200625 | H180: 66.52351852 | I180: ='RWH Calculator'!$C$56 -> 0 | J180: 66.52351852 | K180: 0 | L180: 0 | M180: 0 | N180: 0 | O180: -66.52351852 | P180: 2900.573643
A181: 2001-06-20 | B181: 0 | C181: 0 | D181: 0 | E181: 6 | F181: 0.17 | G181: 0.1200625 | H181: 66.52351852 | I181: ='RWH Calculator'!$C$56 -> 0 | J181: 66.52351852 | K181: 0 | L181: 0 | M181: 0 | N181: 0 | O181: -66.52351852 | P181: 2900.573643
A182: 2001-06-21 | B182: 0 | C182: 0 | D182: 0 | E182: 6 | F182: 0.17 | G182: 0.1200625 | H182: 66.52351852 | I182: ='RWH Calculator'!$C$56 -> 0 | J182: 66.52351852 | K182: 0 | L182: 0 | M182: 0 | N182: 0 | O182: -66.52351852 | P182: 2900.573643
A183: 2001-06-22 | B183: 0 | C183: 0 | D183: 0 | E183: 6 | F183: 0.17 | G183: 0.1200625 | H183: 66.52351852 | I183: ='RWH Calculator'!$C$56 -> 0 | J183: 66.52351852 | K183: 0 | L183: 0 | M183: 0 | N183: 0 | O183: -66.52351852 | P183: 2900.573643
A184: 2001-06-23 | B184: 0 | C184: 0 | D184: 0 | E184: 6 | F184: 0.17 | G184: 0.1200625 | H184: 66.52351852 | I184: ='RWH Calculator'!$C$56 -> 0 | J184: 66.52351852 | K184: 0 | L184: 0 | M184: 0 | N184: 0 | O184: -66.52351852 | P184: 2900.573643
A185: 2001-06-24 | B185: 0 | C185: 0 | D185: 0 | E185: 6 | F185: 0.17 | G185: 0.1200625 | H185: 66.52351852 | I185: ='RWH Calculator'!$C$56 -> 0 | J185: 66.52351852 | K185: 0 | L185: 0 | M185: 0 | N185: 0 | O185: -66.52351852 | P185: 2900.573643
A186: 2001-06-25 | B186: 0.15 | C186: 95.37 | D186: 95.37 | E186: 6 | F186: 0.17 | G186: 0.1200625 | H186: 0 | I186: ='RWH Calculator'!$C$56 -> 0 | J186: 0 | K186: 95.37 | L186: 95.37 | M186: 0 | N186: 0 | O186: 95.37 | P186: 2900.573643
A187: 2001-06-26 | B187: 0 | C187: 0 | D187: 0 | E187: 6 | F187: 0.17 | G187: 0.1200625 | H187: 66.52351852 | I187: ='RWH Calculator'!$C$56 -> 0 | J187: 66.52351852 | K187: 28.84648148 | L187: 0 | M187: 66.52351852 | N187: 0 | O187: 28.84648148 | P187: 2967.097161
A188: 2001-06-27 | B188: 0 | C188: 0 | D188: 0 | E188: 6 | F188: 0.17 | G188: 0.1200625 | H188: 66.52351852 | I188: ='RWH Calculator'!$C$56 -> 0 | J188: 66.52351852 | K188: 0 | L188: 0 | M188: 28.84648148 | N188: 0 | O188: -37.67703704 | P188: 2995.943643
A189: 2001-06-28 | B189: 0 | C189: 0 | D189: 0 | E189: 6 | F189: 0.17 | G189: 0.1200625 | H189: 66.52351852 | I189: ='RWH Calculator'!$C$56 -> 0 | J189: 66.52351852 | K189: 0 | L189: 0 | M189: 0 | N189: 0 | O189: -66.52351852 | P189: 2995.943643
A190: 2001-06-29 | B190: 0 | C190: 0 | D190: 0 | E190: 6 | F190: 0.17 | G190: 0.1200625 | H190: 66.52351852 | I190: ='RWH Calculator'!$C$56 -> 0 | J190: 66.52351852 | K190: 0 | L190: 0 | M190: 0 | N190: 0 | O190: -66.52351852 | P190: 2995.943643
A191: 2001-06-30 | B191: 0 | C191: 0 | D191: 0 | E191: 6 | F191: 0.17 | G191: 0.1200625 | H191: 66.52351852 | I191: ='RWH Calculator'!$C$56 -> 0 | J191: 66.52351852 | K191: 0 | L191: 0 | M191: 0 | N191: 0 | O191: -66.52351852 | P191: 2995.943643
A192: 2001-07-01 | B192: 0 | C192: 0 | D192: 0 | E192: 7 | F192: 0.16 | G192: 0.113 | H192: 62.61037037 | I192: ='RWH Calculator'!$C$56 -> 0 | J192: 62.61037037 | K192: 0 | L192: 0 | M192: 0 | N192: 0 | O192: -62.61037037 | P192: 2995.943643
A193: 2001-07-02 | B193: 0 | C193: 0 | D193: 0 | E193: 7 | F193: 0.16 | G193: 0.113 | H193: 62.61037037 | I193: ='RWH Calculator'!$C$56 -> 0 | J193: 62.61037037 | K193: 0 | L193: 0 | M193: 0 | N193: 0 | O193: -62.61037037 | P193: 2995.943643
A194: 2001-07-03 | B194: 0 | C194: 0 | D194: 0 | E194: 7 | F194: 0.16 | G194: 0.113 | H194: 62.61037037 | I194: ='RWH Calculator'!$C$56 -> 0 | J194: 62.61037037 | K194: 0 | L194: 0 | M194: 0 | N194: 0 | O194: -62.61037037 | P194: 2995.943643
A195: 2001-07-04 | B195: 0 | C195: 0 | D195: 0 | E195: 7 | F195: 0.16 | G195: 0.113 | H195: 62.61037037 | I195: ='RWH Calculator'!$C$56 -> 0 | J195: 62.61037037 | K195: 0 | L195: 0 | M195: 0 | N195: 0 | O195: -62.61037037 | P195: 2995.943643
A196: 2001-07-05 | B196: 0 | C196: 0 | D196: 0 | E196: 7 | F196: 0.16 | G196: 0.113 | H196: 62.61037037 | I196: ='RWH Calculator'!$C$56 -> 0 | J196: 62.61037037 | K196: 0 | L196: 0 | M196: 0 | N196: 0 | O196: -62.61037037 | P196: 2995.943643
A197: 2001-07-06 | B197: 0 | C197: 0 | D197: 0 | E197: 7 | F197: 0.16 | G197: 0.113 | H197: 62.61037037 | I197: ='RWH Calculator'!$C$56 -> 0 | J197: 62.61037037 | K197: 0 | L197: 0 | M197: 0 | N197: 0 | O197: -62.61037037 | P197: 2995.943643
A198: 2001-07-07 | B198: 0 | C198: 0 | D198: 0 | E198: 7 | F198: 0.16 | G198: 0.113 | H198: 62.61037037 | I198: ='RWH Calculator'!$C$56 -> 0 | J198: 62.61037037 | K198: 0 | L198: 0 | M198: 0 | N198: 0 | O198: -62.61037037 | P198: 2995.943643
A199: 2001-07-08 | B199: 0 | C199: 0 | D199: 0 | E199: 7 | F199: 0.16 | G199: 0.113 | H199: 62.61037037 | I199: ='RWH Calculator'!$C$56 -> 0 | J199: 62.61037037 | K199: 0 | L199: 0 | M199: 0 | N199: 0 | O199: -62.61037037 | P199: 2995.943643
A200: 2001-07-09 | B200: 0 | C200: 0 | D200: 0 | E200: 7 | F200: 0.16 | G200: 0.113 | H200: 62.61037037 | I200: ='RWH Calculator'!$C$56 -> 0 | J200: 62.61037037 | K200: 0 | L200: 0 | M200: 0 | N200: 0 | O200: -62.61037037 | P200: 2995.943643
A201: 2001-07-10 | B201: 0 | C201: 0 | D201: 0 | E201: 7 | F201: 0.16 | G201: 0.113 | H201: 62.61037037 | I201: ='RWH Calculator'!$C$56 -> 0 | J201: 62.61037037 | K201: 0 | L201: 0 | M201: 0 | N201: 0 | O201: -62.61037037 | P201: 2995.943643
... 3461 more rows

Sheet RWH Performance Evaluation (hidden)
A1: RAINWATER HARVESTER PERFORMANCE
A2: Runoff | D2: =SUM('RWH 10-yr Simulation'!C11:C3662) -> 147969.734 | E2: gal
A3: Runoff Collected | D3: =SUM('RWH 10-yr Simulation'!D11:D3662) -> 147969.734 | E3: gal
A4: Water Captured | D4: =SUM('RWH 10-yr Simulation'!L11:L3662) -> 42750.23229 | E4: gal
A5: System Performance Capture | D5: =D4/D2 -> 0.2889120034
A7: Non-Potable Water Demand | D7: =SUM('RWH 10-yr Simulation'!J11:J3662) -> 136877.8013 | E7: gal
A8: Water Harvested and Reused | D8: =SUM('RWH 10-yr Simulation'!M11:M3662) -> 41724.07739 | E8: gal
A9: Non-Potable Demand Met | D9: =D8/D7 -> 0.3048272035
A11: Total Overflow | D11: =SUM('RWH 10-yr Simulation'!N11:N3662) -> 105219.5017 | E11: gal
A12: Peak Overflow | D12: =MAX('RWH 10-yr Simulation'!N11:N3662) -> 1977.338 | E12: gal//day
A14: Days with Precipitation | D14: =COUNTIF('RWH 10-yr Simulation'!B11:B3662,">0") -> 689 | E14: days
A15: Days with Irrigation Demand | D15: =COUNTIF('RWH 10-yr Simulation'!H11:H3662, ">0") -> 3129 | E15: days
A16: Days with Water in Cistern | D16: =COUNTIF('RWH 10-yr Simulation'!K11:K3662, ">0") -> 1914 | E16: days
C17: Avg Cistern Volume Before Storm | D17: =K31 -> 822.1672428 | E17: gal
A20: Annual Analysis | G20: Extended Rainy Season Analysis (October - May) | M20: Compacted Rainy Season Analysis (November - April)
A21: Days Prior to Rain Event | G21: Days Prior to Rain Event | M21: Days Prior to Rain Event
A22: Date | B22: Volume in Storage (gal) | C22: Before Storm Statistics | G22: Date | H22: Volume in Storage (gal) | I22: Before Storm Statistics | M22: Date | N22: Volume in Storage (gal) | O22: Before Storm Statistics
A23: 2001-01-07 | B23: =VLOOKUP(A23,'RWH 10-yr Simulation'!$A$11:$N$3662,11) -> 0 | D23: Total Rainy Days | E23: =COUNT(A23:A711) -> 689 | F23: days | G23: 2001-01-07 | H23: =VLOOKUP(G23,'RWH 10-yr Simulation'!$A$11:$N$3662,11) -> 0 | J23: Total Rainy Days | K23: =COUNT(G23:G678) -> 656 | M23: 2001-01-07 | N23: =VLOOKUP(M23,'RWH 10-yr Simulation'!$A$11:$N$3662,11) -> 0 | P23: Total Rainy Days | Q23: =COUNT(M23:M615) -> 593
A24: 2001-01-08 | B24: =VLOOKUP(A24,'RWH 10-yr Simulation'!$A$11:$N$3662,11) -> 356.048 | D24: No water in cistern | E24: =COUNTIF(B23:B711, "0") -> 68 | F24: days | G24: 2001-01-08 | H24: =VLOOKUP(G24,'RWH 10-yr Simulation'!$A$11:$N$3662,11) -> 356.048 | J24: No water in cistern | K24: =COUNTIF(H23:H678, "0") -> 38 | L24: days | M24: 2001-01-08 | N24: =VLOOKUP(M24,'RWH 10-yr Simulation'!$A$11:$N$3662,11) -> 356.048 | P24: No water in cistern | Q24: =COUNTIF(N23:N615, "0") -> 15 | R24: days
A25: 2001-01-09 | B25: =VLOOKUP(A25,'RWH 10-yr Simulation'!$A$11:$N$3662,11) -> 413.27 | D25: No water in cistern | E25: =E24/689 -> 0.09869375907 | G25: 2001-01-09 | H25: =VLOOKUP(G25,'RWH 10-yr Simulation'!$A$11:$N$3662,11) -> 413.27 | J25: No water in cistern | K25: =K24/689 -> 0.05515239478 | M25: 2001-01-09 | N25: =VLOOKUP(M25,'RWH 10-yr Simulation'!$A$11:$N$3662,11) -> 413.27 | P25: No water in cistern | Q25: =Q24/689 -> 0.02177068215
A26: 2001-01-10 | B26: =VLOOKUP(A26,'RWH 10-yr Simulation'!$A$11:$N$3662,11) -> 890.12 | D26: Cistern Full | E26: =COUNTIF(B23:B711, ">=" &'RWH Calculator'!C75) -> 265 | F26: days | G26: 2001-01-10 | H26: =VLOOKUP(G26,'RWH 10-yr Simulation'!$A$11:$N$3662,11) -> 890.12 | J26: Cistern Full | K26: =COUNTIF(H23:H678, ">=" &'RWH Calculator'!C75) -> 265 | L26: days | M26: 2001-01-10 | N26: =VLOOKUP(M26,'RWH 10-yr Simulation'!$A$11:$N$3662,11) -> 890.12 | P26: Cistern Full | Q26: =COUNTIF(N23:N615, ">=" &'RWH Calculator'!C75) -> 265 | R26: days
A27: 2001-01-11 | B27: =VLOOKUP(A27,'RWH 10-yr Simulation'!$A$11:$N$3662,11) -> 1057.460087 | D27: Cistern Full | E27: =E26/689 -> 0.3846153846 | G27: 2001-01-11 | H27: =VLOOKUP(G27,'RWH 10-yr Simulation'!$A$11:$N$3662,11) -> 1057.460087 | J27: Cistern Full | K27: =K26/689 -> 0.3846153846 | M27: 2001-01-11 | N27: =VLOOKUP(M27,'RWH 10-yr Simulation'!$A$11:$N$3662,11) -> 1057.460087 | P27: Cistern Full | Q27: =Q26/689 -> 0.3846153846
A28: 2001-01-22 | B28: =VLOOKUP(A28,'RWH 10-yr Simulation'!$A$11:$N$3662,11) -> 897.1803094 | G28: 2001-01-22 | H28: =VLOOKUP(G28,'RWH 10-yr Simulation'!$A$11:$N$3662,11) -> 897.1803094 | M28: 2001-01-22 | N28: =VLOOKUP(M28,'RWH 10-yr Simulation'!$A$11:$N$3662,11) -> 897.1803094
A29: 2001-01-23 | B29: =VLOOKUP(A29,'RWH 10-yr Simulation'!$A$11:$N$3662,11) -> 1057.460087 | G29: 2001-01-23 | H29: =VLOOKUP(G29,'RWH 10-yr Simulation'!$A$11:$N$3662,11) -> 1057.460087 | M29: 2001-01-23 | N29: =VLOOKUP(M29,'RWH 10-yr Simulation'!$A$11:$N$3662,11) -> 1057.460087
A30: 2001-01-24 | B30: =VLOOKUP(A30,'RWH 10-yr Simulation'!$A$11:$N$3662,11) -> 1057.460087 | C30: Annual Averages | G30: 2001-01-24 | H30: =VLOOKUP(G30,'RWH 10-yr Simulation'!$A$11:$N$3662,11) -> 1057.460087 | I30: Seasonal Averages | M30: 2001-01-24 | N30: =VLOOKUP(M30,'RWH 10-yr Simulation'!$A$11:$N$3662,11) -> 1057.460087 | O30: Seasonal Averages
A31: 2001-01-25 | B31: =VLOOKUP(A31,'RWH 10-yr Simulation'!$A$11:$N$3662,11) -> 1057.460087 | D31: Average Volume | E31: =AVERAGE(B23:B711) -> 783.5663225 | F31: gal | G31: 2001-01-25 | H31: =VLOOKUP(G31,'RWH 10-yr Simulation'!$A$11:$N$3662,11) -> 1057.460087 | J31: Average Volume | K31: =AVERAGE(H23:H678) -> 822.1672428 | L31: gal | M31: 2001-01-25 | N31: =VLOOKUP(M31,'RWH 10-yr Simulation'!$A$11:$N$3662,11) -> 1057.460087 | P31: Average Volume | Q31: =AVERAGE(N23:N615) -> 889.0867754 | R31: gal
A32: 2001-01-28 | B32: =VLOOKUP(A32,'RWH 10-yr Simulation'!$A$11:$N$3662,11) -> 1026.154902 | D32: Above Average | E32: =COUNTIF(B23:B711, ">" &E31) -> 479 | F32: days | G32: 2001-01-28 | H32: =VLOOKUP(G32,'RWH 10-yr Simulation'!$A$11:$N$3662,11) -> 1026.154902 | J32: Above Average | K32: =COUNTIF(H23:H678, ">" &K31) -> 473 | L32: days | M32: 2001-01-28 | N32: =VLOOKUP(M32,'RWH 10-yr Simulation'!$A$11:$N$3662,11) -> 1026.154902 | P32: Above Average | Q32: =COUNTIF(N23:N615, ">" &Q31) -> 439 | R32: days
A33: 2001-02-05 | B33: =VLOOKUP(A33,'RWH 10-yr Simulation'!$A$11:$N$3662,11) -> 908.7604576 | D33: Above Average | E33: =E32/E23 -> 0.6952104499 | G33: 2001-02-05 | H33: =VLOOKUP(G33,'RWH 10-yr Simulation'!$A$11:$N$3662,11) -> 908.7604576 | J33: Above Average | K33: =K32/K23 -> 0.7210365854 | M33: 2001-02-05 | N33: =VLOOKUP(M33,'RWH 10-yr Simulation'!$A$11:$N$3662,11) -> 908.7604576 | P33: Above Average | Q33: =Q32/Q23 -> 0.7403035413
A34: 2001-02-08 | B34: =VLOOKUP(A34,'RWH 10-yr Simulation'!$A$11:$N$3662,11) -> 885.9187539 | D34: Below Average | E34: =COUNTIF(B23:B711, "<" &E31) -> 210 | F34: days | G34: 2001-02-08 | H34: =VLOOKUP(G34,'RWH 10-yr Simulation'!$A$11:$N$3662,11) -> 885.9187539 | J34: Below Average | K34: =COUNTIF(H23:H678, "<" &K31) -> 183 | L34: days | M34: 2001-02-08 | N34: =VLOOKUP(M34,'RWH 10-yr Simulation'!$A$11:$N$3662,11) -> 885.9187539 | P34: Below Average | Q34: =COUNTIF(N23:N615, "<" &Q31) -> 154 | R34: days
A35: 2001-02-09 | B35: =VLOOKUP(A35,'RWH 10-yr Simulation'!$A$11:$N$3662,11) -> 1057.460087 | D35: Below Average | E35: =E34/E23 -> 0.3047895501 | G35: 2001-02-09 | H35: =VLOOKUP(G35,'RWH 10-yr Simulation'!$A$11:$N$3662,11) -> 1057.460087 | J35: Below Average | K35: =K34/K23 -> 0.2789634146 | M35: 2001-02-09 | N35: =VLOOKUP(M35,'RWH 10-yr Simulation'!$A$11:$N$3662,11) -> 1057.460087 | P35: Below Average | Q35: =Q34/Q23 -> 0.2596964587
A36: 2001-02-10 | B36: =VLOOKUP(A36,'RWH 10-yr Simulation'!$A$11:$N$3662,11) -> 1057.460087 | G36: 2001-02-10 | H36: =VLOOKUP(G36,'RWH 10-yr Simulation'!$A$11:$N$3662,11) -> 1057.460087 | M36: 2001-02-10 | N36: =VLOOKUP(M36,'RWH 10-yr Simulation'!$A$11:$N$3662,11) -> 1057.460087
A37: 2001-02-11 | B37: =VLOOKUP(A37,'RWH 10-yr Simulation'!$A$11:$N$3662,11) -> 1057.460087 | G37: 2001-02-11 | H37: =VLOOKUP(G37,'RWH 10-yr Simulation'!$A$11:$N$3662,11) -> 1057.460087 | M37: 2001-02-11 | N37: =VLOOKUP(M37,'RWH 10-yr Simulation'!$A$11:$N$3662,11) -> 1057.460087
A38: 2001-02-16 | B38: =VLOOKUP(A38,'RWH 10-yr Simulation'!$A$11:$N$3662,11) -> 963.5445316 | G38: 2001-02-16 | H38: =VLOOKUP(G38,'RWH 10-yr Simulation'!$A$11:$N$3662,11) -> 963.5445316 | M38: 2001-02-16 | N38: =VLOOKUP(M38,'RWH 10-yr Simulation'!$A$11:$N$3662,11) -> 963.5445316
A39: 2001-02-17 | B39: =VLOOKUP(A39,'RWH 10-yr Simulation'!$A$11:$N$3662,11) -> 1057.460087 | G39: 2001-02-17 | H39: =VLOOKUP(G39,'RWH 10-yr Simulation'!$A$11:$N$3662,11) -> 1057.460087 | M39: 2001-02-17 | N39: =VLOOKUP(M39,'RWH 10-yr Simulation'!$A$11:$N$3662,11) -> 1057.460087
A40: 2001-02-18 | B40: =VLOOKUP(A40,'RWH 10-yr Simulation'!$A$11:$N$3662,11) -> 1057.460087 | G40: 2001-02-18 | H40: =VLOOKUP(G40,'RWH 10-yr Simulation'!$A$11:$N$3662,11) -> 1057.460087 | M40: 2001-02-18 | N40: =VLOOKUP(M40,'RWH 10-yr Simulation'!$A$11:$N$3662,11) -> 1057.460087
A41: 2001-02-19 | B41: =VLOOKUP(A41,'RWH 10-yr Simulation'!$A$11:$N$3662,11) -> 1057.460087 | G41: 2001-02-19 | H41: =VLOOKUP(G41,'RWH 10-yr Simulation'!$A$11:$N$3662,11) -> 1057.460087 | M41: 2001-02-19 | N41: =VLOOKUP(M41,'RWH 10-yr Simulation'!$A$11:$N$3662,11) -> 1057.460087
A42: 2001-02-20 | B42: =VLOOKUP(A42,'RWH 10-yr Simulation'!$A$11:$N$3662,11) -> 1057.460087 | G42: 2001-02-20 | H42: =VLOOKUP(G42,'RWH 10-yr Simulation'!$A$11:$N$3662,11) -> 1057.460087 | M42: 2001-02-20 | N42: =VLOOKUP(M42,'RWH 10-yr Simulation'!$A$11:$N$3662,11) -> 1057.460087
A43: 2001-02-21 | B43: =VLOOKUP(A43,'RWH 10-yr Simulation'!$A$11:$N$3662,11) -> 1057.460087 | G43: 2001-02-21 | H43: =VLOOKUP(G43,'RWH 10-yr Simulation'!$A$11:$N$3662,11) -> 1057.460087 | M43: 2001-02-21 | N43: =VLOOKUP(M43,'RWH 10-yr Simulation'!$A$11:$N$3662,11) -> 1057.460087
A44: 2001-02-22 | B44: =VLOOKUP(A44,'RWH 10-yr Simulation'!$A$11:$N$3662,11) -> 1057.460087 | G44: 2001-02-22 | H44: =VLOOKUP(G44,'RWH 10-yr Simulation'!$A$11:$N$3662,11) -> 1057.460087 | M44: 2001-02-22 | N44: =VLOOKUP(M44,'RWH 10-yr Simulation'!$A$11:$N$3662,11) -> 1057.460087
A45: 2001-02-23 | B45: =VLOOKUP(A45,'RWH 10-yr Simulation'!$A$11:$N$3662,11) -> 1057.460087 | G45: 2001-02-23 | H45: =VLOOKUP(G45,'RWH 10-yr Simulation'!$A$11:$N$3662,11) -> 1057.460087 | M45: 2001-02-23 | N45: =VLOOKUP(M45,'RWH 10-yr Simulation'!$A$11:$N$3662,11) -> 1057.460087
A46: 2001-02-24 | B46: =VLOOKUP(A46,'RWH 10-yr Simulation'!$A$11:$N$3662,11) -> 1057.460087 | G46: 2001-02-24 | H46: =VLOOKUP(G46,'RWH 10-yr Simulation'!$A$11:$N$3662,11) -> 1057.460087 | M46: 2001-02-24 | N46: =VLOOKUP(M46,'RWH 10-yr Simulation'!$A$11:$N$3662,11) -> 1057.460087
A47: 2001-02-28 | B47: =VLOOKUP(A47,'RWH 10-yr Simulation'!$A$11:$N$3662,11) -> 987.0234205 | G47: 2001-02-28 | H47: =VLOOKUP(G47,'RWH 10-yr Simulation'!$A$11:$N$3662,11) -> 987.0234205 | M47: 2001-02-28 | N47: =VLOOKUP(M47,'RWH 10-yr Simulation'!$A$11:$N$3662,11) -> 987.0234205
A48: 2001-03-01 | B48: =VLOOKUP(A48,'RWH 10-yr Simulation'!$A$11:$N$3662,11) -> 1019.284383 | G48: 2001-03-01 | H48: =VLOOKUP(G48,'RWH 10-yr Simulation'!$A$11:$N$3662,11) -> 1019.284383 | M48: 2001-03-01 | N48: =VLOOKUP(M48,'RWH 10-yr Simulation'!$A$11:$N$3662,11) -> 1019.284383
A49: 2001-03-02 | B49: =VLOOKUP(A49,'RWH 10-yr Simulation'!$A$11:$N$3662,11) -> 1057.460087 | G49: 2001-03-02 | H49: =VLOOKUP(G49,'RWH 10-yr Simulation'!$A$11:$N$3662,11) -> 1057.460087 | M49: 2001-03-02 | N49: =VLOOKUP(M49,'RWH 10-yr Simulation'!$A$11:$N$3662,11) -> 1057.460087
A50: 2001-03-03 | B50: =VLOOKUP(A50,'RWH 10-yr Simulation'!$A$11:$N$3662,11) -> 1057.460087 | G50: 2001-03-03 | H50: =VLOOKUP(G50,'RWH 10-yr Simulation'!$A$11:$N$3662,11) -> 1057.460087 | M50: 2001-03-03 | N50: =VLOOKUP(M50,'RWH 10-yr Simulation'!$A$11:$N$3662,11) -> 1057.460087
A51: 2001-03-04 | B51: =VLOOKUP(A51,'RWH 10-yr Simulation'!$A$11:$N$3662,11) -> 1057.460087 | G51: 2001-03-04 | H51: =VLOOKUP(G51,'RWH 10-yr Simulation'!$A$11:$N$3662,11) -> 1057.460087 | M51: 2001-03-04 | N51: =VLOOKUP(M51,'RWH 10-yr Simulation'!$A$11:$N$3662,11) -> 1057.460087
A52: 2001-03-05 | B52: =VLOOKUP(A52,'RWH 10-yr Simulation'!$A$11:$N$3662,11) -> 1057.460087 | G52: 2001-03-05 | H52: =VLOOKUP(G52,'RWH 10-yr Simulation'!$A$11:$N$3662,11) -> 1057.460087 | M52: 2001-03-05 | N52: =VLOOKUP(M52,'RWH 10-yr Simulation'!$A$11:$N$3662,11) -> 1057.460087
A53: 2001-03-23 | B53: =VLOOKUP(A53,'RWH 10-yr Simulation'!$A$11:$N$3662,11) -> 364.9921613 | G53: 2001-03-23 | H53: =VLOOKUP(G53,'RWH 10-yr Simulation'!$A$11:$N$3662,11) -> 364.9921613 | M53: 2001-03-23 | N53: =VLOOKUP(M53,'RWH 10-yr Simulation'!$A$11:$N$3662,11) -> 364.9921613
A54: 2001-03-24 | B54: =VLOOKUP(A54,'RWH 10-yr Simulation'!$A$11:$N$3662,11) -> 397.2531242 | G54: 2001-03-24 | H54: =VLOOKUP(G54,'RWH 10-yr Simulation'!$A$11:$N$3662,11) -> 397.2531242 | M54: 2001-03-24 | N54: =VLOOKUP(M54,'RWH 10-yr Simulation'!$A$11:$N$3662,11) -> 397.2531242
A55: 2001-04-05 | B55: =VLOOKUP(A55,'RWH 10-yr Simulation'!$A$11:$N$3662,11) -> 0 | G55: 2001-04-05 | H55: =VLOOKUP(G55,'RWH 10-yr Simulation'!$A$11:$N$3662,11) -> 0 | M55: 2001-04-05 | N55: =VLOOKUP(M55,'RWH 10-yr Simulation'!$A$11:$N$3662,11) -> 0
A56: 2001-04-06 | B56: =VLOOKUP(A56,'RWH 10-yr Simulation'!$A$11:$N$3662,11) -> 158.95 | G56: 2001-04-06 | H56: =VLOOKUP(G56,'RWH 10-yr Simulation'!$A$11:$N$3662,11) -> 158.95 | M56: 2001-04-06 | N56: =VLOOKUP(M56,'RWH 10-yr Simulation'!$A$11:$N$3662,11) -> 158.95
A57: 2001-04-08 | B57: =VLOOKUP(A57,'RWH 10-yr Simulation'!$A$11:$N$3662,11) -> 273.3870741 | G57: 2001-04-08 | H57: =VLOOKUP(G57,'RWH 10-yr Simulation'!$A$11:$N$3662,11) -> 273.3870741 | M57: 2001-04-08 | N57: =VLOOKUP(M57,'RWH 10-yr Simulation'!$A$11:$N$3662,11) -> 273.3870741
A58: 2001-04-10 | B58: =VLOOKUP(A58,'RWH 10-yr Simulation'!$A$11:$N$3662,11) -> 400.5401481 | G58: 2001-04-10 | H58: =VLOOKUP(G58,'RWH 10-yr Simulation'!$A$11:$N$3662,11) -> 400.5401481 | M58: 2001-04-10 | N58: =VLOOKUP(M58,'RWH 10-yr Simulation'!$A$11:$N$3662,11) -> 400.5401481
A59: 2001-04-17 | B59: =VLOOKUP(A59,'RWH 10-yr Simulation'!$A$11:$N$3662,11) -> 139.6335926 | G59: 2001-04-17 | H59: =VLOOKUP(G59,'RWH 10-yr Simulation'!$A$11:$N$3662,11) -> 139.6335926 | M59: 2001-04-17 | N59: =VLOOKUP(M59,'RWH 10-yr Simulation'!$A$11:$N$3662,11) -> 139.6335926
A60: 2001-04-18 | B60: =VLOOKUP(A60,'RWH 10-yr Simulation'!$A$11:$N$3662,11) -> 160.1551111 | G60: 2001-04-18 | H60: =VLOOKUP(G60,'RWH 10-yr Simulation'!$A$11:$N$3662,11) -> 160.1551111 | M60: 2001-04-18 | N60: =VLOOKUP(M60,'RWH 10-yr Simulation'!$A$11:$N$3662,11) -> 160.1551111
A61: 2001-04-19 | B61: =VLOOKUP(A61,'RWH 10-yr Simulation'!$A$11:$N$3662,11) -> 121.1829259 | G61: 2001-04-19 | H61: =VLOOKUP(G61,'RWH 10-yr Simulation'!$A$11:$N$3662,11) -> 121.1829259 | M61: 2001-04-19 | N61: =VLOOKUP(M61,'RWH 10-yr Simulation'!$A$11:$N$3662,11) -> 121.1829259
A62: 2001-04-26 | B62: =VLOOKUP(A62,'RWH 10-yr Simulation'!$A$11:$N$3662,11) -> 400.8933704 | G62: 2001-04-26 | H62: =VLOOKUP(G62,'RWH 10-yr Simulation'!$A$11:$N$3662,11) -> 400.8933704 | M62: 2001-04-26 | N62: =VLOOKUP(M62,'RWH 10-yr Simulation'!$A$11:$N$3662,11) -> 400.8933704
A63: 2001-04-27 | B63: =VLOOKUP(A63,'RWH 10-yr Simulation'!$A$11:$N$3662,11) -> 361.9211852 | G63: 2001-04-27 | H63: =VLOOKUP(G63,'RWH 10-yr Simulation'!$A$11:$N$3662,11) -> 361.9211852 | M63: 2001-04-27 | N63: =VLOOKUP(M63,'RWH 10-yr Simulation'!$A$11:$N$3662,11) -> 361.9211852
A64: 2001-06-24 | B64: =VLOOKUP(A64,'RWH 10-yr Simulation'!$A$11:$N$3662,11) -> 0 | G64: 2001-10-28 | H64: =VLOOKUP(G64,'RWH 10-yr Simulation'!$A$11:$N$3662,11) -> 0 | M64: 2001-11-02 | N64: =VLOOKUP(M64,'RWH 10-yr Simulation'!$A$11:$N$3662,11) -> 223.0078889
A65: 2001-07-29 | B65: =VLOOKUP(A65,'RWH 10-yr Simulation'!$A$11:$N$3662,11) -> 0 | G65: 2001-10-29 | H65: =VLOOKUP(G65,'RWH 10-yr Simulation'!$A$11:$N$3662,11) -> 0 | M65: 2001-11-09 | N65: =VLOOKUP(M65,'RWH 10-yr Simulation'!$A$11:$N$3662,11) -> 70.55440741
A66: 2001-08-03 | B66: =VLOOKUP(A66,'RWH 10-yr Simulation'!$A$11:$N$3662,11) -> 0 | G66: 2001-11-02 | H66: =VLOOKUP(G66,'RWH 10-yr Simulation'!$A$11:$N$3662,11) -> 223.0078889 | M66: 2001-11-10 | N66: =VLOOKUP(M66,'RWH 10-yr Simulation'!$A$11:$N$3662,11) -> 445.6764074
A67: 2001-09-16 | B67: =VLOOKUP(A67,'RWH 10-yr Simulation'!$A$11:$N$3662,11) -> 0 | G67: 2001-11-09 | H67: =VLOOKUP(G67,'RWH 10-yr Simulation'!$A$11:$N$3662,11) -> 70.55440741 | M67: 2001-11-11 | N67: =VLOOKUP(M67,'RWH 10-yr Simulation'!$A$11:$N$3662,11) -> 490.1824074
A68: 2001-09-23 | B68: =VLOOKUP(A68,'RWH 10-yr Simulation'!$A$11:$N$3662,11) -> 0 | G68: 2001-11-10 | H68: =VLOOKUP(G68,'RWH 10-yr Simulation'!$A$11:$N$3662,11) -> 445.6764074 | M68: 2001-11-12 | N68: =VLOOKUP(M68,'RWH 10-yr Simulation'!$A$11:$N$3662,11) -> 1057.460087
A69: 2001-09-24 | B69: =VLOOKUP(A69,'RWH 10-yr Simulation'!$A$11:$N$3662,11) -> 101.728 | G69: 2001-11-11 | H69: =VLOOKUP(G69,'RWH 10-yr Simulation'!$A$11:$N$3662,11) -> 490.1824074 | M69: 2001-11-13 | N69: =VLOOKUP(M69,'RWH 10-yr Simulation'!$A$11:$N$3662,11) -> 1045.879939
A70: 2001-10-28 | B70: =VLOOKUP(A70,'RWH 10-yr Simulation'!$A$11:$N$3662,11) -> 0 | G70: 2001-11-12 | H70: =VLOOKUP(G70,'RWH 10-yr Simulation'!$A$11:$N$3662,11) -> 1057.460087 | M70: 2001-11-15 | N70: =VLOOKUP(M70,'RWH 10-yr Simulation'!$A$11:$N$3662,11) -> 1033.981198
A71: 2001-10-29 | B71: =VLOOKUP(A71,'RWH 10-yr Simulation'!$A$11:$N$3662,11) -> 0 | G71: 2001-11-13 | H71: =VLOOKUP(G71,'RWH 10-yr Simulation'!$A$11:$N$3662,11) -> 1045.879939 | M71: 2001-11-20 | N71: =VLOOKUP(M71,'RWH 10-yr Simulation'!$A$11:$N$3662,11) -> 963.5445316
A72: 2001-11-02 | B72: =VLOOKUP(A72,'RWH 10-yr Simulation'!$A$11:$N$3662,11) -> 223.0078889 | G72: 2001-11-15 | H72: =VLOOKUP(G72,'RWH 10-yr Simulation'!$A$11:$N$3662,11) -> 1033.981198 | M72: 2001-11-21 | N72: =VLOOKUP(M72,'RWH 10-yr Simulation'!$A$11:$N$3662,11) -> 1057.460087
A73: 2001-11-09 | B73: =VLOOKUP(A73,'RWH 10-yr Simulation'!$A$11:$N$3662,11) -> 70.55440741 | G73: 2001-11-20 | H73: =VLOOKUP(G73,'RWH 10-yr Simulation'!$A$11:$N$3662,11) -> 963.5445316 | M73: 2001-11-23 | N73: =VLOOKUP(M73,'RWH 10-yr Simulation'!$A$11:$N$3662,11) -> 1022.40105
A74: 2001-11-10 | B74: =VLOOKUP(A74,'RWH 10-yr Simulation'!$A$11:$N$3662,11) -> 445.6764074 | G74: 2001-11-21 | H74: =VLOOKUP(G74,'RWH 10-yr Simulation'!$A$11:$N$3662,11) -> 1057.460087 | M74: 2001-11-27 | N74: =VLOOKUP(M74,'RWH 10-yr Simulation'!$A$11:$N$3662,11) -> 987.0234205
A75: 2001-11-11 | B75: =VLOOKUP(A75,'RWH 10-yr Simulation'!$A$11:$N$3662,11) -> 490.1824074 | G75: 2001-11-23 | H75: =VLOOKUP(G75,'RWH 10-yr Simulation'!$A$11:$N$3662,11) -> 1022.40105 | M75: 2001-11-28 | N75: =VLOOKUP(M75,'RWH 10-yr Simulation'!$A$11:$N$3662,11) -> 1057.460087
A76: 2001-11-12 | B76: =VLOOKUP(A76,'RWH 10-yr Simulation'!$A$11:$N$3662,11) -> 1057.460087 | G76: 2001-11-27 | H76: =VLOOKUP(G76,'RWH 10-yr Simulation'!$A$11:$N$3662,11) -> 987.0234205 | M76: 2001-11-29 | N76: =VLOOKUP(M76,'RWH 10-yr Simulation'!$A$11:$N$3662,11) -> 1057.460087
A77: 2001-11-13 | B77: =VLOOKUP(A77,'RWH 10-yr Simulation'!$A$11:$N$3662,11) -> 1045.879939 | G77: 2001-11-28 | H77: =VLOOKUP(G77,'RWH 10-yr Simulation'!$A$11:$N$3662,11) -> 1057.460087 | M77: 2001-11-30 | N77: =VLOOKUP(M77,'RWH 10-yr Simulation'!$A$11:$N$3662,11) -> 1057.460087
A78: 2001-11-15 | B78: =VLOOKUP(A78,'RWH 10-yr Simulation'!$A$11:$N$3662,11) -> 1033.981198 | G78: 2001-11-29 | H78: =VLOOKUP(G78,'RWH 10-yr Simulation'!$A$11:$N$3662,11) -> 1057.460087 | M78: 2001-12-01 | N78: =VLOOKUP(M78,'RWH 10-yr Simulation'!$A$11:$N$3662,11) -> 1057.460087
A79: 2001-11-20 | B79: =VLOOKUP(A79,'RWH 10-yr Simulation'!$A$11:$N$3662,11) -> 963.5445316 | G79: 2001-11-30 | H79: =VLOOKUP(G79,'RWH 10-yr Simulation'!$A$11:$N$3662,11) -> 1057.460087 | M79: 2001-12-02 | N79: =VLOOKUP(M79,'RWH 10-yr Simulation'!$A$11:$N$3662,11) -> 1057.460087
A80: 2001-11-21 | B80: =VLOOKUP(A80,'RWH 10-yr Simulation'!$A$11:$N$3662,11) -> 1057.460087 | G80: 2001-12-01 | H80: =VLOOKUP(G80,'RWH 10-yr Simulation'!$A$11:$N$3662,11) -> 1057.460087 | M80: 2001-12-04 | N80: =VLOOKUP(M80,'RWH 10-yr Simulation'!$A$11:$N$3662,11) -> 1041.807495
A81: 2001-11-23 | B81: =VLOOKUP(A81,'RWH 10-yr Simulation'!$A$11:$N$3662,11) -> 1022.40105 | G81: 2001-12-02 | H81: =VLOOKUP(G81,'RWH 10-yr Simulation'!$A$11:$N$3662,11) -> 1057.460087 | M81: 2001-12-05 | N81: =VLOOKUP(M81,'RWH 10-yr Simulation'!$A$11:$N$3662,11) -> 1057.460087
A82: 2001-11-27 | B82: =VLOOKUP(A82,'RWH 10-yr Simulation'!$A$11:$N$3662,11) -> 987.0234205 | G82: 2001-12-04 | H82: =VLOOKUP(G82,'RWH 10-yr Simulation'!$A$11:$N$3662,11) -> 1041.807495 | M82: 2001-12-07 | N82: =VLOOKUP(M82,'RWH 10-yr Simulation'!$A$11:$N$3662,11) -> 1041.807495
A83: 2001-11-28 | B83: =VLOOKUP(A83,'RWH 10-yr Simulation'!$A$11:$N$3662,11) -> 1057.460087 | G83: 2001-12-05 | H83: =VLOOKUP(G83,'RWH 10-yr Simulation'!$A$11:$N$3662,11) -> 1057.460087 | M83: 2001-12-12 | N83: =VLOOKUP(M83,'RWH 10-yr Simulation'!$A$11:$N$3662,11) -> 987.3420131
A84: 2001-11-29 | B84: =VLOOKUP(A84,'RWH 10-yr Simulation'!$A$11:$N$3662,11) -> 1057.460087 | G84: 2001-12-07 | H84: =VLOOKUP(G84,'RWH 10-yr Simulation'!$A$11:$N$3662,11) -> 1041.807495 | M84: 2001-12-13 | N84: =VLOOKUP(M84,'RWH 10-yr Simulation'!$A$11:$N$3662,11) -> 1057.460087
A85: 2001-11-30 | B85: =VLOOKUP(A85,'RWH 10-yr Simulation'!$A$11:$N$3662,11) -> 1057.460087 | G85: 2001-12-12 | H85: =VLOOKUP(G85,'RWH 10-yr Simulation'!$A$11:$N$3662,11) -> 987.3420131 | M85: 2001-12-16 | N85: =VLOOKUP(M85,'RWH 10-yr Simulation'!$A$11:$N$3662,11) -> 1026.154902
A86: 2001-12-01 | B86: =VLOOKUP(A86,'RWH 10-yr Simulation'!$A$11:$N$3662,11) -> 1057.460087 | G86: 2001-12-13 | H86: =VLOOKUP(G86,'RWH 10-yr Simulation'!$A$11:$N$3662,11) -> 1057.460087 | M86: 2001-12-18 | N86: =VLOOKUP(M86,'RWH 10-yr Simulation'!$A$11:$N$3662,11) -> 1041.807495
A87: 2001-12-02 | B87: =VLOOKUP(A87,'RWH 10-yr Simulation'!$A$11:$N$3662,11) -> 1057.460087 | G87: 2001-12-16 | H87: =VLOOKUP(G87,'RWH 10-yr Simulation'!$A$11:$N$3662,11) -> 1026.154902 | M87: 2001-12-19 | N87: =VLOOKUP(M87,'RWH 10-yr Simulation'!$A$11:$N$3662,11) -> 1057.460087
A88: 2001-12-04 | B88: =VLOOKUP(A88,'RWH 10-yr Simulation'!$A$11:$N$3662,11) -> 1041.807495 | G88: 2001-12-18 | H88: =VLOOKUP(G88,'RWH 10-yr Simulation'!$A$11:$N$3662,11) -> 1041.807495 | M88: 2001-12-20 | N88: =VLOOKUP(M88,'RWH 10-yr Simulation'!$A$11:$N$3662,11) -> 1057.460087
A89: 2001-12-05 | B89: =VLOOKUP(A89,'RWH 10-yr Simulation'!$A$11:$N$3662,11) -> 1057.460087 | G89: 2001-12-19 | H89: =VLOOKUP(G89,'RWH 10-yr Simulation'!$A$11:$N$3662,11) -> 1057.460087 | M89: 2001-12-21 | N89: =VLOOKUP(M89,'RWH 10-yr Simulation'!$A$11:$N$3662,11) -> 1057.460087
A90: 2001-12-07 | B90: =VLOOKUP(A90,'RWH 10-yr Simulation'!$A$11:$N$3662,11) -> 1041.807495 | G90: 2001-12-20 | H90: =VLOOKUP(G90,'RWH 10-yr Simulation'!$A$11:$N$3662,11) -> 1057.460087 | M90: 2001-12-22 | N90: =VLOOKUP(M90,'RWH 10-yr Simulation'!$A$11:$N$3662,11) -> 1057.460087
A91: 2001-12-12 | B91: =VLOOKUP(A91,'RWH 10-yr Simulation'!$A$11:$N$3662,11) -> 987.3420131 | G91: 2001-12-21 | H91: =VLOOKUP(G91,'RWH 10-yr Simulation'!$A$11:$N$3662,11) -> 1057.460087 | M91: 2001-12-25 | N91: =VLOOKUP(M91,'RWH 10-yr Simulation'!$A$11:$N$3662,11) -> 1026.154902
A92: 2001-12-13 | B92: =VLOOKUP(A92,'RWH 10-yr Simulation'!$A$11:$N$3662,11) -> 1057.460087 | G92: 2001-12-22 | H92: =VLOOKUP(G92,'RWH 10-yr Simulation'!$A$11:$N$3662,11) -> 1057.460087 | M92: 2001-12-26 | N92: =VLOOKUP(M92,'RWH 10-yr Simulation'!$A$11:$N$3662,11) -> 1034.299791
A93: 2001-12-16 | B93: =VLOOKUP(A93,'RWH 10-yr Simulation'!$A$11:$N$3662,11) -> 1026.154902 | G93: 2001-12-25 | H93: =VLOOKUP(G93,'RWH 10-yr Simulation'!$A$11:$N$3662,11) -> 1026.154902 | M93: 2001-12-27 | N93: =VLOOKUP(M93,'RWH 10-yr Simulation'!$A$11:$N$3662,11) -> 1057.460087
A94: 2001-12-18 | B94: =VLOOKUP(A94,'RWH 10-yr Simulation'!$A$11:$N$3662,11) -> 1041.807495 | G94: 2001-12-26 | H94: =VLOOKUP(G94,'RWH 10-yr Simulation'!$A$11:$N$3662,11) -> 1034.299791 | M94: 2001-12-28 | N94: =VLOOKUP(M94,'RWH 10-yr Simulation'!$A$11:$N$3662,11) -> 1057.460087
A95: 2001-12-19 | B95: =VLOOKUP(A95,'RWH 10-yr Simulation'!$A$11:$N$3662,11) -> 1057.460087 | G95: 2001-12-27 | H95: =VLOOKUP(G95,'RWH 10-yr Simulation'!$A$11:$N$3662,11) -> 1057.460087 | M95: 2001-12-29 | N95: =VLOOKUP(M95,'RWH 10-yr Simulation'!$A$11:$N$3662,11) -> 1057.460087
A96: 2001-12-20 | B96: =VLOOKUP(A96,'RWH 10-yr Simulation'!$A$11:$N$3662,11) -> 1057.460087 | G96: 2001-12-28 | H96: =VLOOKUP(G96,'RWH 10-yr Simulation'!$A$11:$N$3662,11) -> 1057.460087 | M96: 2001-12-30 | N96: =VLOOKUP(M96,'RWH 10-yr Simulation'!$A$11:$N$3662,11) -> 1057.460087
A97: 2001-12-21 | B97: =VLOOKUP(A97,'RWH 10-yr Simulation'!$A$11:$N$3662,11) -> 1057.460087 | G97: 2001-12-29 | H97: =VLOOKUP(G97,'RWH 10-yr Simulation'!$A$11:$N$3662,11) -> 1057.460087 | M97: 2001-12-31 | N97: =VLOOKUP(M97,'RWH 10-yr Simulation'!$A$11:$N$3662,11) -> 1057.460087
A98: 2001-12-22 | B98: =VLOOKUP(A98,'RWH 10-yr Simulation'!$A$11:$N$3662,11) -> 1057.460087 | G98: 2001-12-30 | H98: =VLOOKUP(G98,'RWH 10-yr Simulation'!$A$11:$N$3662,11) -> 1057.460087 | M98: 2002-01-01 | N98: =VLOOKUP(M98,'RWH 10-yr Simulation'!$A$11:$N$3662,11) -> 1057.460087
A99: 2001-12-25 | B99: =VLOOKUP(A99,'RWH 10-yr Simulation'!$A$11:$N$3662,11) -> 1026.154902 | G99: 2001-12-31 | H99: =VLOOKUP(G99,'RWH 10-yr Simulation'!$A$11:$N$3662,11) -> 1057.460087 | M99: 2002-01-05 | N99: =VLOOKUP(M99,'RWH 10-yr Simulation'!$A$11:$N$3662,11) -> 1010.502309
A100: 2001-12-26 | B100: =VLOOKUP(A100,'RWH 10-yr Simulation'!$A$11:$N$3662,11) -> 1034.299791 | G100: 2002-01-01 | H100: =VLOOKUP(G100,'RWH 10-yr Simulation'!$A$11:$N$3662,11) -> 1057.460087 | M100: 2002-01-20 | N100: =VLOOKUP(M100,'RWH 10-yr Simulation'!$A$11:$N$3662,11) -> 799.510902
A101: 2001-12-27 | B101: =VLOOKUP(A101,'RWH 10-yr Simulation'!$A$11:$N$3662,11) -> 1057.460087 | G101: 2002-01-05 | H101: =VLOOKUP(G101,'RWH 10-yr Simulation'!$A$11:$N$3662,11) -> 1010.502309 | M101: 2002-01-25 | N101: =VLOOKUP(M101,'RWH 10-yr Simulation'!$A$11:$N$3662,11) -> 864.0605316
A102: 2001-12-28 | B102: =VLOOKUP(A102,'RWH 10-yr Simulation'!$A$11:$N$3662,11) -> 1057.460087 | G102: 2002-01-20 | H102: =VLOOKUP(G102,'RWH 10-yr Simulation'!$A$11:$N$3662,11) -> 799.510902 | M102: 2002-01-27 | N102: =VLOOKUP(M102,'RWH 10-yr Simulation'!$A$11:$N$3662,11) -> 1041.807495
A103: 2001-12-29 | B103: =VLOOKUP(A103,'RWH 10-yr Simulation'!$A$11:$N$3662,11) -> 1057.460087 | G103: 2002-01-25 | H103: =VLOOKUP(G103,'RWH 10-yr Simulation'!$A$11:$N$3662,11) -> 864.0605316 | M103: 2002-02-05 | N103: =VLOOKUP(M103,'RWH 10-yr Simulation'!$A$11:$N$3662,11) -> 893.107865
A104: 2001-12-30 | B104: =VLOOKUP(A104,'RWH 10-yr Simulation'!$A$11:$N$3662,11) -> 1057.460087 | G104: 2002-01-27 | H104: =VLOOKUP(G104,'RWH 10-yr Simulation'!$A$11:$N$3662,11) -> 1041.807495 | M104: 2002-02-06 | N104: =VLOOKUP(M104,'RWH 10-yr Simulation'!$A$11:$N$3662,11) -> 881.5277168
A105: 2001-12-31 | B105: =VLOOKUP(A105,'RWH 10-yr Simulation'!$A$11:$N$3662,11) -> 1057.460087 | G105: 2002-02-05 | H105: =VLOOKUP(G105,'RWH 10-yr Simulation'!$A$11:$N$3662,11) -> 893.107865 | M105: 2002-02-07 | N105: =VLOOKUP(M105,'RWH 10-yr Simulation'!$A$11:$N$3662,11) -> 1057.460087
A106: 2002-01-01 | B106: =VLOOKUP(A106,'RWH 10-yr Simulation'!$A$11:$N$3662,11) -> 1057.460087 | G106: 2002-02-06 | H106: =VLOOKUP(G106,'RWH 10-yr Simulation'!$A$11:$N$3662,11) -> 881.5277168 | M106: 2002-02-12 | N106: =VLOOKUP(M106,'RWH 10-yr Simulation'!$A$11:$N$3662,11) -> 951.9643835
A107: 2002-01-05 | B107: =VLOOKUP(A107,'RWH 10-yr Simulation'!$A$11:$N$3662,11) -> 1010.502309 | G107: 2002-02-07 | H107: =VLOOKUP(G107,'RWH 10-yr Simulation'!$A$11:$N$3662,11) -> 1057.460087 | M107: 2002-02-15 | N107: =VLOOKUP(M107,'RWH 10-yr Simulation'!$A$11:$N$3662,11) -> 962.2286057
A108: 2002-01-20 | B108: =VLOOKUP(A108,'RWH 10-yr Simulation'!$A$11:$N$3662,11) -> 799.510902 | G108: 2002-02-12 | H108: =VLOOKUP(G108,'RWH 10-yr Simulation'!$A$11:$N$3662,11) -> 951.9643835 | M108: 2002-02-16 | N108: =VLOOKUP(M108,'RWH 10-yr Simulation'!$A$11:$N$3662,11) -> 1057.460087
A109: 2002-01-25 | B109: =VLOOKUP(A109,'RWH 10-yr Simulation'!$A$11:$N$3662,11) -> 864.0605316 | G109: 2002-02-15 | H109: =VLOOKUP(G109,'RWH 10-yr Simulation'!$A$11:$N$3662,11) -> 962.2286057 | M109: 2002-02-17 | N109: =VLOOKUP(M109,'RWH 10-yr Simulation'!$A$11:$N$3662,11) -> 1057.460087
A110: 2002-01-27 | B110: =VLOOKUP(A110,'RWH 10-yr Simulation'!$A$11:$N$3662,11) -> 1041.807495 | G110: 2002-02-16 | H110: =VLOOKUP(G110,'RWH 10-yr Simulation'!$A$11:$N$3662,11) -> 1057.460087 | M110: 2002-02-18 | N110: =VLOOKUP(M110,'RWH 10-yr Simulation'!$A$11:$N$3662,11) -> 1057.460087
A111: 2002-02-05 | B111: =VLOOKUP(A111,'RWH 10-yr Simulation'!$A$11:$N$3662,11) -> 893.107865 | G111: 2002-02-17 | H111: =VLOOKUP(G111,'RWH 10-yr Simulation'!$A$11:$N$3662,11) -> 1057.460087 | M111: 2002-02-19 | N111: =VLOOKUP(M111,'RWH 10-yr Simulation'!$A$11:$N$3662,11) -> 1057.460087
A112: 2002-02-06 | B112: =VLOOKUP(A112,'RWH 10-yr Simulation'!$A$11:$N$3662,11) -> 881.5277168 | G112: 2002-02-18 | H112: =VLOOKUP(G112,'RWH 10-yr Simulation'!$A$11:$N$3662,11) -> 1057.460087 | M112: 2002-02-21 | N112: =VLOOKUP(M112,'RWH 10-yr Simulation'!$A$11:$N$3662,11) -> 1033.981198
A113: 2002-02-07 | B113: =VLOOKUP(A113,'RWH 10-yr Simulation'!$A$11:$N$3662,11) -> 1057.460087 | G113: 2002-02-19 | H113: =VLOOKUP(G113,'RWH 10-yr Simulation'!$A$11:$N$3662,11) -> 1057.460087 | M113: 2002-02-22 | N113: =VLOOKUP(M113,'RWH 10-yr Simulation'!$A$11:$N$3662,11) -> 1022.40105
A114: 2002-02-12 | B114: =VLOOKUP(A114,'RWH 10-yr Simulation'!$A$11:$N$3662,11) -> 951.9643835 | G114: 2002-02-21 | H114: =VLOOKUP(G114,'RWH 10-yr Simulation'!$A$11:$N$3662,11) -> 1033.981198 | M114: 2002-03-04 | N114: =VLOOKUP(M114,'RWH 10-yr Simulation'!$A$11:$N$3662,11) -> 783.5397168
A115: 2002-02-15 | B115: =VLOOKUP(A115,'RWH 10-yr Simulation'!$A$11:$N$3662,11) -> 962.2286057 | G115: 2002-02-22 | H115: =VLOOKUP(G115,'RWH 10-yr Simulation'!$A$11:$N$3662,11) -> 1022.40105 | M115: 2002-03-05 | N115: =VLOOKUP(M115,'RWH 10-yr Simulation'!$A$11:$N$3662,11) -> 756.3069761
A116: 2002-02-16 | B116: =VLOOKUP(A116,'RWH 10-yr Simulation'!$A$11:$N$3662,11) -> 1057.460087 | G116: 2002-03-04 | H116: =VLOOKUP(G116,'RWH 10-yr Simulation'!$A$11:$N$3662,11) -> 783.5397168 | M116: 2002-03-06 | N116: =VLOOKUP(M116,'RWH 10-yr Simulation'!$A$11:$N$3662,11) -> 1057.460087
A117: 2002-02-17 | B117: =VLOOKUP(A117,'RWH 10-yr Simulation'!$A$11:$N$3662,11) -> 1057.460087 | G117: 2002-03-05 | H117: =VLOOKUP(G117,'RWH 10-yr Simulation'!$A$11:$N$3662,11) -> 756.3069761 | M117: 2002-03-08 | N117: =VLOOKUP(M117,'RWH 10-yr Simulation'!$A$11:$N$3662,11) -> 1018.328606
A118: 2002-02-18 | B118: =VLOOKUP(A118,'RWH 10-yr Simulation'!$A$11:$N$3662,11) -> 1057.460087 | G118: 2002-03-06 | H118: =VLOOKUP(G118,'RWH 10-yr Simulation'!$A$11:$N$3662,11) -> 1057.460087 | M118: 2002-03-09 | N118: =VLOOKUP(M118,'RWH 10-yr Simulation'!$A$11:$N$3662,11) -> 1057.460087
A119: 2002-02-19 | B119: =VLOOKUP(A119,'RWH 10-yr Simulation'!$A$11:$N$3662,11) -> 1057.460087 | G119: 2002-03-08 | H119: =VLOOKUP(G119,'RWH 10-yr Simulation'!$A$11:$N$3662,11) -> 1018.328606 | M119: 2002-03-16 | N119: =VLOOKUP(M119,'RWH 10-yr Simulation'!$A$11:$N$3662,11) -> 822.6711983
A120: 2002-02-21 | B120: =VLOOKUP(A120,'RWH 10-yr Simulation'!$A$11:$N$3662,11) -> 1033.981198 | G120: 2002-03-09 | H120: =VLOOKUP(G120,'RWH 10-yr Simulation'!$A$11:$N$3662,11) -> 1057.460087 | M120: 2002-03-21 | N120: =VLOOKUP(M120,'RWH 10-yr Simulation'!$A$11:$N$3662,11) -> 900.9341613
A121: 2002-02-22 | B121: =VLOOKUP(A121,'RWH 10-yr Simulation'!$A$11:$N$3662,11) -> 1022.40105 | G121: 2002-03-16 | H121: =VLOOKUP(G121,'RWH 10-yr Simulation'!$A$11:$N$3662,11) -> 822.6711983 | M121: 2002-03-22 | N121: =VLOOKUP(M121,'RWH 10-yr Simulation'!$A$11:$N$3662,11) -> 1015.378161
A122: 2002-03-04 | B122: =VLOOKUP(A122,'RWH 10-yr Simulation'!$A$11:$N$3662,11) -> 783.5397168 | G122: 2002-03-21 | H122: =VLOOKUP(G122,'RWH 10-yr Simulation'!$A$11:$N$3662,11) -> 900.9341613 | M122: 2002-04-05 | N122: =VLOOKUP(M122,'RWH 10-yr Simulation'!$A$11:$N$3662,11) -> 490.0536057
A123: 2002-03-05 | B123: =VLOOKUP(A123,'RWH 10-yr Simulation'!$A$11:$N$3662,11) -> 756.3069761 | G123: 2002-03-22 | H123: =VLOOKUP(G123,'RWH 10-yr Simulation'!$A$11:$N$3662,11) -> 1015.378161 | M123: 2002-04-08 | N123: =VLOOKUP(M123,'RWH 10-yr Simulation'!$A$11:$N$3662,11) -> 349.3395687
A124: 2002-03-06 | B124: =VLOOKUP(A124,'RWH 10-yr Simulation'!$A$11:$N$3662,11) -> 1057.460087 | G124: 2002-04-05 | H124: =VLOOKUP(G124,'RWH 10-yr Simulation'!$A$11:$N$3662,11) -> 490.0536057 | M124: 2002-04-15 | N124: =VLOOKUP(M124,'RWH 10-yr Simulation'!$A$11:$N$3662,11) -> 40.83805016
A125: 2002-03-08 | B125: =VLOOKUP(A125,'RWH 10-yr Simulation'!$A$11:$N$3662,11) -> 1018.328606 | G125: 2002-04-08 | H125: =VLOOKUP(G125,'RWH 10-yr Simulation'!$A$11:$N$3662,11) -> 349.3395687 | M125: 2002-04-28 | N125: =VLOOKUP(M125,'RWH 10-yr Simulation'!$A$11:$N$3662,11) -> 0
A126: 2002-03-09 | B126: =VLOOKUP(A126,'RWH 10-yr Simulation'!$A$11:$N$3662,11) -> 1057.460087 | G126: 2002-04-15 | H126: =VLOOKUP(G126,'RWH 10-yr Simulation'!$A$11:$N$3662,11) -> 40.83805016 | M126: 2002-11-06 | N126: =VLOOKUP(M126,'RWH 10-yr Simulation'!$A$11:$N$3662,11) -> 0
A127: 2002-03-16 | B127: =VLOOKUP(A127,'RWH 10-yr Simulation'!$A$11:$N$3662,11) -> 822.6711983 | G127: 2002-04-28 | H127: =VLOOKUP(G127,'RWH 10-yr Simulation'!$A$11:$N$3662,11) -> 0 | M127: 2002-11-07 | N127: =VLOOKUP(M127,'RWH 10-yr Simulation'!$A$11:$N$3662,11) -> 527.714
A128: 2002-03-21 | B128: =VLOOKUP(A128,'RWH 10-yr Simulation'!$A$11:$N$3662,11) -> 900.9341613 | G128: 2002-05-18 | H128: =VLOOKUP(G128,'RWH 10-yr Simulation'!$A$11:$N$3662,11) -> 0 | M128: 2002-11-08 | N128: =VLOOKUP(M128,'RWH 10-yr Simulation'!$A$11:$N$3662,11) -> 1057.460087
A129: 2002-03-22 | B129: =VLOOKUP(A129,'RWH 10-yr Simulation'!$A$11:$N$3662,11) -> 1015.378161 | G129: 2002-05-19 | H129: =VLOOKUP(G129,'RWH 10-yr Simulation'!$A$11:$N$3662,11) -> 273.394 | M129: 2002-11-09 | N129: =VLOOKUP(M129,'RWH 10-yr Simulation'!$A$11:$N$3662,11) -> 1045.879939
A130: 2002-04-05 | B130: =VLOOKUP(A130,'RWH 10-yr Simulation'!$A$11:$N$3662,11) -> 490.0536057 | G130: 2002-05-20 | H130: =VLOOKUP(G130,'RWH 10-yr Simulation'!$A$11:$N$3662,11) -> 432.344 | M130: 2002-11-12 | N130: =VLOOKUP(M130,'RWH 10-yr Simulation'!$A$11:$N$3662,11) -> 1010.502309
A131: 2002-04-08 | B131: =VLOOKUP(A131,'RWH 10-yr Simulation'!$A$11:$N$3662,11) -> 349.3395687 | G131: 2002-10-22 | H131: =VLOOKUP(G131,'RWH 10-yr Simulation'!$A$11:$N$3662,11) -> 0 | M131: 2002-12-08 | N131: =VLOOKUP(M131,'RWH 10-yr Simulation'!$A$11:$N$3662,11) -> 510.2565316
A132: 2002-04-15 | B132: =VLOOKUP(A132,'RWH 10-yr Simulation'!$A$11:$N$3662,11) -> 40.83805016 | G132: 2002-11-06 | H132: =VLOOKUP(G132,'RWH 10-yr Simulation'!$A$11:$N$3662,11) -> 0 | M132: 2002-12-09 | N132: =VLOOKUP(M132,'RWH 10-yr Simulation'!$A$11:$N$3662,11) -> 891.7365316
A133: 2002-04-28 | B133: =VLOOKUP(A133,'RWH 10-yr Simulation'!$A$11:$N$3662,11) -> 0 | G133: 2002-11-07 | H133: =VLOOKUP(G133,'RWH 10-yr Simulation'!$A$11:$N$3662,11) -> 527.714 | M133: 2002-12-12 | N133: =VLOOKUP(M133,'RWH 10-yr Simulation'!$A$11:$N$3662,11) -> 968.5173465
A134: 2002-05-18 | B134: =VLOOKUP(A134,'RWH 10-yr Simulation'!$A$11:$N$3662,11) -> 0 | G134: 2002-11-08 | H134: =VLOOKUP(G134,'RWH 10-yr Simulation'!$A$11:$N$3662,11) -> 1057.460087 | M134: 2002-12-13 | N134: =VLOOKUP(M134,'RWH 10-yr Simulation'!$A$11:$N$3662,11) -> 1057.460087
A135: 2002-05-19 | B135: =VLOOKUP(A135,'RWH 10-yr Simulation'!$A$11:$N$3662,11) -> 273.394 | G135: 2002-11-09 | H135: =VLOOKUP(G135,'RWH 10-yr Simulation'!$A$11:$N$3662,11) -> 1045.879939 | M135: 2002-12-14 | N135: =VLOOKUP(M135,'RWH 10-yr Simulation'!$A$11:$N$3662,11) -> 1057.460087
A136: 2002-05-20 | B136: =VLOOKUP(A136,'RWH 10-yr Simulation'!$A$11:$N$3662,11) -> 432.344 | G136: 2002-11-12 | H136: =VLOOKUP(G136,'RWH 10-yr Simulation'!$A$11:$N$3662,11) -> 1010.502309 | M136: 2002-12-15 | N136: =VLOOKUP(M136,'RWH 10-yr Simulation'!$A$11:$N$3662,11) -> 1057.460087
A137: 2002-06-21 | B137: =VLOOKUP(A137,'RWH 10-yr Simulation'!$A$11:$N$3662,11) -> 0 | G137: 2002-12-08 | H137: =VLOOKUP(G137,'RWH 10-yr Simulation'!$A$11:$N$3662,11) -> 510.2565316 | M137: 2002-12-16 | N137: =VLOOKUP(M137,'RWH 10-yr Simulation'!$A$11:$N$3662,11) -> 1057.460087
A138: 2002-06-26 | B138: =VLOOKUP(A138,'RWH 10-yr Simulation'!$A$11:$N$3662,11) -> 0 | G138: 2002-12-09 | H138: =VLOOKUP(G138,'RWH 10-yr Simulation'!$A$11:$N$3662,11) -> 891.7365316 | M138: 2002-12-17 | N138: =VLOOKUP(M138,'RWH 10-yr Simulation'!$A$11:$N$3662,11) -> 1057.460087
A139: 2002-08-01 | B139: =VLOOKUP(A139,'RWH 10-yr Simulation'!$A$11:$N$3662,11) -> 0 | G139: 2002-12-12 | H139: =VLOOKUP(G139,'RWH 10-yr Simulation'!$A$11:$N$3662,11) -> 968.5173465 | M139: 2002-12-18 | N139: =VLOOKUP(M139,'RWH 10-yr Simulation'!$A$11:$N$3662,11) -> 1057.460087
A140: 2002-08-24 | B140: =VLOOKUP(A140,'RWH 10-yr Simulation'!$A$11:$N$3662,11) -> 0 | G140: 2002-12-13 | H140: =VLOOKUP(G140,'RWH 10-yr Simulation'!$A$11:$N$3662,11) -> 1057.460087 | M140: 2002-12-19 | N140: =VLOOKUP(M140,'RWH 10-yr Simulation'!$A$11:$N$3662,11) -> 1057.460087
A141: 2002-09-24 | B141: =VLOOKUP(A141,'RWH 10-yr Simulation'!$A$11:$N$3662,11) -> 0 | G141: 2002-12-14 | H141: =VLOOKUP(G141,'RWH 10-yr Simulation'!$A$11:$N$3662,11) -> 1057.460087 | M141: 2002-12-20 | N141: =VLOOKUP(M141,'RWH 10-yr Simulation'!$A$11:$N$3662,11) -> 1057.460087
A142: 2002-10-22 | B142: =VLOOKUP(A142,'RWH 10-yr Simulation'!$A$11:$N$3662,11) -> 0 | G142: 2002-12-15 | H142: =VLOOKUP(G142,'RWH 10-yr Simulation'!$A$11:$N$3662,11) -> 1057.460087 | M142: 2002-12-25 | N142: =VLOOKUP(M142,'RWH 10-yr Simulation'!$A$11:$N$3662,11) -> 994.8497168
A143: 2002-11-06 | B143: =VLOOKUP(A143,'RWH 10-yr Simulation'!$A$11:$N$3662,11) -> 0 | G143: 2002-12-16 | H143: =VLOOKUP(G143,'RWH 10-yr Simulation'!$A$11:$N$3662,11) -> 1057.460087 | M143: 2002-12-26 | N143: =VLOOKUP(M143,'RWH 10-yr Simulation'!$A$11:$N$3662,11) -> 1057.460087
A144: 2002-11-07 | B144: =VLOOKUP(A144,'RWH 10-yr Simulation'!$A$11:$N$3662,11) -> 527.714 | G144: 2002-12-17 | H144: =VLOOKUP(G144,'RWH 10-yr Simulation'!$A$11:$N$3662,11) -> 1057.460087 | M144: 2002-12-27 | N144: =VLOOKUP(M144,'RWH 10-yr Simulation'!$A$11:$N$3662,11) -> 1057.460087
A145: 2002-11-08 | B145: =VLOOKUP(A145,'RWH 10-yr Simulation'!$A$11:$N$3662,11) -> 1057.460087 | G145: 2002-12-18 | H145: =VLOOKUP(G145,'RWH 10-yr Simulation'!$A$11:$N$3662,11) -> 1057.460087 | M145: 2002-12-28 | N145: =VLOOKUP(M145,'RWH 10-yr Simulation'!$A$11:$N$3662,11) -> 1057.460087
A146: 2002-11-09 | B146: =VLOOKUP(A146,'RWH 10-yr Simulation'!$A$11:$N$3662,11) -> 1045.879939 | G146: 2002-12-19 | H146: =VLOOKUP(G146,'RWH 10-yr Simulation'!$A$11:$N$3662,11) -> 1057.460087 | M146: 2002-12-29 | N146: =VLOOKUP(M146,'RWH 10-yr Simulation'!$A$11:$N$3662,11) -> 1057.460087
A147: 2002-11-12 | B147: =VLOOKUP(A147,'RWH 10-yr Simulation'!$A$11:$N$3662,11) -> 1010.502309 | G147: 2002-12-20 | H147: =VLOOKUP(G147,'RWH 10-yr Simulation'!$A$11:$N$3662,11) -> 1057.460087 | M147: 2002-12-30 | N147: =VLOOKUP(M147,'RWH 10-yr Simulation'!$A$11:$N$3662,11) -> 1057.460087
A148: 2002-12-08 | B148: =VLOOKUP(A148,'RWH 10-yr Simulation'!$A$11:$N$3662,11) -> 510.2565316 | G148: 2002-12-25 | H148: =VLOOKUP(G148,'RWH 10-yr Simulation'!$A$11:$N$3662,11) -> 994.8497168 | M148: 2003-01-08 | N148: =VLOOKUP(M148,'RWH 10-yr Simulation'!$A$11:$N$3662,11) -> 932.2393465
A149: 2002-12-09 | B149: =VLOOKUP(A149,'RWH 10-yr Simulation'!$A$11:$N$3662,11) -> 891.7365316 | G149: 2002-12-26 | H149: =VLOOKUP(G149,'RWH 10-yr Simulation'!$A$11:$N$3662,11) -> 1057.460087 | M149: 2003-01-09 | N149: =VLOOKUP(M149,'RWH 10-yr Simulation'!$A$11:$N$3662,11) -> 1057.460087
A150: 2002-12-12 | B150: =VLOOKUP(A150,'RWH 10-yr Simulation'!$A$11:$N$3662,11) -> 968.5173465 | G150: 2002-12-27 | H150: =VLOOKUP(G150,'RWH 10-yr Simulation'!$A$11:$N$3662,11) -> 1057.460087 | M150: 2003-01-11 | N150: =VLOOKUP(M150,'RWH 10-yr Simulation'!$A$11:$N$3662,11) -> 1041.807495
A151: 2002-12-13 | B151: =VLOOKUP(A151,'RWH 10-yr Simulation'!$A$11:$N$3662,11) -> 1057.460087 | G151: 2002-12-28 | H151: =VLOOKUP(G151,'RWH 10-yr Simulation'!$A$11:$N$3662,11) -> 1057.460087 | M151: 2003-01-19 | N151: =VLOOKUP(M151,'RWH 10-yr Simulation'!$A$11:$N$3662,11) -> 947.8919391
A152: 2002-12-14 | B152: =VLOOKUP(A152,'RWH 10-yr Simulation'!$A$11:$N$3662,11) -> 1057.460087 | G152: 2002-12-29 | H152: =VLOOKUP(G152,'RWH 10-yr Simulation'!$A$11:$N$3662,11) -> 1057.460087 | M152: 2003-01-20 | N152: =VLOOKUP(M152,'RWH 10-yr Simulation'!$A$11:$N$3662,11) -> 956.0368279
A153: 2002-12-15 | B153: =VLOOKUP(A153,'RWH 10-yr Simulation'!$A$11:$N$3662,11) -> 1057.460087 | G153: 2002-12-30 | H153: =VLOOKUP(G153,'RWH 10-yr Simulation'!$A$11:$N$3662,11) -> 1057.460087 | M153: 2003-01-21 | N153: =VLOOKUP(M153,'RWH 10-yr Simulation'!$A$11:$N$3662,11) -> 1057.460087
A154: 2002-12-16 | B154: =VLOOKUP(A154,'RWH 10-yr Simulation'!$A$11:$N$3662,11) -> 1057.460087 | G154: 2003-01-08 | H154: =VLOOKUP(G154,'RWH 10-yr Simulation'!$A$11:$N$3662,11) -> 932.2393465 | M154: 2003-01-22 | N154: =VLOOKUP(M154,'RWH 10-yr Simulation'!$A$11:$N$3662,11) -> 1057.460087
A155: 2002-12-17 | B155: =VLOOKUP(A155,'RWH 10-yr Simulation'!$A$11:$N$3662,11) -> 1057.460087 | G155: 2003-01-09 | H155: =VLOOKUP(G155,'RWH 10-yr Simulation'!$A$11:$N$3662,11) -> 1057.460087 | M155: 2003-02-11 | N155: =VLOOKUP(M155,'RWH 10-yr Simulation'!$A$11:$N$3662,11) -> 673.9715687
A156: 2002-12-18 | B156: =VLOOKUP(A156,'RWH 10-yr Simulation'!$A$11:$N$3662,11) -> 1057.460087 | G156: 2003-01-11 | H156: =VLOOKUP(G156,'RWH 10-yr Simulation'!$A$11:$N$3662,11) -> 1041.807495 | M156: 2003-02-12 | N156: =VLOOKUP(M156,'RWH 10-yr Simulation'!$A$11:$N$3662,11) -> 902.8595687
A157: 2002-12-19 | B157: =VLOOKUP(A157,'RWH 10-yr Simulation'!$A$11:$N$3662,11) -> 1057.460087 | G157: 2003-01-19 | H157: =VLOOKUP(G157,'RWH 10-yr Simulation'!$A$11:$N$3662,11) -> 947.8919391 | M157: 2003-02-14 | N157: =VLOOKUP(M157,'RWH 10-yr Simulation'!$A$11:$N$3662,11) -> 1033.981198
A158: 2002-12-20 | B158: =VLOOKUP(A158,'RWH 10-yr Simulation'!$A$11:$N$3662,11) -> 1057.460087 | G158: 2003-01-20 | H158: =VLOOKUP(G158,'RWH 10-yr Simulation'!$A$11:$N$3662,11) -> 956.0368279 | M158: 2003-02-15 | N158: =VLOOKUP(M158,'RWH 10-yr Simulation'!$A$11:$N$3662,11) -> 1057.460087
A159: 2002-12-25 | B159: =VLOOKUP(A159,'RWH 10-yr Simulation'!$A$11:$N$3662,11) -> 994.8497168 | G159: 2003-01-21 | H159: =VLOOKUP(G159,'RWH 10-yr Simulation'!$A$11:$N$3662,11) -> 1057.460087 | M159: 2003-02-18 | N159: =VLOOKUP(M159,'RWH 10-yr Simulation'!$A$11:$N$3662,11) -> 1010.502309
A160: 2002-12-26 | B160: =VLOOKUP(A160,'RWH 10-yr Simulation'!$A$11:$N$3662,11) -> 1057.460087 | G160: 2003-01-22 | H160: =VLOOKUP(G160,'RWH 10-yr Simulation'!$A$11:$N$3662,11) -> 1057.460087 | M160: 2003-02-23 | N160: =VLOOKUP(M160,'RWH 10-yr Simulation'!$A$11:$N$3662,11) -> 928.8040872
A161: 2002-12-27 | B161: =VLOOKUP(A161,'RWH 10-yr Simulation'!$A$11:$N$3662,11) -> 1057.460087 | G161: 2003-02-11 | H161: =VLOOKUP(G161,'RWH 10-yr Simulation'!$A$11:$N$3662,11) -> 673.9715687 | M161: 2003-02-24 | N161: =VLOOKUP(M161,'RWH 10-yr Simulation'!$A$11:$N$3662,11) -> 952.9201613
A162: 2002-12-28 | B162: =VLOOKUP(A162,'RWH 10-yr Simulation'!$A$11:$N$3662,11) -> 1057.460087 | G162: 2003-02-12 | H162: =VLOOKUP(G162,'RWH 10-yr Simulation'!$A$11:$N$3662,11) -> 902.8595687 | M162: 2003-02-25 | N162: =VLOOKUP(M162,'RWH 10-yr Simulation'!$A$11:$N$3662,11) -> 953.2387539
A163: 2002-12-29 | B163: =VLOOKUP(A163,'RWH 10-yr Simulation'!$A$11:$N$3662,11) -> 1057.460087 | G163: 2003-02-14 | H163: =VLOOKUP(G163,'RWH 10-yr Simulation'!$A$11:$N$3662,11) -> 1033.981198 | M163: 2003-02-26 | N163: =VLOOKUP(M163,'RWH 10-yr Simulation'!$A$11:$N$3662,11) -> 1057.460087
A164: 2002-12-30 | B164: =VLOOKUP(A164,'RWH 10-yr Simulation'!$A$11:$N$3662,11) -> 1057.460087 | G164: 2003-02-15 | H164: =VLOOKUP(G164,'RWH 10-yr Simulation'!$A$11:$N$3662,11) -> 1057.460087 | M164: 2003-03-13 | N164: =VLOOKUP(M164,'RWH 10-yr Simulation'!$A$11:$N$3662,11) -> 525.2719391
A165: 2003-01-08 | B165: =VLOOKUP(A165,'RWH 10-yr Simulation'!$A$11:$N$3662,11) -> 932.2393465 | G165: 2003-02-18 | H165: =VLOOKUP(G165,'RWH 10-yr Simulation'!$A$11:$N$3662,11) -> 1010.502309 | M165: 2003-03-14 | N165: =VLOOKUP(M165,'RWH 10-yr Simulation'!$A$11:$N$3662,11) -> 677.8639391
A166: 2003-01-09 | B166: =VLOOKUP(A166,'RWH 10-yr Simulation'!$A$11:$N$3662,11) -> 1057.460087 | G166: 2003-02-23 | H166: =VLOOKUP(G166,'RWH 10-yr Simulation'!$A$11:$N$3662,11) -> 928.8040872 | M166: 2003-03-15 | N166: =VLOOKUP(M166,'RWH 10-yr Simulation'!$A$11:$N$3662,11) -> 1046.627939
A167: 2003-01-11 | B167: =VLOOKUP(A167,'RWH 10-yr Simulation'!$A$11:$N$3662,11) -> 1041.807495 | G167: 2003-02-24 | H167: =VLOOKUP(G167,'RWH 10-yr Simulation'!$A$11:$N$3662,11) -> 952.9201613 | M167: 2003-11-01 | N167: =VLOOKUP(M167,'RWH 10-yr Simulation'!$A$11:$N$3662,11) -> 0
A168: 2003-01-19 | B168: =VLOOKUP(A168,'RWH 10-yr Simulation'!$A$11:$N$3662,11) -> 947.8919391 | G168: 2003-02-25 | H168: =VLOOKUP(G168,'RWH 10-yr Simulation'!$A$11:$N$3662,11) -> 953.2387539 | M168: 2003-11-02 | N168: =VLOOKUP(M168,'RWH 10-yr Simulation'!$A$11:$N$3662,11) -> 0.3185925926
A169: 2003-01-20 | B169: =VLOOKUP(A169,'RWH 10-yr Simulation'!$A$11:$N$3662,11) -> 956.0368279 | G169: 2003-02-26 | H169: =VLOOKUP(G169,'RWH 10-yr Simulation'!$A$11:$N$3662,11) -> 1057.460087 | M169: 2003-11-04 | N169: =VLOOKUP(M169,'RWH 10-yr Simulation'!$A$11:$N$3662,11) -> 123.0737037
A170: 2003-01-21 | B170: =VLOOKUP(A170,'RWH 10-yr Simulation'!$A$11:$N$3662,11) -> 1057.460087 | G170: 2003-03-13 | H170: =VLOOKUP(G170,'RWH 10-yr Simulation'!$A$11:$N$3662,11) -> 525.2719391 | M170: 2003-11-05 | N170: =VLOOKUP(M170,'RWH 10-yr Simulation'!$A$11:$N$3662,11) -> 154.8637037
A171: 2003-01-22 | B171: =VLOOKUP(A171,'RWH 10-yr Simulation'!$A$11:$N$3662,11) -> 1057.460087 | G171: 2003-03-14 | H171: =VLOOKUP(G171,'RWH 10-yr Simulation'!$A$11:$N$3662,11) -> 677.8639391 | M171: 2003-11-06 | N171: =VLOOKUP(M171,'RWH 10-yr Simulation'!$A$11:$N$3662,11) -> 294.7397037
A172: 2003-02-11 | B172: =VLOOKUP(A172,'RWH 10-yr Simulation'!$A$11:$N$3662,11) -> 673.9715687 | G172: 2003-03-15 | H172: =VLOOKUP(G172,'RWH 10-yr Simulation'!$A$11:$N$3662,11) -> 1046.627939 | M172: 2003-11-07 | N172: =VLOOKUP(M172,'RWH 10-yr Simulation'!$A$11:$N$3662,11) -> 318.8557778
A173: 2003-02-12 | B173: =VLOOKUP(A173,'RWH 10-yr Simulation'!$A$11:$N$3662,11) -> 902.8595687 | G173: 2003-11-01 | H173: =VLOOKUP(G173,'RWH 10-yr Simulation'!$A$11:$N$3662,11) -> 0 | M173: 2003-11-13 | N173: =VLOOKUP(M173,'RWH 10-yr Simulation'!$A$11:$N$3662,11) -> 436.7073333
A174: 2003-02-14 | B174: =VLOOKUP(A174,'RWH 10-yr Simulation'!$A$11:$N$3662,11) -> 1033.981198 | G174: 2003-11-02 | H174: =VLOOKUP(G174,'RWH 10-yr Simulation'!$A$11:$N$3662,11) -> 0.3185925926 | M174: 2003-11-14 | N174: =VLOOKUP(M174,'RWH 10-yr Simulation'!$A$11:$N$3662,11) -> 544.7933333
A175: 2003-02-15 | B175: =VLOOKUP(A175,'RWH 10-yr Simulation'!$A$11:$N$3662,11) -> 1057.460087 | G175: 2003-11-04 | H175: =VLOOKUP(G175,'RWH 10-yr Simulation'!$A$11:$N$3662,11) -> 123.0737037 | M175: 2003-11-16 | N175: =VLOOKUP(M175,'RWH 10-yr Simulation'!$A$11:$N$3662,11) -> 591.2524444
A176: 2003-02-18 | B176: =VLOOKUP(A176,'RWH 10-yr Simulation'!$A$11:$N$3662,11) -> 1010.502309 | G176: 2003-11-05 | H176: =VLOOKUP(G176,'RWH 10-yr Simulation'!$A$11:$N$3662,11) -> 154.8637037 | M176: 2003-11-29 | N176: =VLOOKUP(M176,'RWH 10-yr Simulation'!$A$11:$N$3662,11) -> 392.1597778
A177: 2003-02-23 | B177: =VLOOKUP(A177,'RWH 10-yr Simulation'!$A$11:$N$3662,11) -> 928.8040872 | G177: 2003-11-06 | H177: =VLOOKUP(G177,'RWH 10-yr Simulation'!$A$11:$N$3662,11) -> 294.7397037 | M177: 2003-11-30 | N177: =VLOOKUP(M177,'RWH 10-yr Simulation'!$A$11:$N$3662,11) -> 951.6637778
A178: 2003-02-24 | B178: =VLOOKUP(A178,'RWH 10-yr Simulation'!$A$11:$N$3662,11) -> 952.9201613 | G178: 2003-11-07 | H178: =VLOOKUP(G178,'RWH 10-yr Simulation'!$A$11:$N$3662,11) -> 318.8557778 | M178: 2003-12-01 | N178: =VLOOKUP(M178,'RWH 10-yr Simulation'!$A$11:$N$3662,11) -> 1057.460087
A179: 2003-02-25 | B179: =VLOOKUP(A179,'RWH 10-yr Simulation'!$A$11:$N$3662,11) -> 953.2387539 | G179: 2003-11-13 | H179: =VLOOKUP(G179,'RWH 10-yr Simulation'!$A$11:$N$3662,11) -> 436.7073333 | M179: 2003-12-03 | N179: =VLOOKUP(M179,'RWH 10-yr Simulation'!$A$11:$N$3662,11) -> 1041.807495
A180: 2003-02-26 | B180: =VLOOKUP(A180,'RWH 10-yr Simulation'!$A$11:$N$3662,11) -> 1057.460087 | G180: 2003-11-14 | H180: =VLOOKUP(G180,'RWH 10-yr Simulation'!$A$11:$N$3662,11) -> 544.7933333 | M180: 2003-12-04 | N180: =VLOOKUP(M180,'RWH 10-yr Simulation'!$A$11:$N$3662,11) -> 1057.460087
A181: 2003-03-13 | B181: =VLOOKUP(A181,'RWH 10-yr Simulation'!$A$11:$N$3662,11) -> 525.2719391 | G181: 2003-11-16 | H181: =VLOOKUP(G181,'RWH 10-yr Simulation'!$A$11:$N$3662,11) -> 591.2524444 | M181: 2003-12-05 | N181: =VLOOKUP(M181,'RWH 10-yr Simulation'!$A$11:$N$3662,11) -> 1057.460087
A182: 2003-03-14 | B182: =VLOOKUP(A182,'RWH 10-yr Simulation'!$A$11:$N$3662,11) -> 677.8639391 | G182: 2003-11-29 | H182: =VLOOKUP(G182,'RWH 10-yr Simulation'!$A$11:$N$3662,11) -> 392.1597778 | M182: 2003-12-06 | N182: =VLOOKUP(M182,'RWH 10-yr Simulation'!$A$11:$N$3662,11) -> 1057.460087
A183: 2003-03-15 | B183: =VLOOKUP(A183,'RWH 10-yr Simulation'!$A$11:$N$3662,11) -> 1046.627939 | G183: 2003-11-30 | H183: =VLOOKUP(G183,'RWH 10-yr Simulation'!$A$11:$N$3662,11) -> 951.6637778 | M183: 2003-12-08 | N183: =VLOOKUP(M183,'RWH 10-yr Simulation'!$A$11:$N$3662,11) -> 1038.053643
A184: 2003-11-01 | B184: =VLOOKUP(A184,'RWH 10-yr Simulation'!$A$11:$N$3662,11) -> 0 | G184: 2003-12-01 | H184: =VLOOKUP(G184,'RWH 10-yr Simulation'!$A$11:$N$3662,11) -> 1057.460087 | M184: 2003-12-09 | N184: =VLOOKUP(M184,'RWH 10-yr Simulation'!$A$11:$N$3662,11) -> 1057.460087
A185: 2003-11-02 | B185: =VLOOKUP(A185,'RWH 10-yr Simulation'!$A$11:$N$3662,11) -> 0.3185925926 | G185: 2003-12-03 | H185: =VLOOKUP(G185,'RWH 10-yr Simulation'!$A$11:$N$3662,11) -> 1041.807495 | M185: 2003-12-11 | N185: =VLOOKUP(M185,'RWH 10-yr Simulation'!$A$11:$N$3662,11) -> 1041.807495
A186: 2003-11-04 | B186: =VLOOKUP(A186,'RWH 10-yr Simulation'!$A$11:$N$3662,11) -> 123.0737037 | G186: 2003-12-04 | H186: =VLOOKUP(G186,'RWH 10-yr Simulation'!$A$11:$N$3662,11) -> 1057.460087 | M186: 2003-12-12 | N186: =VLOOKUP(M186,'RWH 10-yr Simulation'!$A$11:$N$3662,11) -> 1057.460087
A187: 2003-11-05 | B187: =VLOOKUP(A187,'RWH 10-yr Simulation'!$A$11:$N$3662,11) -> 154.8637037 | G187: 2003-12-05 | H187: =VLOOKUP(G187,'RWH 10-yr Simulation'!$A$11:$N$3662,11) -> 1057.460087 | M187: 2003-12-13 | N187: =VLOOKUP(M187,'RWH 10-yr Simulation'!$A$11:$N$3662,11) -> 1057.460087
A188: 2003-11-06 | B188: =VLOOKUP(A188,'RWH 10-yr Simulation'!$A$11:$N$3662,11) -> 294.7397037 | G188: 2003-12-06 | H188: =VLOOKUP(G188,'RWH 10-yr Simulation'!$A$11:$N$3662,11) -> 1057.460087 | M188: 2003-12-18 | N188: =VLOOKUP(M188,'RWH 10-yr Simulation'!$A$11:$N$3662,11) -> 994.8497168
A189: 2003-11-07 | B189: =VLOOKUP(A189,'RWH 10-yr Simulation'!$A$11:$N$3662,11) -> 318.8557778 | G189: 2003-12-08 | H189: =VLOOKUP(G189,'RWH 10-yr Simulation'!$A$11:$N$3662,11) -> 1038.053643 | M189: 2003-12-19 | N189: =VLOOKUP(M189,'RWH 10-yr Simulation'!$A$11:$N$3662,11) -> 1057.460087
A190: 2003-11-13 | B190: =VLOOKUP(A190,'RWH 10-yr Simulation'!$A$11:$N$3662,11) -> 436.7073333 | G190: 2003-12-09 | H190: =VLOOKUP(G190,'RWH 10-yr Simulation'!$A$11:$N$3662,11) -> 1057.460087 | M190: 2003-12-22 | N190: =VLOOKUP(M190,'RWH 10-yr Simulation'!$A$11:$N$3662,11) -> 1026.154902
A191: 2003-11-14 | B191: =VLOOKUP(A191,'RWH 10-yr Simulation'!$A$11:$N$3662,11) -> 544.7933333 | G191: 2003-12-11 | H191: =VLOOKUP(G191,'RWH 10-yr Simulation'!$A$11:$N$3662,11) -> 1041.807495 | M191: 2003-12-23 | N191: =VLOOKUP(M191,'RWH 10-yr Simulation'!$A$11:$N$3662,11) -> 1057.460087
A192: 2003-11-16 | B192: =VLOOKUP(A192,'RWH 10-yr Simulation'!$A$11:$N$3662,11) -> 591.2524444 | G192: 2003-12-12 | H192: =VLOOKUP(G192,'RWH 10-yr Simulation'!$A$11:$N$3662,11) -> 1057.460087 | M192: 2003-12-24 | N192: =VLOOKUP(M192,'RWH 10-yr Simulation'!$A$11:$N$3662,11) -> 1057.460087
A193: 2003-11-29 | B193: =VLOOKUP(A193,'RWH 10-yr Simulation'!$A$11:$N$3662,11) -> 392.1597778 | G193: 2003-12-13 | H193: =VLOOKUP(G193,'RWH 10-yr Simulation'!$A$11:$N$3662,11) -> 1057.460087 | M193: 2003-12-27 | N193: =VLOOKUP(M193,'RWH 10-yr Simulation'!$A$11:$N$3662,11) -> 1022.40105
A194: 2003-11-30 | B194: =VLOOKUP(A194,'RWH 10-yr Simulation'!$A$11:$N$3662,11) -> 951.6637778 | G194: 2003-12-18 | H194: =VLOOKUP(G194,'RWH 10-yr Simulation'!$A$11:$N$3662,11) -> 994.8497168 | M194: 2003-12-28 | N194: =VLOOKUP(M194,'RWH 10-yr Simulation'!$A$11:$N$3662,11) -> 1018.647198
A195: 2003-12-01 | B195: =VLOOKUP(A195,'RWH 10-yr Simulation'!$A$11:$N$3662,11) -> 1057.460087 | G195: 2003-12-19 | H195: =VLOOKUP(G195,'RWH 10-yr Simulation'!$A$11:$N$3662,11) -> 1057.460087 | M195: 2003-12-29 | N195: =VLOOKUP(M195,'RWH 10-yr Simulation'!$A$11:$N$3662,11) -> 1057.460087
A196: 2003-12-03 | B196: =VLOOKUP(A196,'RWH 10-yr Simulation'!$A$11:$N$3662,11) -> 1041.807495 | G196: 2003-12-22 | H196: =VLOOKUP(G196,'RWH 10-yr Simulation'!$A$11:$N$3662,11) -> 1026.154902 | M196: 2003-12-31 | N196: =VLOOKUP(M196,'RWH 10-yr Simulation'!$A$11:$N$3662,11) -> 1041.807495
A197: 2003-12-04 | B197: =VLOOKUP(A197,'RWH 10-yr Simulation'!$A$11:$N$3662,11) -> 1057.460087 | G197: 2003-12-23 | H197: =VLOOKUP(G197,'RWH 10-yr Simulation'!$A$11:$N$3662,11) -> 1057.460087 | M197: 2004-01-01 | N197: =VLOOKUP(M197,'RWH 10-yr Simulation'!$A$11:$N$3662,11) -> 1057.460087
A198: 2003-12-05 | B198: =VLOOKUP(A198,'RWH 10-yr Simulation'!$A$11:$N$3662,11) -> 1057.460087 | G198: 2003-12-24 | H198: =VLOOKUP(G198,'RWH 10-yr Simulation'!$A$11:$N$3662,11) -> 1057.460087 | M198: 2004-01-05 | N198: =VLOOKUP(M198,'RWH 10-yr Simulation'!$A$11:$N$3662,11) -> 1010.502309
A199: 2003-12-06 | B199: =VLOOKUP(A199,'RWH 10-yr Simulation'!$A$11:$N$3662,11) -> 1057.460087 | G199: 2003-12-27 | H199: =VLOOKUP(G199,'RWH 10-yr Simulation'!$A$11:$N$3662,11) -> 1022.40105 | M199: 2004-01-06 | N199: =VLOOKUP(M199,'RWH 10-yr Simulation'!$A$11:$N$3662,11) -> 1042.292309
A200: 2003-12-08 | B200: =VLOOKUP(A200,'RWH 10-yr Simulation'!$A$11:$N$3662,11) -> 1038.053643 | G200: 2003-12-28 | H200: =VLOOKUP(G200,'RWH 10-yr Simulation'!$A$11:$N$3662,11) -> 1018.647198 | M200: 2004-01-08 | N200: =VLOOKUP(M200,'RWH 10-yr Simulation'!$A$11:$N$3662,11) -> 1041.807495
A201: 2003-12-09 | B201: =VLOOKUP(A201,'RWH 10-yr Simulation'!$A$11:$N$3662,11) -> 1057.460087 | G201: 2003-12-29 | H201: =VLOOKUP(G201,'RWH 10-yr Simulation'!$A$11:$N$3662,11) -> 1057.460087 | M201: 2004-01-09 | N201: =VLOOKUP(M201,'RWH 10-yr Simulation'!$A$11:$N$3662,11) -> 1057.460087
A202: 2003-12-11 | B202: =VLOOKUP(A202,'RWH 10-yr Simulation'!$A$11:$N$3662,11) -> 1041.807495 | G202: 2003-12-31 | H202: =VLOOKUP(G202,'RWH 10-yr Simulation'!$A$11:$N$3662,11) -> 1041.807495 | M202: 2004-01-13 | N202: =VLOOKUP(M202,'RWH 10-yr Simulation'!$A$11:$N$3662,11) -> 1010.502309
A203: 2003-12-12 | B203: =VLOOKUP(A203,'RWH 10-yr Simulation'!$A$11:$N$3662,11) -> 1057.460087 | G203: 2004-01-01 | H203: =VLOOKUP(G203,'RWH 10-yr Simulation'!$A$11:$N$3662,11) -> 1057.460087 | M203: 2004-01-22 | N203: =VLOOKUP(M203,'RWH 10-yr Simulation'!$A$11:$N$3662,11) -> 910.7135687
A204: 2003-12-13 | B204: =VLOOKUP(A204,'RWH 10-yr Simulation'!$A$11:$N$3662,11) -> 1057.460087 | G204: 2004-01-05 | H204: =VLOOKUP(G204,'RWH 10-yr Simulation'!$A$11:$N$3662,11) -> 1010.502309 | M204: 2004-01-23 | N204: =VLOOKUP(M204,'RWH 10-yr Simulation'!$A$11:$N$3662,11) -> 929.7875687
A205: 2003-12-18 | B205: =VLOOKUP(A205,'RWH 10-yr Simulation'!$A$11:$N$3662,11) -> 994.8497168 | G205: 2004-01-06 | H205: =VLOOKUP(G205,'RWH 10-yr Simulation'!$A$11:$N$3662,11) -> 1042.292309 | M205: 2004-01-26 | N205: =VLOOKUP(M205,'RWH 10-yr Simulation'!$A$11:$N$3662,11) -> 1006.568383
... 506 more rows
